{"text_format":"1","workbook":"xlsx","n_sheets":8,"sheets":["施設利用申込書","領収書(森本改訂版)","料金マスタ","領収書(原紙)","料金マスタ2","団体","学校(改)","消防"],"not_rendered":{"charts":0,"images":0,"macros":1,"external_links":0,"defined_names":7,"comments":6,"pivot_tables":0},"unopened":[],"bounds":{"document_bytes":16777216,"sheet_cells":100000,"rows_first":2000,"rows_last":500,"rows_between":2000,"halvings":0,"cell_chars":16384,"cell_head_chars":4096},"cells_cut":0,"cells_raw":0,"read":"whole","date_system":"1900"}

{"sheet":"施設利用申込書","index":0,"n_rows":59,"n_cols":73,"rows_kept":59,"cut":false,"hidden":false,"merged":[[36,43,37,47],[36,30,37,42],[28,43,29,47],[25,11,25,47],[30,30,31,42],[32,30,33,42],[26,30,27,47],[35,23,35,27],[36,23,36,27],[37,23,37,27],[37,8,37,16],[26,17,27,27],[40,43,41,47],[42,43,43,47],[40,0,40,4],[53,33,54,47],[46,26,46,32],[46,33,46,47],[40,30,41,42],[42,30,43,42],[41,23,41,27],[42,23,42,27],[43,23,43,27],[41,0,41,4],[40,8,40,16],[41,8,41,16],[43,0,43,4],[42,8,42,16],[43,8,43,16],[42,17,42,21],[43,17,43,21],[41,5,41,7],[38,30,39,42],[38,43,39,47],[49,26,50,32],[49,33,50,47],[18,28,18,37],[18,13,18,19],[34,43,35,47],[24,8,24,10],[42,0,42,4],[34,30,35,42],[35,8,35,16],[36,8,36,16],[29,0,29,4],[23,11,23,13],[23,15,23,18],[26,0,27,6],[26,8,27,16],[22,8,22,47],[33,0,33,4],[31,0,31,4],[30,8,30,16],[25,8,25,10],[24,11,24,47],[38,0,38,4],[58,0,58,47],[45,0,45,21],[55,26,55,47],[47,0,47,25],[48,0,48,25],[56,33,57,47],[52,0,54,25],[51,26,52,32],[51,33,52,47],[45,26,45,47],[49,0,49,25],[55,0,57,25],[56,26,57,32],[53,26,54,32],[50,0,51,25],[47,26,48,32],[47,33,48,47],[46,0,46,15],[1,0,1,9],[30,43,31,47],[32,43,33,47],[28,30,29,42],[19,20,19,29],[30,0,30,4],[9,0,9,7],[9,8,9,47],[18,38,18,47],[20,0,20,7],[20,14,20,16],[32,0,32,4],[23,0,24,7],[25,0,25,7],[10,8,11,47],[7,22,7,27],[17,0,17,7],[17,8,17,47],[13,8,14,47],[12,8,12,47],[7,18,7,20],[12,0,12,7],[13,0,14,7],[10,0,11,7],[4,15,4,21],[3,0,6,7],[5,8,6,14],[7,0,7,7],[5,15,6,21],[3,15,3,21],[3,8,3,14],[19,30,19,47],[21,0,21,7],[20,17,20,47],[20,8,20,12],[19,0,19,7],[18,11,18,12],[18,26,18,27],[7,8,7,10],[7,11,7,12],[7,13,7,14],[7,15,7,16],[8,0,8,7],[18,0,18,7],[18,8,18,10],[2,0,2,47],[0,0,0,47],[7,28,7,47],[4,22,6,47],[3,22,3,47],[4,8,4,14],[15,42,15,47],[22,0,22,7],[21,8,21,47],[8,8,8,10],[8,11,8,47],[15,0,16,7],[15,8,15,9],[18,20,18,25],[19,8,19,11],[19,13,19,17],[15,11,15,14],[15,16,15,20],[15,22,15,27],[15,28,15,29],[15,31,15,34],[15,36,15,40],[16,8,16,9],[16,10,16,47],[39,0,39,4],[28,23,28,27],[29,23,29,27],[30,23,30,27],[31,23,31,27],[32,23,32,27],[34,23,34,27],[36,0,36,4],[37,0,37,4],[33,17,33,21],[34,17,34,21],[36,17,36,21],[37,17,37,21],[33,23,33,27],[28,0,28,4],[32,8,32,16],[33,8,33,16],[34,8,34,16],[32,17,32,21],[35,17,35,21],[31,17,31,21],[34,0,34,4],[35,0,35,4],[38,23,38,27],[39,23,39,27],[40,5,40,7],[32,5,32,7],[40,17,40,21],[41,17,41,21],[40,23,40,27],[33,5,33,7],[34,5,34,7],[35,5,35,7],[36,5,36,7],[37,5,37,7],[38,5,38,7],[38,8,38,16],[39,8,39,16],[30,5,30,7],[31,5,31,7],[42,5,42,7],[43,5,43,7],[28,8,28,16],[29,8,29,16],[31,8,31,16],[39,5,39,7],[38,17,38,21],[39,17,39,21],[28,17,28,21],[29,17,29,21],[30,17,30,21],[28,5,28,7],[29,5,29,7]]}
[]
["　福岡県立総合プール",null,null,null,null,null,null,null,null,null,null,null,null,null,null,null,null,null,null,null,null,null,null,null,null,null,null,null,null,null,null,null,null,null,null,null,null,null,null,null,null,null,null,null,null,null,null,null,null,null,null,null,null,null,{"$f":"_xludf.SWITCH(I9,1,\"占有利用\",2,\"学校利用\",3,\"団体利用\",\"\")","v":{"$error":"#NAME?"}}]
["　　　　　　　　　　　　　施設長　殿",null,null,null,null,null,null,null,null,null,null,null,null,null,null,null,null,null,null,null,null,null,null,null,null,null,null,null,null,null,null,null,null,null,null,null,null,null,null,null,null,null,null,null,null,null,null,null,null,null,null,null,null,null,"I9,2,\"※学校利用、団体利用の場合は所定の利用申込書も提出していただく必要があります。\",3,\"※学校利用、団体利用の場合は所定の利用申込書も提出していただく必要があります。\",\"\")"]
["公社使用欄",null,null,null,null,null,null,null,"予約登録済",null,null,null,null,null,null,"本申込書発送済",null,null,null,null,null,null,"備　　　　　考"]
[null,null,null,null,null,null,null,null,"　月　　　　日",null,null,null,null,null,null,"　月　　　　日"]
[]
[]
["申込日",null,null,null,null,null,null,null,"令和",null,null,null,null,"年",null,null,null,"月",null,null,null,"日","団体コード"]
["利　用　方　法　　　　　　　　　　",null,null,null,null,null,null,null,null,null,null,{"$f":"IF(I9=1,\"占有利用\",IF(I9=2,\"学校利用\",IF(I9=3,\"団体利用\",IF(I9=\"\",\"\"))))","v":""},null,null,null,null,null,null,null,null,null,null,null,null,null,null,null,null,null,null,null,null,null,null,null,null,null,null,null,null,null,null,null,null,null,null,null,null,null,null,null,null,null,null,null,null,null,null,null,null,null,1,"占有利用"]
["（該当の利用方法を○で囲む）",null,null,null,null,null,null,null,{"$f":"IF(I9=2,\"※学校利用、団体利用の場合は所定の利用申込書も提出していただく必要があります。\",IF(I9=3,\"※学校利用、団体利用の場合は所定の利用申込書も提出していただく必要があります。\",IF(I9=1,\"\",IF(I9=\"\",\"\"))))","v":""},null,null,null,null,null,null,null,null,null,null,null,null,null,null,null,null,null,null,null,null,null,null,null,null,null,null,null,null,null,null,null,null,null,null,null,null,null,null,null,null,null,null,null,null,null,null,null,null,null,null,null,null,2,"学校利用"]
["利用申込団体名",null,null,null,null,null,null,null,null,null,null,null,null,null,null,null,null,null,null,null,null,null,null,null,null,null,null,null,null,null,null,null,null,null,null,null,null,null,null,null,null,null,null,null,null,null,null,null,null,null,null,null,null,null,null,null,null,null,null,null,null,3,"団体利用(30名以上)"]
[null,null,null,null,null,null,null,null,null,null,null,null,null,null,null,null,null,null,null,null,null,null,null,null,null,null,null,null,null,null,null,null,null,null,null,null,null,null,null,null,null,null,null,null,null,null,null,null,null,null,null,null,null,null,null,null,null,null,null,null,null,4,"コース利用(プール:30名以下)"]
["フリガナ"]
["申込責任者氏名"]
[null,null,null,null,null,null,null,null,null,null,null,null,null,null,null,null,null,null,null,null,null,null,null,null,null,null,null,null,null,null,null,null,null,null,null,null,null,null,null,null,null,null,null,null,null,null,null,null,null,null,null,null,null,null,null,null,null,null,null,null,null,null,"アマチュア"]
["責任者連絡先",null,null,null,null,null,null,null,"TEL",null,"(",null,null,null,null,")",null,null,null,null,null,"-",null,null,null,null,null,null,"FAX",null,"(",null,null,null,null,")",null,null,null,null,null,"-",null,null,null,null,null,null,null,null,null,null,null,null,null,null,null,null,null,null,null,null,"プロ"]
[null,null,null,null,null,null,null,null,"Mail"]
["利用目的（大会名等）",null,null,null,null,null,null,null,null,null,null,null,null,null,null,null,null,null,null,null,null,null,null,null,null,null,null,null,null,null,null,null,null,null,null,null,null,null,null,null,null,null,null,null,null,null,null,null,null,null,null,null,null,null,null,null,null,null,null,null,null,null,{"$f":"L16&-Q16&-W16","v":"00"}]
["選手･役員数",null,null,null,null,null,null,null,null,null,null,"人",null,"観 客 数",null,null,null,null,null,null,null,null,null,null,null,null,"人",null,"※１  使用料通知の希望",null,null,null,null,null,null,null,null,null,null,null,null,null,null,null,null,null,null,null,null,null,null,null,null,null,null,null,null,null,null,null,null,null,"要"]
["入場徴収の有無",null,null,null,null,null,null,null,null,null,null,null,"(",null,null,null,null,null,"円)",")","アマ・プロ区分",null,null,null,null,null,null,null,null,null,null,null,null,null,null,null,null,null,null,null,null,null,null,null,null,null,null,null,null,null,null,null,null,null,null,null,null,null,null,null,null,null,"不要",null,null,null,null,null,null,null,null,null,{"$f":"_xlfn.SWITCH(AE20,\"アマチュア\",\"アマ\",\"プロ\",\"プロ\",\"\",\"\")","v":{"$error":"#N/A"}}]
["使用料減免希望の有無",null,null,null,null,null,null,null,null,null,null,null,null,"（","理由：",null,null,null,null,null,null,null,null,null,null,null,null,null,null,null,null,null,null,null,null,null,null,null,null,null,null,null,null,null,null,null,null,null,null,null,null,null,null,null,null,null,null,null,null,null,null,null,"有"]
["主催者名（大会等）",null,null,null,null,null,null,null,null,null,null,null,null,null,null,null,null,null,null,null,null,null,null,null,null,null,null,null,null,null,null,null,null,null,null,null,null,null,null,null,null,null,null,null,null,null,null,null,null,null,null,null,null,null,null,null,null,null,null,null,null,null,"無"]
["後援者名（大会等）"]
["関係書類送先",null,null,null,null,null,null,null,null,null,"〒",null,null,null,"-"]
[null,null,null,null,null,null,null,null,"住所"]
["(減免・請求書希望の方のみ)",null,null,null,null,null,null,null,"氏名"]
["利用日",null,null,null,null,null,null,null,"利用施設名",null,null,null,null,null,null,null,null,"利　用　時　間",null,null,null,null,null,null,null,null,null,null,null,null,"附 属 設 備 使 用 の 有 無"]
[]
[null,null,null,null,null,{"$f":"IF(ISBLANK(A29),\"\",TEXT(A29,\"(aaa)\"))","v":""},null,null,null,null,null,null,null,null,null,null,null,null,null,null,null,null,"～",null,null,null,null,null,null,null,"　電光掲示板（固定式・移動式）"]
[null,null,null,null,null,{"$f":"IF(ISBLANK(A30),\"\",TEXT(A30,\"(aaa)\"))","v":""},null,null,null,null,null,null,null,null,null,null,null,null,null,null,null,null,"～",null,null,null,null,null,null,null,null,null,null,null,null,null,null,null,null,null,null,null,null,null,null,null,null,null,null,null,null,null,null,null,null,null,null,null,{"$f":"A29&C29&D29&E29&F29&G29&H29","v":""},null,null,"09:00:00"]
[null,null,null,null,null,"",null,null,null,null,null,null,null,null,null,null,null,null,null,null,null,null,"～",null,null,null,null,null,null,null,"　自動計時装置",null,null,null,null,null,null,null,null,null,null,null,null,null,null,null,null,null,null,null,null,null,null,null,null,null,null,null,"50ｍプール",null,null,"09:30:00"]
[null,null,null,null,null,"",null,null,null,null,null,null,null,null,null,null,null,null,null,null,null,null,"～",null,null,null,null,null,null,null,null,null,null,null,null,null,null,null,null,null,null,null,null,null,null,null,null,null,null,null,null,null,null,null,null,null,null,null,"25ｍプール",null,null,"10:00:00"]
[null,null,null,null,null,"",null,null,null,null,null,null,null,null,null,null,null,null,null,null,null,null,"～",null,null,null,null,null,null,null,"　水球用３５秒計",null,null,null,null,null,null,null,null,null,null,null,null,null,null,null,null,null,null,null,null,null,null,null,null,null,null,null,"飛込プール",null,null,"10:30:00"]
[null,null,null,null,null,"",null,null,null,null,null,null,null,null,null,null,null,null,null,null,null,null,"～",null,null,null,null,null,null,null,null,null,null,null,null,null,null,null,null,null,null,null,null,null,null,null,null,null,null,null,null,null,null,null,null,null,null,null,"会議室",null,null,"11:00:00"]
[null,null,null,null,null,"",null,null,null,null,null,null,null,null,null,null,null,null,null,null,null,null,"～",null,null,null,null,null,null,null,"　競技用具（水泳・スケート）",null,null,null,null,null,null,null,null,null,null,null,null,null,null,null,null,null,null,null,null,null,null,null,null,null,null,null,"応接室",null,null,"11:30:00"]
[null,null,null,null,null,"",null,null,null,null,null,null,null,null,null,null,null,null,null,null,null,null,"～",null,null,null,null,null,null,null,null,null,null,null,null,null,null,null,null,null,null,null,null,null,null,null,null,null,null,null,null,null,null,null,null,null,null,null,"スナックルーム",null,null,"12:00:00"]
[null,null,null,null,null,"",null,null,null,null,null,null,null,null,null,null,null,null,null,null,null,null,"～",null,null,null,null,null,null,null,"　ペースタイマー",null,null,null,null,null,null,null,null,null,null,null,null,null,null,null,null,null,null,null,null,null,null,null,null,null,null,null,"スケートリンク",null,null,"12:30:00"]
[null,null,null,null,null,"",null,null,null,null,null,null,null,null,null,null,null,null,null,null,null,null,"～",null,null,null,null,null,null,null,null,null,null,null,null,null,null,null,null,null,null,null,null,null,null,null,null,null,null,null,null,null,null,null,null,null,null,null,null,null,null,"13:00:00"]
[null,null,null,null,null,"",null,null,null,null,null,null,null,null,null,null,null,null,null,null,null,null,"～",null,null,null,null,null,null,null,"　審判台（水球用）",null,null,null,null,null,null,null,null,null,null,null,null,null,null,null,null,null,null,null,null,null,null,null,null,null,null,null,null,null,null,"13:30:00"]
[null,null,null,null,null,"",null,null,null,null,null,null,null,null,null,null,null,null,null,null,null,null,"～",null,null,null,null,null,null,null,null,null,null,null,null,null,null,null,null,null,null,null,null,null,null,null,null,null,null,null,null,null,null,null,null,null,null,null,null,null,null,"14:00:00"]
[null,null,null,null,null,"",null,null,null,null,null,null,null,null,null,null,null,null,null,null,null,null,"～",null,null,null,null,null,null,null,"　アイスホッケーゴールポスト",null,null,null,null,null,null,null,null,null,null,null,null,null,null,null,null,null,null,null,null,null,null,null,null,null,null,null,null,null,null,"14:30:00"]
[null,null,null,null,null,"",null,null,null,null,null,null,null,null,null,null,null,null,null,null,null,null,"～",null,null,null,null,null,null,null,null,null,null,null,null,null,null,null,null,null,null,null,null,null,null,null,null,null,null,null,null,null,null,null,null,null,null,null,null,null,null,"15:00:00"]
[null,null,null,null,null,"",null,null,null,null,null,null,null,null,null,null,null,null,null,null,null,null,"～",null,null,null,null,null,null,null,"　放送設備",null,null,null,null,null,null,null,null,null,null,null,null,null,null,null,null,null,null,null,null,null,null,null,null,null,null,null,null,null,null,"15:30:00"]
[null,null,null,null,null,"",null,null,null,null,null,null,null,null,null,null,null,null,null,null,null,null,"～",null,null,null,null,null,null,null,null,null,null,null,null,null,null,null,null,null,null,null,null,null,null,null,null,null,null,null,null,null,null,null,null,null,null,null,null,null,null,"16:00:00"]
[null,null,null,null,null,null,null,null,null,null,null,null,null,null,null,null,null,null,null,null,null,null,null,null,null,null,null,null,null,null,null,null,null,null,null,null,null,null,null,null,null,null,null,null,null,null,null,null,null,null,null,null,null,null,null,null,null,null,null,null,null,"16:30:00"]
["＜ご記入の際は以下の点にご注意ください＞",null,null,null,null,null,null,null,null,null,null,null,null,null,null,null,null,null,null,null,null,null,null,null,null,null,"プール案内",null,null,null,null,null,null,null,null,null,null,null,null,null,null,null,null,null,null,null,null,null,null,null,null,null,null,null,null,null,null,null,null,null,null,"17:00:00"]
["○申込者は太枠の中のみ記入してください。",null,null,null,null,null,null,null,null,null,null,null,null,null,null,null,null,null,null,null,null,null,null,null,null,null,"施設",null,null,null,null,null,null,"設　　　備",null,null,null,null,null,null,null,null,null,null,null,null,null,null,null,null,null,null,null,null,null,null,null,null,null,null,null,"17:30:00"]
["○お電話での仮予約後に、この本申込書の提出をお願いします。",null,null,null,null,null,null,null,null,null,null,null,null,null,null,null,null,null,null,null,null,null,null,null,null,null,"５０ｍプール",null,null,null,null,null,null,"５０ｍ×8コース　\n水深：２．０～２．２ｍ",null,null,null,null,null,null,null,null,null,null,null,null,null,null,null,null,null,null,null,null,null,null,null,null,null,null,null,"18:00:00"]
["○初めてご利用の団体は団体登録（別紙）が必要です。",null,null,null,null,null,null,null,null,null,null,null,null,null,null,null,null,null,null,null,null,null,null,null,null,null,null,null,null,null,null,null,null,null,null,null,null,null,null,null,null,null,null,null,null,null,null,null,null,null,null,null,null,null,null,null,null,null,null,null,null,"18:30:00"]
["○施設使用料は当日のご利用前までにお支払いください。",null,null,null,null,null,null,null,null,null,null,null,null,null,null,null,null,null,null,null,null,null,null,null,null,null,"２５ｍプール",null,null,null,null,null,null,"25ｍ×８コース\n水深：１．０～１．４ｍ",null,null,null,null,null,null,null,null,null,null,null,null,null,null,null,null,null,null,null,null,null,null,null,null,null,null,null,"19:00:00"]
["○団体登録内容に変更がある場合（代表者の変更等）は、団体登録申請書（変更）を提出していただく必要があります。",null,null,null,null,null,null,null,null,null,null,null,null,null,null,null,null,null,null,null,null,null,null,null,null,null,null,null,null,null,null,null,null,null,null,null,null,null,null,null,null,null,null,null,null,null,null,null,null,null,null,null,null,null,null,null,null,null,null,null,null,"19:30:00"]
[null,null,null,null,null,null,null,null,null,null,null,null,null,null,null,null,null,null,null,null,null,null,null,null,null,null,"飛び込みプール",null,null,null,null,null,null,"２０ｍ×２２ｍ\n 水深：５ｍ",null,null,null,null,null,null,null,null,null,null,null,null,null,null,null,null,null,null,null,null,null,null,null,null,null,null,null,"20:00:00"]
["○キャンセル・時間帯の変更は（当日を含まない）３日前の１７時までとなっております。その際は下記の電話番号までご連絡をお願いします。　　　　　　　　　            なお、上記の期限を過ぎ、キャンセル・時間帯の変更を行う場合は、キャンセル料が発生しますのでご了承ください。",null,null,null,null,null,null,null,null,null,null,null,null,null,null,null,null,null,null,null,null,null,null,null,null,null,null,null,null,null,null,null,null,null,null,null,null,null,null,null,null,null,null,null,null,null,null,null,null,null,null,null,null,null,null,null,null,null,null,null,null,"20:30:00"]
[null,null,null,null,null,null,null,null,null,null,null,null,null,null,null,null,null,null,null,null,null,null,null,null,null,null,"スケートリンク",null,null,null,null,null,null,"６０ｍ×３０ｍ  ",null,null,null,null,null,null,null,null,null,null,null,null,null,null,null,null,null,null,null,null,null,null,null,null,null,null,null,"21:00:00"]
[]
["○申込施設の使用料通知を希望する団体には、事前に施設使用料金の詳細をお知らせします。※１の該当する箇所に○を記入してください。なお、未記入の場合は希望なしとみなし施設使用料金のお知らせはいたしませんのでご了承ください。",null,null,null,null,null,null,null,null,null,null,null,null,null,null,null,null,null,null,null,null,null,null,null,null,null,"研修室案内"]
[null,null,null,null,null,null,null,null,null,null,null,null,null,null,null,null,null,null,null,null,null,null,null,null,null,null,"会議室",null,null,null,null,null,null,"定員　50名"]
[]
["指定管理者　　アクシオン福岡プロジェクトチーム　TEL　０９２－６２３－４４００  　FAX　０９２－６１２－２５２６"]

{"sheet":"領収書(森本改訂版)","index":1,"n_rows":70,"n_cols":117,"rows_kept":70,"cut":false,"hidden":true,"merged":[[42,73,43,73],[44,73,45,73],[46,73,47,73],[48,73,49,73],[50,73,51,73],[52,73,53,73],[54,73,55,73],[24,73,25,73],[26,73,27,73],[28,73,29,73],[30,73,31,73],[32,73,33,73],[34,73,35,73],[36,73,37,73],[38,73,39,73],[40,73,41,73],[54,84,55,84],[54,85,55,85],[54,86,55,87],[54,88,55,89],[54,90,55,91],[55,11,55,13],[55,15,55,18],[55,22,55,35],[55,36,55,43],[55,44,55,45],[55,46,55,53],[54,70,55,70],[54,71,55,71],[54,72,55,72],[54,74,55,74],[54,75,55,75],[54,76,55,76],[54,77,55,77],[54,78,55,78],[54,80,55,81],[54,9,54,15],[54,16,54,17],[54,22,54,35],[54,36,54,43],[54,44,54,45],[54,46,54,53],[54,54,54,55],[54,60,55,66],[54,69,55,69],[52,82,53,82],[52,83,53,83],[52,44,52,45],[52,46,52,53],[52,54,52,55],[52,60,53,66],[52,69,53,69],[52,56,52,59],[53,56,53,59],[54,56,54,59],[55,56,55,59],[54,82,55,82],[54,83,55,83],[52,84,53,84],[52,85,53,85],[52,86,53,87],[52,88,53,89],[52,90,53,91],[53,11,53,13],[53,15,53,18],[53,22,53,35],[53,36,53,43],[53,44,53,45],[53,46,53,53],[52,70,53,70],[52,71,53,71],[52,72,53,72],[52,74,53,74],[52,75,53,75],[52,76,53,76],[52,77,53,77],[52,78,53,78],[52,80,53,81],[52,9,52,15],[52,16,52,17],[52,22,52,35],[52,36,52,43],[50,84,51,84],[50,85,51,85],[50,86,51,87],[50,88,51,89],[50,90,51,91],[51,11,51,13],[51,15,51,18],[51,22,51,35],[51,36,51,43],[51,44,51,45],[51,46,51,53],[50,70,51,70],[50,71,51,71],[50,72,51,72],[50,74,51,74],[50,75,51,75],[50,76,51,76],[50,77,51,77],[50,78,51,78],[50,80,51,81],[50,9,50,15],[50,16,50,17],[50,22,50,35],[50,36,50,43],[50,44,50,45],[50,46,50,53],[50,54,50,55],[50,60,51,66],[50,69,51,69],[48,82,49,82],[48,83,49,83],[48,44,48,45],[48,46,48,53],[48,54,48,55],[48,60,49,66],[48,69,49,69],[50,82,51,82],[50,83,51,83],[48,84,49,84],[48,85,49,85],[48,86,49,87],[48,88,49,89],[48,90,49,91],[49,11,49,13],[49,15,49,18],[49,22,49,35],[49,36,49,43],[49,44,49,45],[49,46,49,53],[48,70,49,70],[48,71,49,71],[48,72,49,72],[48,74,49,74],[48,75,49,75],[48,76,49,76],[48,77,49,77],[48,78,49,78],[48,80,49,81],[48,9,48,15],[48,16,48,17],[48,22,48,35],[48,36,48,43],[46,84,47,84],[46,85,47,85],[46,86,47,87],[46,88,47,89],[46,90,47,91],[47,11,47,13],[47,15,47,18],[47,22,47,35],[47,36,47,43],[47,44,47,45],[47,46,47,53],[46,70,47,70],[46,71,47,71],[46,72,47,72],[46,74,47,74],[46,75,47,75],[46,76,47,76],[46,77,47,77],[46,78,47,78],[46,80,47,81],[46,9,46,15],[46,16,46,17],[46,22,46,35],[46,36,46,43],[46,44,46,45],[46,46,46,53],[46,54,46,55],[46,60,47,66],[46,69,47,69],[44,82,45,82],[44,83,45,83],[44,44,44,45],[44,46,44,53],[44,54,44,55],[44,60,45,66],[44,69,45,69],[46,82,47,82],[46,83,47,83],[44,84,45,84],[44,85,45,85],[44,86,45,87],[44,88,45,89],[44,90,45,91],[45,11,45,13],[45,15,45,18],[45,22,45,35],[45,36,45,43],[45,44,45,45],[45,46,45,53],[44,70,45,70],[44,71,45,71],[44,72,45,72],[44,74,45,74],[44,75,45,75],[44,76,45,76],[44,77,45,77],[44,78,45,78],[44,80,45,81],[44,9,44,15],[44,16,44,17],[44,22,44,35],[44,36,44,43],[42,78,43,78],[23,76,23,77],[22,74,22,75],[23,36,23,45],[23,46,23,55],[24,74,25,74],[24,75,25,75],[24,76,25,76],[24,77,25,77],[24,78,25,78],[26,74,27,74],[26,75,27,75],[26,76,27,76],[26,77,27,77],[26,78,27,78],[23,60,23,66],[26,70,27,70],[26,71,27,71],[26,72,27,72],[28,60,29,66],[28,69,29,69],[28,70,29,70],[28,71,29,71],[28,72,29,72],[2,8,2,54],[3,8,3,55],[4,10,4,56],[5,8,5,17],[5,44,5,45],[5,46,5,53],[16,9,16,15],[16,16,16,55],[17,9,17,15],[17,16,17,55],[6,9,6,24],[6,36,6,44],[6,45,6,55],[7,9,14,15],[8,16,8,20],[8,23,8,30],[9,21,9,55],[9,59,9,63],[10,59,11,63],[11,16,11,20],[13,16,13,20],[13,21,13,55],[15,9,15,15],[15,16,15,55],[19,9,19,15],[19,16,19,55],[18,9,18,15],[18,16,18,55],[23,86,23,87],[20,54,20,55],[21,9,21,15],[21,16,21,17],[21,18,21,40],[21,41,21,55],[22,9,22,15],[24,70,25,70],[24,71,25,71],[24,72,25,72],[24,80,25,81],[24,9,24,15],[24,16,24,17],[20,9,20,15],[20,16,20,23],[20,24,20,25],[20,26,20,31],[20,32,20,35],[20,37,20,39],[20,41,20,45],[20,46,20,53],[23,9,23,21],[23,22,23,35],[24,56,24,59],[23,88,23,89],[23,98,24,102],[23,109,24,110],[24,22,24,35],[24,36,24,43],[24,44,24,45],[24,46,24,53],[24,54,24,55],[25,98,32,98],[25,99,28,99],[25,109,32,109],[25,110,28,110],[27,22,27,35],[27,36,27,43],[27,44,27,45],[26,80,27,81],[26,82,27,82],[26,83,27,83],[26,84,27,84],[26,85,27,85],[26,86,27,87],[26,54,26,55],[26,60,27,66],[26,69,27,69],[26,9,26,15],[26,16,26,17],[26,22,26,35],[26,36,26,43],[26,44,26,45],[26,46,26,53],[24,90,25,91],[25,11,25,13],[25,15,25,18],[25,22,25,35],[25,36,25,43],[25,44,25,45],[24,82,25,82],[24,83,25,83],[24,84,25,84],[24,85,25,85],[24,86,25,87],[24,88,25,89],[24,60,25,66],[24,69,25,69],[26,88,27,89],[26,90,27,91],[27,11,27,13],[27,15,27,18],[28,82,29,82],[28,74,29,74],[28,75,29,75],[28,76,29,76],[28,77,29,77],[28,78,29,78],[28,83,29,83],[28,84,29,84],[28,85,29,85],[28,86,29,87],[28,54,28,55],[28,9,28,15],[28,16,28,17],[28,22,28,35],[28,36,28,43],[28,44,28,45],[28,46,28,53],[29,99,32,99],[30,70,31,70],[30,71,31,71],[30,72,31,72],[30,80,31,81],[30,82,31,82],[32,46,32,53],[32,54,32,55],[32,60,33,66],[32,69,33,69],[32,70,33,70],[32,71,33,71],[30,74,31,74],[30,75,31,75],[30,76,31,76],[30,77,31,77],[29,110,32,110],[30,9,30,15],[30,16,30,17],[30,22,30,35],[30,36,30,43],[30,44,30,45],[30,46,30,53],[30,54,30,55],[30,60,31,66],[28,88,29,89],[28,90,29,91],[29,11,29,13],[29,15,29,18],[29,22,29,35],[29,36,29,43],[29,44,29,45],[28,80,29,81],[30,83,31,83],[30,84,31,84],[30,85,31,85],[30,86,31,87],[30,88,31,89],[30,90,31,91],[30,69,31,69],[30,78,31,78],[32,74,33,74],[32,75,33,75],[32,76,33,76],[32,77,33,77],[32,78,33,78],[31,11,31,13],[31,15,31,18],[31,22,31,35],[31,36,31,43],[31,44,31,45],[32,9,32,15],[32,16,32,17],[32,22,32,35],[32,36,32,43],[32,44,32,45],[33,98,40,98],[33,99,36,99],[33,109,40,109],[33,110,36,110],[34,9,34,15],[34,16,34,17],[34,22,34,35],[34,36,34,43],[34,44,34,45],[34,46,34,53],[32,86,33,87],[32,88,33,89],[32,90,33,91],[33,11,33,13],[33,15,33,18],[33,22,33,35],[33,36,33,43],[33,44,33,45],[32,72,33,72],[32,80,33,81],[32,82,33,82],[32,83,33,83],[32,84,33,84],[32,85,33,85],[34,88,35,89],[34,90,35,91],[35,11,35,13],[35,15,35,18],[35,22,35,35],[35,36,35,43],[35,44,35,45],[34,80,35,81],[34,82,35,82],[34,83,35,83],[34,84,35,84],[34,85,35,85],[34,86,35,87],[34,54,34,55],[34,60,35,66],[34,69,35,69],[34,70,35,70],[34,71,35,71],[34,72,35,72],[34,74,35,74],[34,75,35,75],[34,76,35,76],[34,77,35,77],[34,78,35,78],[36,86,37,87],[36,54,36,55],[36,60,37,66],[36,69,37,69],[36,70,37,70],[36,71,37,71],[36,72,37,72],[36,9,36,15],[36,16,36,17],[36,22,36,35],[36,36,36,43],[36,44,36,45],[36,46,36,53],[36,74,37,74],[36,75,37,75],[36,76,37,76],[36,77,37,77],[36,78,37,78],[37,99,40,99],[37,110,40,110],[38,9,38,15],[38,16,38,17],[38,22,38,35],[38,36,38,43],[38,44,38,45],[38,46,38,53],[38,54,38,55],[38,60,39,66],[36,88,37,89],[36,90,37,91],[37,11,37,13],[37,15,37,18],[37,22,37,35],[37,36,37,43],[37,44,37,45],[37,46,37,53],[37,54,37,55],[36,80,37,81],[36,82,37,82],[36,83,37,83],[36,84,37,84],[36,85,37,85],[38,83,39,83],[38,84,39,84],[38,85,39,85],[38,86,39,87],[38,88,39,89],[38,90,39,91],[38,69,39,69],[38,70,39,70],[38,71,39,71],[38,72,39,72],[38,80,39,81],[38,82,39,82],[38,74,39,74],[38,75,39,75],[38,76,39,76],[38,77,39,77],[38,78,39,78],[40,70,41,70],[40,71,41,71],[40,72,41,72],[40,80,41,81],[39,54,39,55],[40,9,40,15],[40,16,40,17],[40,22,40,35],[40,36,40,43],[40,44,40,45],[40,46,40,53],[40,54,40,55],[39,11,39,13],[39,15,39,18],[39,22,39,35],[39,36,39,43],[39,44,39,45],[39,46,39,53],[40,74,41,74],[40,75,41,75],[40,76,41,76],[40,77,41,77],[40,78,41,78],[41,99,56,99],[41,109,60,109],[41,110,56,110],[42,9,42,15],[42,16,42,17],[42,22,42,35],[42,36,42,43],[42,44,42,45],[42,46,42,53],[40,90,41,91],[41,11,41,13],[41,15,41,18],[41,22,41,35],[41,36,41,43],[41,44,41,45],[41,46,41,53],[40,82,41,82],[40,83,41,83],[40,84,41,84],[40,85,41,85],[40,86,41,87],[40,88,41,89],[40,60,41,66],[40,69,41,69],[42,88,43,89],[42,90,43,91],[43,11,43,13],[43,15,43,18],[43,22,43,35],[43,36,43,43],[43,44,43,45],[43,46,43,53],[42,80,43,81],[42,82,43,82],[42,83,43,83],[42,84,43,84],[42,85,43,85],[42,86,43,87],[42,54,42,55],[42,60,43,66],[42,69,43,69],[42,70,43,70],[42,71,43,71],[42,72,43,72],[42,74,43,74],[42,75,43,75],[42,76,43,76],[42,77,43,77],[56,26,56,28],[56,29,56,42],[64,36,64,45],[57,99,60,99],[57,110,60,110],[58,9,58,15],[58,16,58,25],[58,26,58,28],[58,29,58,42],[58,43,58,52],[58,53,58,55],[60,9,61,15],[60,16,61,55],[57,9,57,15],[57,16,57,25],[57,26,57,28],[57,29,57,42],[57,43,57,52],[57,53,57,55],[56,43,56,52],[56,53,56,55],[56,9,56,15],[56,16,56,25],[41,98,60,98],[25,56,25,59],[26,56,26,59],[27,56,27,59],[28,56,28,59],[29,56,29,59],[30,56,30,59],[31,56,31,59],[32,56,32,59],[33,56,33,59],[34,56,34,59],[35,56,35,59],[36,56,36,59],[37,56,37,59],[38,56,38,59],[39,56,39,59],[40,56,40,59],[41,56,41,59],[42,56,42,59],[43,56,43,59],[44,56,44,59],[45,56,45,59],[46,56,46,59],[47,56,47,59],[48,56,48,59],[49,56,49,59],[50,56,50,59],[51,56,51,59]]}
[]
[]
[null,null,null,null,null,null,null,null,"施　　設　　利　　用　　申　　込　　書"]
[null,null,null,null,null,null,null,null,"施　設　利　用　料　減　免　承　認　申　請　書"]
[null,null,null,null,null,null,null,null,null,null,"施　設　利　用　料　等　領　収　書"]
[null,null,null,null,null,null,null,null,null,null,null,null,null,null,null,null,null,null,null,null,null,null,null,null,null,null,null,null,null,null,null,null,null,null,null,null,null,null,null,null,null,null,null,null,null,null,{"$f":"TODAY()","v":"2023-08-20"},null,null,null,null,null,null,null,null,null,null,null,null,null,null,null,null,null,null,null,null,null,null,null,null,null,null,{"$f":"P26","v":"00:00:00"},{"$f":"L26","v":"00:00:00"},{"$f":"BV6-BW6","v":"00:00:00"},{"$f":"BX6*24","v":0}]
[null,null,null,null,null,null,null,null,null,"　福岡県立総合プール　　所長　　殿",null,null,null,null,null,null,null,null,null,null,null,null,null,null,null,null,null,null,null,null,null,null,null,null,null,null,null,null,null,null,null,null,null,null,null,null,null,null,null,null,null,null,null,null,null,null,null,null,null,null,null,null,null,null,null,null,null,null,null,null,null,null,null,{"$f":"P28","v":"00:00:00"},{"$f":"L28","v":"00:00:00"},{"$f":"BV7-BW7","v":"00:00:00"},{"$f":"BX7*24","v":0}]
[null,null,null,null,null,null,null,null,null,"利用者",null,null,null,null,null,null,null,null,null,null,null,null,null,null,null,null,null,null,null,null,null,null,null,null,null,null,null,null,null,null,null,null,null,null,null,null,null,null,null,null,null,null,null,null,null,null,null,null,null,null,null,null,null,null,null,null,null,null,null,null,null,null,null,{"$f":"P30","v":"00:00:00"},{"$f":"L30","v":"00:00:00"},{"$f":"BV8-BW8","v":"00:00:00"},0]
[null,null,null,null,null,null,null,null,null,null,null,null,null,null,null,null,"所在地）",null,null,null,null,"〒",null,{"$f":"施設利用申込書!L24&施設利用申込書!O24&施設利用申込書!P24","v":"-"},null,null,null,null,null,null,null,null,null,null,null,null,null,null,null,null,null,null,null,null,null,null,null,null,null,null,null,null,null,null,null,null,null,null,null,null,null,null,null,null,null,null,null,null,null,null,null,null,null,{"$f":"P32","v":"00:00:00"},{"$f":"L32","v":"00:00:00"},"00:00:00",0]
[null,null,null,null,null,null,null,null,null,null,null,null,null,null,null,null,null,null,null,null,null,{"$f":"施設利用申込書!L25","v":0},null,null,null,null,null,null,null,null,null,null,null,null,null,null,null,null,null,null,null,null,null,null,null,null,null,null,null,null,null,null,null,null,null,null,null,null,null,"減免番号",null,null,null,null,null,null,null,null,null,null,null,null,null,{"$f":"P34","v":"00:00:00"},{"$f":"L34","v":"00:00:00"},"00:00:00",0]
[null,null,null,null,null,null,null,null,null,null,null,null,null,null,null,null,null,null,null,null,null,null,null,null,null,null,null,null,null,null,null,null,null,null,null,null,null,null,null,null,null,null,null,null,null,null,null,null,null,null,null,null,null,null,null,null,null,null,null,0,null,null,null,null,null,null,null,null,"有",null,null,null,null,{"$f":"P36","v":"00:00:00"},{"$f":"L36","v":"00:00:00"},"00:00:00",0]
[null,null,null,null,null,null,null,null,null,null,null,null,null,null,null,null,"名　称　）",null,null,null,null,{"$f":"施設利用申込書!I11","v":0},null,null,null,null,null,null,null,null,null,null,null,null,null,null,null,null,null,null,null,null,null,null,null,null,null,null,null,null,null,null,null,null,null,null,null,null,null,null,null,null,null,null,null,null,null,null,"無",null,null,null,null,{"$f":"P38","v":"00:00:00"},{"$f":"L38","v":"00:00:00"},{"$f":"BV12-BW12","v":"00:00:00"},0]
[null,null,null,null,null,null,null,null,null,null,null,null,null,null,null,null,null,null,null,null,null,null,null,null,null,null,null,null,null,null,null,null,null,null,null,null,null,null,null,null,null,null,null,null,null,null,null,null,null,null,null,null,null,null,null,null,null,null,null,null,null,null,null,null,null,null,null,null,null,null,null,null,null,{"$f":"P40","v":"00:00:00"},{"$f":"L40","v":"00:00:00"},"00:00:00",0]
[null,null,null,null,null,null,null,null,null,null,null,null,null,null,null,null,"電　話　）",null,null,null,null,{"$f":"施設利用申込書!BK18","v":"00"},null,null,null,null,null,null,null,null,null,null,null,null,null,null,null,null,null,null,null,null,null,null,null,null,null,null,null,null,null,null,null,null,null,null,null,null,null,null,null,null,null,null,null,null,null,null,null,null,null,null,null,{"$f":"P42","v":"00:00:00"},{"$f":"L42","v":"00:00:00"},{"$f":"BV14-BW14","v":"00:00:00"},0]
[null,null,null,null,null,null,null,null,null,null,null,null,null,null,null,null,null,null,null,null,null,null,null,null,null,null,null,null,null,null,null,null,null,null,null,null,null,null,null,null,null,null,null,null,null,null,null,null,null,null,null,null,null,null,null,null,null,null,null,null,null,null,null,null,null,null,null,null,null,null,null,null,null,{"$f":"P44","v":"00:00:00"},{"$f":"L44","v":"00:00:00"},"00:00:00",0]
[null,null,null,null,null,null,null,null,null,"主催者名",null,null,null,null,null,null,{"$f":"施設利用申込書!I22","v":0},null,null,null,null,null,null,null,null,null,null,null,null,null,null,null,null,null,null,null,null,null,null,null,null,null,null,null,null,null,null,null,null,null,null,null,null,null,null,null,null,null,null,null,null,null,null,null,null,null,null,null,null,null,null,null,null,{"$f":"P46","v":"00:00:00"},{"$f":"L46","v":"00:00:00"},{"$f":"BV16-BW16","v":"00:00:00"},0]
[null,null,null,null,null,null,null,null,null,"後援者名",null,null,null,null,null,null,{"$f":"施設利用申込書!I23","v":0},null,null,null,null,null,null,null,null,null,null,null,null,null,null,null,null,null,null,null,null,null,null,null,null,null,null,null,null,null,null,null,null,null,null,null,null,null,null,null,null,null,null,null,null,null,null,null,null,null,null,null,null,null,null,null,null,{"$f":"P48","v":"00:00:00"},{"$f":"L48","v":"00:00:00"},"00:00:00",0]
[null,null,null,null,null,null,null,null,null,"代表職氏名",null,null,null,null,null,null,null,null,null,null,null,null,null,null,null,null,null,null,null,null,null,null,null,null,null,null,null,null,null,null,null,null,null,null,null,null,null,null,null,null,null,null,null,null,null,null,null,null,null,null,null,null,null,null,null,null,null,null,null,null,null,null,null,{"$f":"P50","v":"00:00:00"},{"$f":"L50","v":"00:00:00"},"00:00:00",0]
[null,null,null,null,null,null,null,null,null,"責任者名",null,null,null,null,null,null,{"$f":"施設利用申込書!I14","v":0},null,null,null,null,null,null,null,null,null,null,null,null,null,null,null,null,null,null,null,null,null,null,null,null,null,null,null,null,null,null,null,null,null,null,null,null,null,null,null,null,null,null,null,null,null,null,null,null,null,null,null,null,null,null,null,null,{"$f":"P52","v":"00:00:00"},{"$f":"L52","v":"00:00:00"},"00:00:00",0]
[null,null,null,null,null,null,null,null,null,"利用目的",null,null,null,null,null,null,{"$f":"施設利用申込書!I18","v":0},null,null,null,null,null,null,null,null,null,null,null,null,null,null,null,null,null,null,null,null,null,null,null,null,null,null,null,null,null,null,null,null,null,null,null,null,null,null,null,null,null,null,null,null,null,null,null,null,null,null,null,null,null,null,null,null,{"$f":"P54","v":"00:00:00"},{"$f":"L54","v":"00:00:00"},"00:00:00",0]
[null,null,null,null,null,null,null,null,null,"利用人員",null,null,null,null,null,null,{"$f":"施設利用申込書!G19+施設利用申込書!U19","v":0},null,null,null,null,null,null,null,"人",null,"区分",null,null,null,null,null,{"$f":"施設利用申込書!BU20","v":{"$error":"#N/A"}},null,null,null,"(",{"$f":"施設利用申込書!I20","v":0},null,null,")","金額",null,null,null,null,{"$f":"施設利用申込書!N20","v":0},null,null,null,null,null,null,null,"円",null,null,null,null,null,null,null,null,null,null,null,null,null,null,null,null,null,null,{"$f":"P56","v":"00:00:00"},{"$f":"L56","v":"00:00:00"},{"$f":"BV21-BW21","v":"00:00:00"},0]
[null,null,null,null,null,null,null,null,null,"減免",null,null,null,null,null,null,{"$f":"施設利用申込書!I20","v":0},null,{"$f":"IFERROR(_xlfn.SWITCH(Q22,\"有\",\"福岡県立体育・スポーツ施設使用料条例施行規則\",\"無\",\"\"),\"\")","v":""},null,null,null,null,null,null,null,null,null,null,null,null,null,null,null,null,null,null,null,null,null,null,{"$f":"IFERROR(_xlfn.SWITCH(BH11,\"無\",\"\",1,\"第五条第1項第一号\",2,\"第五条第1項第二号\",3,\"第五条第1項第三号\",4,\"第五条第1項第四号\",5,\"第五条第1項第五号\"),\"\")","v":""}]
[]
[null,null,null,null,null,null,null,null,null,"利用日時",null,null,null,null,null,null,null,null,null,null,null,null,"利用施設",null,null,null,null,null,null,null,null,null,null,null,null,null,"使用料減免額",null,null,null,null,null,null,null,null,null,"減免後使用料",null,null,null,null,null,null,null,null,null,null,null,null,null,"減免前金額",null,null,null,null,null,null,null,null,"区分","平祝","施設","時間","利用時間","会議室","飛込","超過料金\n(1時間当たり)",null,null,null,null,null,"区分","平祝","施設","時間","コード",null,"折り返し値",null,null,null,null,null,null,null,null,null,"料金表",null,null,null,null,"A","B","C","D","E","F","コード表",null,"A","B","C","D","E","F"]
[null,null,null,null,null,null,null,null,null,{"$f":"施設利用申込書!A29","v":"00:00:00"},null,null,null,null,null,null,{"$f":"施設利用申込書!F29","v":""},null,null,null,null,null,{"$f":"施設利用申込書!I29","v":0},null,null,null,null,null,null,null,null,null,null,null,null,null,{"$f":"BI25","v":""},null,null,null,null,null,null,null,"円",null,null,null,null,null,null,null,null,null,"円",null,{"$f":"BI25*0.5","v":{"$error":"#VALUE!"}},null,null,null,{"$f":"IFERROR(VLOOKUP(CI25,料金マスタ!$A$2:$B$145,2,),\"\")","v":""},null,null,null,null,null,null,"始",{"$f":"L26","v":"00:00:00"},null,null,null,null,{"$f":"BY6","v":0},{"$f":"BV25*560","v":0},{"$f":"5690*BW25","v":0},{"$f":"IFERROR(BI25/BW25*1.5,\"\")","v":""},null,null,null,null,null,{"$f":"_xlfn.SWITCH(BR25,\"アマ\",1,\"入徴\",2,\"プロ\",3,\"\")","v":""},{"$f":"_xlfn.SWITCH(BS25,\"平日\",1,\"休日\",2,\"\")","v":""},{"$f":"_xlfn.SWITCH(BT25,\"50ｍ\",1,\"25ｍ夏\",2,\"25ｍ冬\",3,\"スケ\",4,\"\")","v":""},{"$f":"_xlfn.SWITCH(BU25,\"A\",1,\"B\",2,\"C\",3,\"D\",4,\"E\",5,\"F\",6,\"\")","v":""},null,null,{"$f":"CE25&CF25&CG25&CH25","v":""},null,1134,null,null,null,null,null,null,null,null,null,null,null,null,"9-13","13-17","17-21","9-17","13-21","9-21",null,null,"9-13","13-17","17-21","9-17","13-21","9-21"]
[null,null,null,null,null,null,null,null,null,null,null,{"$f":"施設利用申込書!R29","v":"00:00:00"},null,null,"～",{"$f":"施設利用申込書!X29","v":"00:00:00"},null,null,null,null,null,null,null,null,null,null,null,null,null,null,null,null,null,null,null,null,null,null,null,null,null,null,null,null,"円",null,null,null,null,null,null,null,null,null,null,null,{"$f":"BI25*0.2","v":{"$error":"#VALUE!"}},null,null,null,null,null,null,null,null,null,null,"終",{"$f":"P26","v":"00:00:00"},null,null,null,null,null,null,null,null,null,null,null,null,null,null,null,null,null,null,null,null,null,null,null,null,null,null,null,null,null,"アマ","平日",null,"50ｍ",1,50120,50120,62650,100250,112780,162910,"アマ","平日",1111,1112,1113,1114,1115,1116]
[null,null,null,null,null,null,null,null,null,{"$f":"施設利用申込書!A30","v":"00:00:00"},null,null,null,null,null,null,{"$f":"施設利用申込書!F31","v":""},null,null,null,null,null,{"$f":"施設利用申込書!I30","v":0},null,null,null,null,null,null,null,null,null,null,null,null,null,{"$f":"BI27","v":""},null,null,null,null,null,null,null,"円",null,null,null,null,null,null,null,null,null,"円",null,{"$f":"BI27*0.5","v":{"$error":"#VALUE!"}},null,null,null,{"$f":"IFERROR(VLOOKUP(CI27,料金マスタ!$A$2:$B$145,2,),\"\")","v":""},null,null,null,null,null,null,null,null,null,null,null,null,{"$f":"BY7","v":0},{"$f":"BV27*560","v":0},{"$f":"5690*BW27","v":0},{"$f":"IFERROR(BI27/BW27*1.5,\"\")","v":""},null,null,null,null,null,{"$f":"_xlfn.SWITCH(BR27,\"アマ\",1,\"入徴\",2,\"プロ\",3,\"\")","v":""},{"$f":"_xlfn.SWITCH(BS27,\"平日\",1,\"休日\",2,\"\")","v":""},{"$f":"_xlfn.SWITCH(BT27,\"50ｍ\",1,\"25ｍ夏\",2,\"25ｍ冬\",3,\"スケ\",4,\"\")","v":""},{"$f":"_xlfn.SWITCH(BU27,\"A\",1,\"B\",2,\"C\",3,\"D\",4,\"E\",5,\"F\",6,\"\")","v":""},null,null,{"$f":"CE27&CF27&CG27&CH27","v":""},null,null,null,null,null,null,null,null,null,null,null,"夏","25ｍ夏",2,34170,34170,42150,68350,76330,110510,null,null,1121,1122,1123,1124,1125,1126]
[null,null,null,null,null,null,null,null,null,null,null,{"$f":"施設利用申込書!R30","v":"00:00:00"},null,null,"～",{"$f":"施設利用申込書!X30","v":"00:00:00"},null,null,null,null,null,null,null,null,null,null,null,null,null,null,null,null,null,null,null,null,null,null,null,null,null,null,null,null,"円",null,null,null,null,null,null,null,null,null,null,null,{"$f":"BI27*0.2","v":{"$error":"#VALUE!"}},null,null,null,null,null,null,null,null,null,null,null,null,null,null,null,null,null,null,null,null,null,null,null,null,null,null,null,null,null,null,null,null,null,null,null,null,null,null,null,null,null,null,null,"冬","25ｍ冬",3,51260,51260,63790,102530,115060,166330,null,null,1131,1132,1133,1134,1135,1136]
[null,null,null,null,null,null,null,null,null,{"$f":"施設利用申込書!A31","v":"00:00:00"},null,null,null,null,null,null,{"$f":"施設利用申込書!F31","v":""},null,null,null,null,null,{"$f":"施設利用申込書!I31","v":0},null,null,null,null,null,null,null,null,null,null,null,null,null,{"$f":"BI29","v":""},null,null,null,null,null,null,null,"円",null,null,null,null,null,null,null,null,null,"円",null,{"$f":"BI29*0.5","v":{"$error":"#VALUE!"}},null,null,null,{"$f":"IFERROR(VLOOKUP(CI29,料金マスタ!$A$2:$B$145,2,),\"\")","v":""},null,null,null,null,null,null,null,null,null,null,null,null,{"$f":"BY8","v":0},{"$f":"BV29*560","v":0},{"$f":"5690*BW29","v":0},{"$f":"IFERROR(BI29/BW29*1.5,\"\")","v":""},null,null,null,null,null,{"$f":"_xlfn.SWITCH(BR29,\"アマ\",1,\"入徴\",2,\"プロ\",3,\"\")","v":""},{"$f":"_xlfn.SWITCH(BS29,\"平日\",1,\"休日\",2,\"\")","v":""},{"$f":"_xlfn.SWITCH(BT29,\"50ｍ\",1,\"25ｍ夏\",2,\"25ｍ冬\",3,\"スケ\",4,\"\")","v":""},{"$f":"_xlfn.SWITCH(BU29,\"A\",1,\"B\",2,\"C\",3,\"D\",4,\"E\",5,\"F\",6,\"\")","v":""},null,null,{"$f":"CE29&CF29&CG29&CH29","v":""},null,null,null,null,null,null,null,null,null,null,null,null,"スケ",4,66070,66070,83160,132150,149240,215320,null,null,1141,1142,1143,1144,1145,1146]
[null,null,null,null,null,null,null,null,null,null,null,{"$f":"施設利用申込書!R31","v":"00:00:00"},null,null,"～",{"$f":"施設利用申込書!X31","v":"00:00:00"},null,null,null,null,null,null,null,null,null,null,null,null,null,null,null,null,null,null,null,null,null,null,null,null,null,null,null,null,"円",null,null,null,null,null,null,null,null,null,null,null,{"$f":"BI29*0.2","v":{"$error":"#VALUE!"}},null,null,null,null,null,null,null,null,null,null,null,null,null,null,null,null,null,null,null,null,null,null,null,null,null,null,null,null,null,null,null,null,null,null,null,null,null,null,null,null,null,null,"休日",null,"50ｍ",5,{"$f":"CZ26*1.2","v":60144},{"$f":"DA26*1.2","v":60144},75180,120300,135336,195492,null,"休日",1211,1212,1213,1214,1215,1216]
[null,null,null,null,null,null,null,null,null,{"$f":"施設利用申込書!A32","v":"00:00:00"},null,null,null,null,null,null,{"$f":"施設利用申込書!F32","v":""},null,null,null,null,null,{"$f":"施設利用申込書!I32","v":0},null,null,null,null,null,null,null,null,null,null,null,null,null,{"$f":"BI31","v":""},null,null,null,null,null,null,null,"円",null,null,null,null,null,null,null,null,null,"円",null,{"$f":"BI31*0.5","v":{"$error":"#VALUE!"}},null,null,null,{"$f":"IFERROR(VLOOKUP(CI31,料金マスタ!$A$2:$B$145,2,),\"\")","v":""},null,null,null,null,null,null,null,null,null,null,null,null,{"$f":"BY9","v":0},{"$f":"BV31*560","v":0},{"$f":"5690*BW31","v":0},{"$f":"IFERROR(BI31/BW31*1.5,\"\")","v":""},null,null,null,null,null,{"$f":"_xlfn.SWITCH(BR31,\"アマ\",1,\"入徴\",2,\"プロ\",3,\"\")","v":""},{"$f":"_xlfn.SWITCH(BS31,\"平日\",1,\"休日\",2,\"\")","v":""},{"$f":"_xlfn.SWITCH(BT31,\"50ｍ\",1,\"25ｍ夏\",2,\"25ｍ冬\",3,\"スケ\",4,\"\")","v":""},{"$f":"_xlfn.SWITCH(BU31,\"A\",1,\"B\",2,\"C\",3,\"D\",4,\"E\",5,\"F\",6,\"\")","v":""},null,null,{"$f":"CE31&CF31&CG31&CH31","v":""},null,null,null,null,null,null,null,null,null,null,null,null,"25ｍ夏",6,{"$f":"CZ27*1.2","v":41004},41004,50580,82020,91596,132612,null,null,1221,1222,1223,1224,1225,1226]
[null,null,null,null,null,null,null,null,null,null,null,{"$f":"施設利用申込書!R32","v":"00:00:00"},null,null,"～",{"$f":"施設利用申込書!X32","v":"00:00:00"},null,null,null,null,null,null,null,null,null,null,null,null,null,null,null,null,null,null,null,null,null,null,null,null,null,null,null,null,"円",null,null,null,null,null,null,null,null,null,null,null,{"$f":"BI31*0.2","v":{"$error":"#VALUE!"}},null,null,null,null,null,null,null,null,null,null,null,null,null,null,null,null,null,null,null,null,null,null,null,null,null,null,null,null,null,null,null,null,null,null,null,null,null,null,null,null,null,null,null,null,"25ｍ冬",7,61512,61512,76548,123036,138072,199596,null,null,1231,1232,1233,1234,1235,1236]
[null,null,null,null,null,null,null,null,null,{"$f":"施設利用申込書!A33","v":"00:00:00"},null,null,null,null,null,null,{"$f":"施設利用申込書!F33","v":""},null,null,null,null,null,{"$f":"施設利用申込書!I33","v":0},null,null,null,null,null,null,null,null,null,null,null,null,null,{"$f":"BI33","v":""},null,null,null,null,null,null,null,"円",null,null,null,null,null,null,null,null,null,"円",null,{"$f":"BI33*0.5","v":{"$error":"#VALUE!"}},null,null,null,{"$f":"IFERROR(VLOOKUP(CI33,料金マスタ!$A$2:$B$145,2,),\"\")","v":""},null,null,null,null,null,null,null,null,null,null,null,null,{"$f":"BY10","v":0},{"$f":"BV33*560","v":0},{"$f":"5690*BW33","v":0},{"$f":"IFERROR(BI33/BW33*1.5,\"\")","v":""},null,null,null,null,null,{"$f":"_xlfn.SWITCH(BR33,\"アマ\",1,\"入徴\",2,\"プロ\",3,\"\")","v":""},{"$f":"_xlfn.SWITCH(BS33,\"平日\",1,\"休日\",2,\"\")","v":""},{"$f":"_xlfn.SWITCH(BT33,\"50ｍ\",1,\"25ｍ夏\",2,\"25ｍ冬\",3,\"スケ\",4,\"\")","v":""},{"$f":"_xlfn.SWITCH(BU33,\"A\",1,\"B\",2,\"C\",3,\"D\",4,\"E\",5,\"F\",6,\"\")","v":""},null,null,{"$f":"CE33&CF33&CG33&CH33","v":""},null,null,null,null,null,null,null,null,null,null,null,null,"スケ",8,{"$f":"CZ29*1.2","v":79284},79284,99792,158580,179088,258384,null,null,1241,1242,1243,1244,1245,1246]
[null,null,null,null,null,null,null,null,null,null,null,{"$f":"施設利用申込書!R33","v":"00:00:00"},null,null,"～",{"$f":"施設利用申込書!X33","v":"00:00:00"},null,null,null,null,null,null,null,null,null,null,null,null,null,null,null,null,null,null,null,null,null,null,null,null,null,null,null,null,"円",null,null,null,null,null,null,null,null,null,null,null,{"$f":"BI33*0.2","v":{"$error":"#VALUE!"}},null,null,null,null,null,null,null,null,null,null,null,null,null,null,null,null,null,null,null,null,null,null,null,null,null,null,null,null,null,null,null,null,null,null,null,null,null,null,null,null,null,"入徴","平日",null,"50ｍ",1,150380,150380,187980,300770,338360,488750,"入徴","平日",2111,2112,2113,2114,2115,2116]
[null,null,null,null,null,null,null,null,null,{"$f":"施設利用申込書!A34","v":"00:00:00"},null,null,null,null,null,null,{"$f":"施設利用申込書!F34","v":""},null,null,null,null,null,{"$f":"施設利用申込書!I34","v":0},null,null,null,null,null,null,null,null,null,null,null,null,null,{"$f":"BI35","v":""},null,null,null,null,null,null,null,"円",null,null,null,null,null,null,null,null,null,"円",null,{"$f":"BI35*0.5","v":{"$error":"#VALUE!"}},null,null,null,{"$f":"IFERROR(VLOOKUP(CI35,料金マスタ!$A$2:$B$145,2,),\"\")","v":""},null,null,null,null,null,null,null,null,null,null,null,null,{"$f":"BY14","v":0},{"$f":"BV35*560","v":0},{"$f":"5690*BW35","v":0},{"$f":"IFERROR(BI35/BW35*1.5,\"\")","v":""},null,null,null,null,null,{"$f":"_xlfn.SWITCH(BR35,\"アマ\",1,\"入徴\",2,\"プロ\",3,\"\")","v":""},{"$f":"_xlfn.SWITCH(BS35,\"平日\",1,\"休日\",2,\"\")","v":""},{"$f":"_xlfn.SWITCH(BT35,\"50ｍ\",1,\"25ｍ夏\",2,\"25ｍ冬\",3,\"スケ\",4,\"\")","v":""},{"$f":"_xlfn.SWITCH(BU35,\"A\",1,\"B\",2,\"C\",3,\"D\",4,\"E\",5,\"F\",6,\"\")","v":""},null,null,{"$f":"CE35&CF35&CG35&CH35","v":""},null,null,null,null,null,null,null,null,null,null,null,"夏","25ｍ夏",2,102530,102530,126460,205070,228990,331530,null,null,2121,2122,2123,2124,2125,2126]
[null,null,null,null,null,null,null,null,null,null,null,{"$f":"施設利用申込書!R34","v":"00:00:00"},null,null,"～",{"$f":"施設利用申込書!X34","v":"00:00:00"},null,null,null,null,null,null,null,null,null,null,null,null,null,null,null,null,null,null,null,null,null,null,null,null,null,null,null,null,"円",null,null,null,null,null,null,null,null,null,null,null,{"$f":"BI35*0.2","v":{"$error":"#VALUE!"}},null,null,null,null,null,null,null,null,null,null,null,null,null,null,null,null,null,null,null,null,null,null,null,null,null,null,null,null,null,null,null,null,null,null,null,null,null,null,null,null,null,null,null,"冬","25ｍ冬",3,153800,153800,191400,307600,345200,499000,null,null,2131,2132,2133,2134,2135,2136]
[null,null,null,null,null,null,null,null,null,{"$f":"施設利用申込書!A35","v":"00:00:00"},null,null,null,null,null,null,{"$f":"施設利用申込書!F35","v":""},null,null,null,null,null,{"$f":"施設利用申込書!I35","v":0},null,null,null,null,null,null,null,null,null,null,null,null,null,{"$f":"BI37","v":""},null,null,null,null,null,null,null,"円",null,null,null,null,null,null,null,null,null,"円",null,{"$f":"BI37*0.5","v":{"$error":"#VALUE!"}},null,null,null,{"$f":"IFERROR(VLOOKUP(CI37,料金マスタ!$A$2:$B$145,2,),\"\")","v":""},null,null,null,null,null,null,null,null,null,null,null,null,{"$f":"BY11","v":0},{"$f":"BV37*560","v":0},{"$f":"5690*BW37","v":0},{"$f":"IFERROR(BI37/BW37*1.5,\"\")","v":""},null,null,null,null,null,{"$f":"_xlfn.SWITCH(BR37,\"アマ\",1,\"入徴\",2,\"プロ\",3,\"\")","v":""},{"$f":"_xlfn.SWITCH(BS37,\"平日\",1,\"休日\",2,\"\")","v":""},{"$f":"_xlfn.SWITCH(BT37,\"50ｍ\",1,\"25ｍ夏\",2,\"25ｍ冬\",3,\"スケ\",4,\"\")","v":""},{"$f":"_xlfn.SWITCH(BU37,\"A\",1,\"B\",2,\"C\",3,\"D\",4,\"E\",5,\"F\",6,\"\")","v":""},null,null,{"$f":"CE37&CF37&CG37&CH37","v":""},null,null,null,null,null,null,null,null,null,null,null,null,"スケ",4,198230,198230,249500,396470,447740,645970,null,null,2141,2142,2143,2144,2145,2146]
[null,null,null,null,null,null,null,null,null,null,null,{"$f":"施設利用申込書!R35","v":"00:00:00"},null,null,"～",{"$f":"施設利用申込書!X35","v":"00:00:00"},null,null,null,null,null,null,null,null,null,null,null,null,null,null,null,null,null,null,null,null,null,null,null,null,null,null,null,null,"円",null,null,null,null,null,null,null,null,null,null,null,{"$f":"BI37*0.2","v":{"$error":"#VALUE!"}},null,null,null,null,null,null,null,null,null,null,null,null,null,null,null,null,null,null,null,null,null,null,null,null,null,null,null,null,null,null,null,null,null,null,null,null,null,null,null,null,null,null,"休日",null,"50ｍ",5,{"$f":"CZ34*1.2","v":180456},{"$f":"DA34*1.2","v":180456},225576,360924,406032,586500,null,"休日",2211,2212,2213,2214,2215,2216]
[null,null,null,null,null,null,null,null,null,{"$f":"施設利用申込書!A36","v":"00:00:00"},null,null,null,null,null,null,{"$f":"施設利用申込書!F36","v":""},null,null,null,null,null,{"$f":"施設利用申込書!I36","v":0},null,null,null,null,null,null,null,null,null,null,null,null,null,{"$f":"BI39","v":""},null,null,null,null,null,null,null,"円",null,null,null,null,null,null,null,null,null,"円",null,{"$f":"BI39*0.5","v":{"$error":"#VALUE!"}},null,null,null,{"$f":"IFERROR(VLOOKUP(CI39,料金マスタ!$A$2:$B$145,2,),\"\")","v":""},null,null,null,null,null,null,null,null,null,null,null,null,{"$f":"BY19","v":0},{"$f":"BV39*560","v":0},{"$f":"5690*BW39","v":0},{"$f":"IFERROR(BI39/BW39*1.5,\"\")","v":""},null,null,null,null,null,{"$f":"_xlfn.SWITCH(BR39,\"アマ\",1,\"入徴\",2,\"プロ\",3,\"\")","v":""},{"$f":"_xlfn.SWITCH(BS39,\"平日\",1,\"休日\",2,\"\")","v":""},{"$f":"_xlfn.SWITCH(BT39,\"50ｍ\",1,\"25ｍ夏\",2,\"25ｍ冬\",3,\"スケ\",4,\"\")","v":""},{"$f":"_xlfn.SWITCH(BU39,\"A\",1,\"B\",2,\"C\",3,\"D\",4,\"E\",5,\"F\",6,\"\")","v":""},null,null,{"$f":"CE39&CF39&CG39&CH39","v":""},null,null,null,null,null,null,null,null,null,null,null,null,"25ｍ夏",6,{"$f":"CZ35*1.2","v":123036},123036,151752,246084,274788,397836,null,null,2221,2222,2223,2224,2225,2226]
[null,null,null,null,null,null,null,null,null,null,null,{"$f":"施設利用申込書!R36","v":"00:00:00"},null,null,"～",{"$f":"施設利用申込書!X36","v":"00:00:00"},null,null,null,null,null,null,null,null,null,null,null,null,null,null,null,null,null,null,null,null,null,null,null,null,null,null,null,null,"円",null,null,null,null,null,null,null,null,null,null,null,{"$f":"BI39*0.2","v":{"$error":"#VALUE!"}},null,null,null,null,null,null,null,null,null,null,null,null,null,null,null,null,null,null,null,null,null,null,null,null,null,null,null,null,null,null,null,null,null,null,null,null,null,null,null,null,null,null,null,null,"25ｍ冬",7,184560,184560,229680,369120,414240,598800,null,null,2231,2232,2233,2234,2235,2236]
[null,null,null,null,null,null,null,null,null,{"$f":"施設利用申込書!A37","v":"00:00:00"},null,null,null,null,null,null,{"$f":"施設利用申込書!F37","v":""},null,null,null,null,null,{"$f":"施設利用申込書!I37","v":0},null,null,null,null,null,null,null,null,null,null,null,null,null,{"$f":"BI41","v":""},null,null,null,null,null,null,null,"円",null,null,null,null,null,null,null,null,null,"円",null,{"$f":"BI41*0.5","v":{"$error":"#VALUE!"}},null,null,null,{"$f":"IFERROR(VLOOKUP(CI41,料金マスタ!$A$2:$B$145,2,),\"\")","v":""},null,null,null,null,null,null,null,null,null,null,null,null,{"$f":"BY12","v":0},{"$f":"BV41*560","v":0},{"$f":"5690*BW41","v":0},{"$f":"IFERROR(BI41/BW41*1.5,\"\")","v":""},null,null,null,null,null,{"$f":"_xlfn.SWITCH(BR41,\"アマ\",1,\"入徴\",2,\"プロ\",3,\"\")","v":""},{"$f":"_xlfn.SWITCH(BS41,\"平日\",1,\"休日\",2,\"\")","v":""},{"$f":"_xlfn.SWITCH(BT41,\"50ｍ\",1,\"25ｍ夏\",2,\"25ｍ冬\",3,\"スケ\",4,\"\")","v":""},{"$f":"_xlfn.SWITCH(BU41,\"A\",1,\"B\",2,\"C\",3,\"D\",4,\"E\",5,\"F\",6,\"\")","v":""},null,null,{"$f":"CE41&CF41&CG41&CH41","v":""},null,null,null,null,null,null,null,null,null,null,null,null,"スケ",8,{"$f":"CZ37*1.2","v":237876},237876,299400,475764,537288,775164,null,null,2241,2242,2243,2244,2245,2246]
[null,null,null,null,null,null,null,null,null,null,null,{"$f":"施設利用申込書!R37","v":"00:00:00"},null,null,"～",{"$f":"施設利用申込書!X37","v":"00:00:00"},null,null,null,null,null,null,null,null,null,null,null,null,null,null,null,null,null,null,null,null,null,null,null,null,null,null,null,null,"円",null,null,null,null,null,null,null,null,null,null,null,{"$f":"BI41*0.2","v":{"$error":"#VALUE!"}},null,null,null,null,null,null,null,null,null,null,null,null,null,null,null,null,null,null,null,null,null,null,null,null,null,null,null,null,null,null,null,null,null,null,null,null,null,null,null,null,null,"プロ","平日",null,"50ｍ",1,300770,300770,975960,601540,676730,977500,"プロ","平日",3111,3112,3113,3114,3115,3116]
[null,null,null,null,null,null,null,null,null,{"$f":"施設利用申込書!A38","v":"00:00:00"},null,null,null,null,null,null,{"$f":"施設利用申込書!F38","v":""},null,null,null,null,null,{"$f":"施設利用申込書!I38","v":0},null,null,null,null,null,null,null,null,null,null,null,null,null,{"$f":"BI43","v":""},null,null,null,null,null,null,null,"円",null,null,null,null,null,null,null,null,null,"円",null,{"$f":"BI43*0.5","v":{"$error":"#VALUE!"}},null,null,null,{"$f":"IFERROR(VLOOKUP(CI43,料金マスタ!$A$2:$B$145,2,),\"\")","v":""},null,null,null,null,null,null,null,null,null,null,null,null,{"$f":"BY13","v":0},{"$f":"BV43*560","v":0},{"$f":"5690*BW43","v":0},{"$f":"IFERROR(BI43/BW43*1.5,\"\")","v":""},null,null,null,null,null,{"$f":"_xlfn.SWITCH(BR43,\"アマ\",1,\"入徴\",2,\"プロ\",3,\"\")","v":""},{"$f":"_xlfn.SWITCH(BS43,\"平日\",1,\"休日\",2,\"\")","v":""},{"$f":"_xlfn.SWITCH(BT43,\"50ｍ\",1,\"25ｍ夏\",2,\"25ｍ冬\",3,\"スケ\",4,\"\")","v":""},{"$f":"_xlfn.SWITCH(BU43,\"A\",1,\"B\",2,\"C\",3,\"D\",4,\"E\",5,\"F\",6,\"\")","v":""},null,null,{"$f":"CE43&CF43&CG43&CH43","v":""},null,null,null,null,null,null,null,null,null,null,null,"夏","25ｍ夏",2,102530,102530,126460,205070,228990,331530,null,null,3121,3122,3123,3124,3125,3126]
[null,null,null,null,null,null,null,null,null,null,null,{"$f":"施設利用申込書!R38","v":"00:00:00"},null,null,"～",{"$f":"施設利用申込書!X38","v":"00:00:00"},null,null,null,null,null,null,null,null,null,null,null,null,null,null,null,null,null,null,null,null,null,null,null,null,null,null,null,null,"円",null,null,null,null,null,null,null,null,null,null,null,{"$f":"BI43*0.2","v":{"$error":"#VALUE!"}},null,null,null,null,null,null,null,null,null,null,null,null,null,null,null,null,null,null,null,null,null,null,null,null,null,null,null,null,null,null,null,null,null,null,null,null,null,null,null,null,null,null,null,"冬","25ｍ冬",3,153800,153800,191400,307600,345200,499000,null,null,3131,3132,3133,3134,3135,3136]
[null,null,null,null,null,null,null,null,null,{"$f":"施設利用申込書!A39","v":"00:00:00"},null,null,null,null,null,null,{"$f":"施設利用申込書!F40","v":""},null,null,null,null,null,{"$f":"施設利用申込書!I40","v":0},null,null,null,null,null,null,null,null,null,null,null,null,null,{"$f":"BI45","v":""},null,null,null,null,null,null,null,"円",null,null,null,null,null,null,null,null,null,"円",null,{"$f":"BI45*0.5","v":{"$error":"#VALUE!"}},null,null,null,{"$f":"IFERROR(VLOOKUP(CI45,料金マスタ!$A$2:$B$145,2,),\"\")","v":""},null,null,null,null,null,null,null,null,null,null,null,null,{"$f":"BY14","v":0},{"$f":"BV45*560","v":0},{"$f":"5690*BW45","v":0},{"$f":"IFERROR(BI45/BW45*1.5,\"\")","v":""},null,null,null,null,null,{"$f":"_xlfn.SWITCH(BR45,\"アマ\",1,\"入徴\",2,\"プロ\",3,\"\")","v":""},{"$f":"_xlfn.SWITCH(BS45,\"平日\",1,\"休日\",2,\"\")","v":""},{"$f":"_xlfn.SWITCH(BT45,\"50ｍ\",1,\"25ｍ夏\",2,\"25ｍ冬\",3,\"スケ\",4,\"\")","v":""},{"$f":"_xlfn.SWITCH(BU45,\"A\",1,\"B\",2,\"C\",3,\"D\",4,\"E\",5,\"F\",6,\"\")","v":""},null,null,null,null,null,null,null,null,null,null,null,null,null,null,"夏","25ｍ夏",2,102530,102530,126460,205070,228990,331530,null,null,3121,3122,3123,3124,3125,3126]
[null,null,null,null,null,null,null,null,null,null,null,{"$f":"施設利用申込書!R39","v":"00:00:00"},null,null,"～",{"$f":"施設利用申込書!X39","v":"00:00:00"},null,null,null,null,null,null,null,null,null,null,null,null,null,null,null,null,null,null,null,null,null,null,null,null,null,null,null,null,"円",null,null,null,null,null,null,null,null,null,null,null,{"$f":"BI45*0.2","v":{"$error":"#VALUE!"}},null,null,null,null,null,null,null,null,null,null,null,null,null,null,null,null,null,null,null,null,null,null,null,null,null,null,null,null,null,null,null,null,null,null,null,null,null,null,null,null,null,null,null,"冬","25ｍ冬",3,153800,153800,191400,307600,345200,499000,null,null,3131,3132,3133,3134,3135,3136]
[null,null,null,null,null,null,null,null,null,{"$f":"施設利用申込書!A40","v":"00:00:00"},null,null,null,null,null,null,{"$f":"施設利用申込書!F42","v":""},null,null,null,null,null,{"$f":"施設利用申込書!I42","v":0},null,null,null,null,null,null,null,null,null,null,null,null,null,{"$f":"BI47","v":""},null,null,null,null,null,null,null,"円",null,null,null,null,null,null,null,null,null,"円",null,{"$f":"BI47*0.5","v":{"$error":"#VALUE!"}},null,null,null,{"$f":"IFERROR(VLOOKUP(CI47,料金マスタ!$A$2:$B$145,2,),\"\")","v":""},null,null,null,null,null,null,null,null,null,null,null,null,{"$f":"BY15","v":0},{"$f":"BV47*560","v":0},{"$f":"5690*BW47","v":0},{"$f":"IFERROR(BI47/BW47*1.5,\"\")","v":""},null,null,null,null,null,{"$f":"_xlfn.SWITCH(BR47,\"アマ\",1,\"入徴\",2,\"プロ\",3,\"\")","v":""},{"$f":"_xlfn.SWITCH(BS47,\"平日\",1,\"休日\",2,\"\")","v":""},{"$f":"_xlfn.SWITCH(BT47,\"50ｍ\",1,\"25ｍ夏\",2,\"25ｍ冬\",3,\"スケ\",4,\"\")","v":""},{"$f":"_xlfn.SWITCH(BU47,\"A\",1,\"B\",2,\"C\",3,\"D\",4,\"E\",5,\"F\",6,\"\")","v":""},null,null,null,null,null,null,null,null,null,null,null,null,null,null,"夏","25ｍ夏",2,102530,102530,126460,205070,228990,331530,null,null,3121,3122,3123,3124,3125,3126]
[null,null,null,null,null,null,null,null,null,null,null,{"$f":"施設利用申込書!R40","v":"00:00:00"},null,null,"～",{"$f":"施設利用申込書!X40","v":"00:00:00"},null,null,null,null,null,null,null,null,null,null,null,null,null,null,null,null,null,null,null,null,null,null,null,null,null,null,null,null,"円",null,null,null,null,null,null,null,null,null,null,null,{"$f":"BI47*0.2","v":{"$error":"#VALUE!"}},null,null,null,null,null,null,null,null,null,null,null,null,null,null,null,null,null,null,null,null,null,null,null,null,null,null,null,null,null,null,null,null,null,null,null,null,null,null,null,null,null,null,null,"冬","25ｍ冬",3,153800,153800,191400,307600,345200,499000,null,null,3131,3132,3133,3134,3135,3136]
[null,null,null,null,null,null,null,null,null,{"$f":"施設利用申込書!A41","v":"00:00:00"},null,null,null,null,null,null,{"$f":"施設利用申込書!F44","v":""},null,null,null,null,null,{"$f":"施設利用申込書!I44","v":0},null,null,null,null,null,null,null,null,null,null,null,null,null,{"$f":"BI49","v":""},null,null,null,null,null,null,null,"円",null,null,null,null,null,null,null,null,null,"円",null,{"$f":"BI49*0.5","v":{"$error":"#VALUE!"}},null,null,null,{"$f":"IFERROR(VLOOKUP(CI49,料金マスタ!$A$2:$B$145,2,),\"\")","v":""},null,null,null,null,null,null,null,null,null,null,null,null,{"$f":"BY16","v":0},{"$f":"BV49*560","v":0},{"$f":"5690*BW49","v":0},{"$f":"IFERROR(BI49/BW49*1.5,\"\")","v":""},null,null,null,null,null,{"$f":"_xlfn.SWITCH(BR49,\"アマ\",1,\"入徴\",2,\"プロ\",3,\"\")","v":""},{"$f":"_xlfn.SWITCH(BS49,\"平日\",1,\"休日\",2,\"\")","v":""},{"$f":"_xlfn.SWITCH(BT49,\"50ｍ\",1,\"25ｍ夏\",2,\"25ｍ冬\",3,\"スケ\",4,\"\")","v":""},{"$f":"_xlfn.SWITCH(BU49,\"A\",1,\"B\",2,\"C\",3,\"D\",4,\"E\",5,\"F\",6,\"\")","v":""},null,null,null,null,null,null,null,null,null,null,null,null,null,null,"夏","25ｍ夏",2,102530,102530,126460,205070,228990,331530,null,null,3121,3122,3123,3124,3125,3126]
[null,null,null,null,null,null,null,null,null,null,null,{"$f":"施設利用申込書!R41","v":"00:00:00"},null,null,"～",{"$f":"施設利用申込書!X41","v":"00:00:00"},null,null,null,null,null,null,null,null,null,null,null,null,null,null,null,null,null,null,null,null,null,null,null,null,null,null,null,null,"円",null,null,null,null,null,null,null,null,null,null,null,{"$f":"BI49*0.2","v":{"$error":"#VALUE!"}},null,null,null,null,null,null,null,null,null,null,null,null,null,null,null,null,null,null,null,null,null,null,null,null,null,null,null,null,null,null,null,null,null,null,null,null,null,null,null,null,null,null,null,"冬","25ｍ冬",3,153800,153800,191400,307600,345200,499000,null,null,3131,3132,3133,3134,3135,3136]
[null,null,null,null,null,null,null,null,null,{"$f":"施設利用申込書!A42","v":"00:00:00"},null,null,null,null,null,null,{"$f":"施設利用申込書!F46","v":"00:00:00"},null,null,null,null,null,{"$f":"施設利用申込書!I46","v":0},null,null,null,null,null,null,null,null,null,null,null,null,null,{"$f":"BI51","v":""},null,null,null,null,null,null,null,"円",null,null,null,null,null,null,null,null,null,"円",null,{"$f":"BI51*0.5","v":{"$error":"#VALUE!"}},null,null,null,{"$f":"IFERROR(VLOOKUP(CI51,料金マスタ!$A$2:$B$145,2,),\"\")","v":""},null,null,null,null,null,null,null,null,null,null,null,null,{"$f":"BY17","v":0},{"$f":"BV51*560","v":0},{"$f":"5690*BW51","v":0},{"$f":"IFERROR(BI51/BW51*1.5,\"\")","v":""},null,null,null,null,null,{"$f":"_xlfn.SWITCH(BR51,\"アマ\",1,\"入徴\",2,\"プロ\",3,\"\")","v":""},{"$f":"_xlfn.SWITCH(BS51,\"平日\",1,\"休日\",2,\"\")","v":""},{"$f":"_xlfn.SWITCH(BT51,\"50ｍ\",1,\"25ｍ夏\",2,\"25ｍ冬\",3,\"スケ\",4,\"\")","v":""},{"$f":"_xlfn.SWITCH(BU51,\"A\",1,\"B\",2,\"C\",3,\"D\",4,\"E\",5,\"F\",6,\"\")","v":""},null,null,null,null,null,null,null,null,null,null,null,null,null,null,"夏","25ｍ夏",2,102530,102530,126460,205070,228990,331530,null,null,3121,3122,3123,3124,3125,3126]
[null,null,null,null,null,null,null,null,null,null,null,{"$f":"施設利用申込書!R42","v":"00:00:00"},null,null,"～",{"$f":"施設利用申込書!X42","v":"00:00:00"},null,null,null,null,null,null,null,null,null,null,null,null,null,null,null,null,null,null,null,null,null,null,null,null,null,null,null,null,"円",null,null,null,null,null,null,null,null,null,null,null,{"$f":"BI51*0.2","v":{"$error":"#VALUE!"}},null,null,null,null,null,null,null,null,null,null,null,null,null,null,null,null,null,null,null,null,null,null,null,null,null,null,null,null,null,null,null,null,null,null,null,null,null,null,null,null,null,null,null,"冬","25ｍ冬",3,153800,153800,191400,307600,345200,499000,null,null,3131,3132,3133,3134,3135,3136]
[null,null,null,null,null,null,null,null,null,{"$f":"施設利用申込書!A43","v":"00:00:00"},null,null,null,null,null,null,{"$f":"施設利用申込書!F48","v":"00:00:00"},null,null,null,null,null,{"$f":"施設利用申込書!I48","v":0},null,null,null,null,null,null,null,null,null,null,null,null,null,{"$f":"BI53","v":""},null,null,null,null,null,null,null,"円",null,null,null,null,null,null,null,null,null,"円",null,{"$f":"BI53*0.5","v":{"$error":"#VALUE!"}},null,null,null,{"$f":"IFERROR(VLOOKUP(CI53,料金マスタ!$A$2:$B$145,2,),\"\")","v":""},null,null,null,null,null,null,null,null,null,null,null,null,{"$f":"BY18","v":0},{"$f":"BV53*560","v":0},{"$f":"5690*BW53","v":0},{"$f":"IFERROR(BI53/BW53*1.5,\"\")","v":""},null,null,null,null,null,{"$f":"_xlfn.SWITCH(BR53,\"アマ\",1,\"入徴\",2,\"プロ\",3,\"\")","v":""},{"$f":"_xlfn.SWITCH(BS53,\"平日\",1,\"休日\",2,\"\")","v":""},{"$f":"_xlfn.SWITCH(BT53,\"50ｍ\",1,\"25ｍ夏\",2,\"25ｍ冬\",3,\"スケ\",4,\"\")","v":""},{"$f":"_xlfn.SWITCH(BU53,\"A\",1,\"B\",2,\"C\",3,\"D\",4,\"E\",5,\"F\",6,\"\")","v":""},null,null,null,null,null,null,null,null,null,null,null,null,null,null,"夏","25ｍ夏",2,102530,102530,126460,205070,228990,331530,null,null,3121,3122,3123,3124,3125,3126]
[null,null,null,null,null,null,null,null,null,null,null,{"$f":"施設利用申込書!R43","v":"00:00:00"},null,null,"～",{"$f":"施設利用申込書!X43","v":"00:00:00"},null,null,null,null,null,null,null,null,null,null,null,null,null,null,null,null,null,null,null,null,null,null,null,null,null,null,null,null,"円",null,null,null,null,null,null,null,null,null,null,null,{"$f":"BI53*0.2","v":{"$error":"#VALUE!"}},null,null,null,null,null,null,null,null,null,null,null,null,null,null,null,null,null,null,null,null,null,null,null,null,null,null,null,null,null,null,null,null,null,null,null,null,null,null,null,null,null,null,null,"冬","25ｍ冬",3,153800,153800,191400,307600,345200,499000,null,null,3131,3132,3133,3134,3135,3136]
[null,null,null,null,null,null,null,null,null,{"$f":"施設利用申込書!A44","v":"00:00:00"},null,null,null,null,null,null,{"$f":"施設利用申込書!F50","v":"00:00:00"},null,null,null,null,null,{"$f":"施設利用申込書!I50","v":0},null,null,null,null,null,null,null,null,null,null,null,null,null,{"$f":"BI55","v":""},null,null,null,null,null,null,null,"円",null,null,null,null,null,null,null,null,null,"円",null,{"$f":"BI55*0.5","v":{"$error":"#VALUE!"}},null,null,null,{"$f":"IFERROR(VLOOKUP(CI55,料金マスタ!$A$2:$B$145,2,),\"\")","v":""},null,null,null,null,null,null,null,null,null,null,null,null,{"$f":"BY19","v":0},{"$f":"BV55*560","v":0},{"$f":"5690*BW55","v":0},{"$f":"IFERROR(BI55/BW55*1.5,\"\")","v":""},null,null,null,null,null,{"$f":"_xlfn.SWITCH(BR55,\"アマ\",1,\"入徴\",2,\"プロ\",3,\"\")","v":""},{"$f":"_xlfn.SWITCH(BS55,\"平日\",1,\"休日\",2,\"\")","v":""},{"$f":"_xlfn.SWITCH(BT55,\"50ｍ\",1,\"25ｍ夏\",2,\"25ｍ冬\",3,\"スケ\",4,\"\")","v":""},{"$f":"_xlfn.SWITCH(BU55,\"A\",1,\"B\",2,\"C\",3,\"D\",4,\"E\",5,\"F\",6,\"\")","v":""},null,null,null,null,null,null,null,null,null,null,null,null,null,null,"夏","25ｍ夏",2,102530,102530,126460,205070,228990,331530,null,null,3121,3122,3123,3124,3125,3126]
[null,null,null,null,null,null,null,null,null,null,null,{"$f":"施設利用申込書!R44","v":"00:00:00"},null,null,"～",{"$f":"施設利用申込書!X44","v":"00:00:00"},null,null,null,null,null,null,null,null,null,null,null,null,null,null,null,null,null,null,null,null,null,null,null,null,null,null,null,null,"円",null,null,null,null,null,null,null,null,null,null,null,{"$f":"BI55*0.2","v":{"$error":"#VALUE!"}},null,null,null,null,null,null,null,null,null,null,null,null,null,null,null,null,null,null,null,null,null,null,null,null,null,null,null,null,null,null,null,null,null,null,null,null,null,null,null,null,null,null,null,"冬","25ｍ冬",3,153800,153800,191400,307600,345200,499000,null,null,3131,3132,3133,3134,3135,3136]
[null,null,null,null,null,null,null,null,null,"施　設　使　用　料　計",null,null,null,null,null,null,0,null,null,null,null,null,null,null,null,null,"円",null,null,"付属設備料使用料",null,null,null,null,null,null,null,null,null,null,null,null,null,0,null,null,null,null,null,null,null,null,null,"円",null,null,null,null,null,null,null,null,null,null,null,null,null,null,null,null,null,null,null,null,null,null,null,null,null,null,null,null,null,null,null,null,null,null,null,null,null,null,null,null,null,null,null,null,null,null,null,"スケ",4,396470,396470,499000,792940,895480,1291950,null,null,3141,3142,3143,3144,3145,3146]
[null,null,null,null,null,null,null,null,null,"早　朝　時　間　外",null,null,null,null,null,null,0,null,null,null,null,null,null,null,null,null,"円",null,null,"　冷　暖　房　料　",null,null,null,null,null,null,null,null,null,null,null,null,null,0,null,null,null,null,null,null,null,null,null,"円",null,null,null,null,null,null,null,null,null,null,null,null,null,null,null,null,null,null,null,null,null,null,null,null,null,null,null,null,null,null,null,null,null,null,null,null,null,null,null,null,null,null,null,null,null,"休日",null,"50ｍ",5,{"$f":"CZ42*1.2","v":360924},360924,1171152,721848,812076,1173000,null,"休日",3211,3212,3213,3214,3215,3216]
[null,null,null,null,null,null,null,null,null,"使用料減免額計",null,null,null,null,null,null,0,null,null,null,null,null,null,null,null,null,"円",null,null,"合　　　　　　計",null,null,null,null,null,null,null,null,null,null,null,null,null,{"$f":"SUM(Q57+Q58+AR57-Q59)","v":0},null,null,null,null,null,null,null,null,null,"円",null,null,null,null,null,null,null,null,null,null,null,null,null,null,null,null,null,null,null,null,null,null,null,null,null,null,null,null,null,null,null,null,null,null,null,null,null,null,null,null,null,null,null,null,null,null,null,"25ｍ夏",6,123036,123036,151752,246084,274788,397836,null,null,3221,3222,3223,3224,3225,3226]
[null,null,null,null,null,null,null,null,null,null,null,null,null,null,null,null,null,null,null,null,null,null,null,null,null,null,null,null,null,null,null,null,null,null,null,null,null,null,null,null,null,null,null,null,null,null,null,null,null,null,null,null,null,null,null,null,null,null,null,null,null,null,null,null,null,null,null,null,null,null,null,null,null,null,null,null,null,null,null,null,null,null,null,null,null,null,null,null,null,null,null,null,null,null,null,null,null,null,null,null,null,"25ｍ冬",7,184560,184560,229680,369120,414240,598800,null,null,3231,3232,3233,3234,3235,3236]
[null,null,null,null,null,null,null,null,null,"備　　　　　　　考",null,null,null,null,null,null,null,null,null,null,null,null,null,null,null,null,null,null,null,null,null,null,null,null,null,null,null,null,null,null,null,null,null,null,null,null,null,null,null,null,null,null,null,null,null,null,null,null,null,null,null,null,null,null,null,null,null,null,null,"アマ","平日",null,null,null,null,null,null,null,null,null,null,null,null,null,null,null,null,null,null,null,null,null,null,null,null,null,null,null,null,null,null,"スケ",8,{"$f":"CZ57*1.2","v":475764},{"$f":"DA57*1.2","v":475764},598800,951528,1074576,1550340,null,null,3241,3242,3243,3244,3245,3246]
[null,null,null,null,null,null,null,null,null,null,null,null,null,null,null,null,null,null,null,null,null,null,null,null,null,null,null,null,null,null,null,null,null,null,null,null,null,null,null,null,null,null,null,null,null,null,null,null,null,null,null,null,null,null,null,null,null,null,null,null,null,null,null,null,null,null,null,null,null,"入徴","休日"]
[null,null,null,null,null,null,null,null,null,null,null,null,null,null,null,null,null,null,null,null,null,null,null,null,null,null,null,null,null,null,null,null,null,null,null,null,null,null,null,null,null,null,null,null,null,null,null,null,null,null,null,null,null,null,null,null,null,null,null,null,null,null,null,null,null,null,null,null,null,"プロ"]
[]
[null,null,null,null,null,null,null,null,null,null,null,null,null,null,null,null,null,null,null,null,null,null,null,null,null,null,null,null,null,null,null,null,null,null,null,null,"使用料受領印"]
[]
[null,null,null,null,null,null,null,null,null,null,null,null,null,null,null,null,null,null,null,null,null,null,null,null,null,null,null,null,null,null,null,null,null,null,null,null,null,null,null,null,null,null,null,null,null,null,null,null,null,null,null,null,null,null,null,null,null,null,null,null,null,null,null,null,null,null,null,null,null,null,null,null,null,null,null,"A～C","D～F"]
[null,null,null,null,null,null,null,null,null,null,null,null,null,null,null,null,null,null,null,null,null,null,null,null,null,null,null,null,null,null,null,null,null,null,null,null,null,null,null,null,null,null,null,null,null,null,null,null,null,null,null,null,null,null,null,null,null,null,null,null,null,null,null,null,null,null,null,null,null,null,null,null,null,null,"アマ",5690,6828]
[null,null,null,null,null,null,null,null,null,null,null,null,null,null,null,null,null,null,null,null,null,null,null,null,null,null,null,null,null,null,null,null,null,null,null,null,null,null,null,null,null,null,null,null,null,null,null,null,null,null,null,null,null,null,null,null,null,null,null,null,null,null,null,null,null,null,null,null,null,null,null,null,null,null,null,17080,20496]
[null,null,null,null,null,null,null,null,null,null,null,null,null,null,null,null,null,null,null,null,null,null,null,null,null,null,null,null,null,null,null,null,null,null,null,null,null,null,null,null,null,null,null,null,null,null,null,null,null,null,null,null,null,null,null,null,null,null,null,null,null,null,null,null,null,null,null,null,null,null,null,null,null,null,null,34170,41004]

{"sheet":"料金マスタ","index":2,"n_rows":145,"n_cols":2,"rows_kept":145,"cut":false,"hidden":true,"merged":[]}
[]
[1111,{"$f":"料金マスタ2!CS26","v":50120}]
[1121,{"$f":"料金マスタ2!CS27","v":34170}]
[1131,{"$f":"料金マスタ2!CS28","v":51260}]
[1141,{"$f":"料金マスタ2!CS29","v":66070}]
[1211,{"$f":"料金マスタ2!CS30","v":60144}]
[1221,{"$f":"料金マスタ2!CS31","v":41004}]
[1231,{"$f":"料金マスタ2!CS32","v":61512}]
[1241,{"$f":"料金マスタ2!CS33","v":79284}]
[1112,{"$f":"料金マスタ2!CT26","v":50120}]
[1122,{"$f":"料金マスタ2!CT27","v":34170}]
[1132,{"$f":"料金マスタ2!CT28","v":51260}]
[1142,{"$f":"料金マスタ2!CT29","v":66070}]
[1212,{"$f":"料金マスタ2!CT30","v":60144}]
[1222,{"$f":"料金マスタ2!CT31","v":41004}]
[1232,{"$f":"料金マスタ2!CT32","v":61512}]
[1242,{"$f":"料金マスタ2!CT33","v":79284}]
[1113,{"$f":"料金マスタ2!CU26","v":62650}]
[1123,{"$f":"料金マスタ2!CU27","v":42150}]
[1133,{"$f":"料金マスタ2!CU28","v":63790}]
[1143,{"$f":"料金マスタ2!CU29","v":83160}]
[1213,{"$f":"料金マスタ2!CU30","v":75180}]
[1223,{"$f":"料金マスタ2!CU31","v":50580}]
[1233,{"$f":"料金マスタ2!CU32","v":76548}]
[1243,{"$f":"料金マスタ2!CU33","v":99792}]
[1114,{"$f":"料金マスタ2!CV26","v":100250}]
[1124,{"$f":"料金マスタ2!CV27","v":68350}]
[1134,{"$f":"料金マスタ2!CV28","v":102530}]
[1144,{"$f":"料金マスタ2!CV29","v":132150}]
[1214,{"$f":"料金マスタ2!CV30","v":120300}]
[1224,{"$f":"料金マスタ2!CV31","v":82020}]
[1234,{"$f":"料金マスタ2!CV32","v":123036}]
[1244,{"$f":"料金マスタ2!CV33","v":158580}]
[1115,{"$f":"料金マスタ2!CW26","v":112780}]
[1125,{"$f":"料金マスタ2!CW27","v":76330}]
[1135,{"$f":"料金マスタ2!CW28","v":115060}]
[1145,{"$f":"料金マスタ2!CW29","v":149240}]
[1215,{"$f":"料金マスタ2!CW30","v":135336}]
[1225,{"$f":"料金マスタ2!CW31","v":91596}]
[1235,{"$f":"料金マスタ2!CW32","v":138072}]
[1245,{"$f":"料金マスタ2!CW33","v":179088}]
[1116,{"$f":"料金マスタ2!CX26","v":162910}]
[1126,{"$f":"料金マスタ2!CX27","v":110510}]
[1136,{"$f":"料金マスタ2!CX28","v":166330}]
[1146,{"$f":"料金マスタ2!CX29","v":215320}]
[1216,{"$f":"料金マスタ2!CX30","v":195492}]
[1226,{"$f":"料金マスタ2!CX31","v":132612}]
[1236,{"$f":"料金マスタ2!CX32","v":199596}]
[1246,{"$f":"料金マスタ2!CX33","v":258384}]
[2111,{"$f":"料金マスタ2!CS34","v":150380}]
[2121,{"$f":"料金マスタ2!CS35","v":102530}]
[2131,{"$f":"料金マスタ2!CS36","v":153800}]
[2141,{"$f":"料金マスタ2!CS37","v":198230}]
[2211,{"$f":"料金マスタ2!CS38","v":180456}]
[2221,{"$f":"料金マスタ2!CS39","v":123036}]
[2231,{"$f":"料金マスタ2!CS40","v":184560}]
[2241,{"$f":"料金マスタ2!CS41","v":237876}]
[2112,{"$f":"料金マスタ2!CT34","v":150380}]
[2122,{"$f":"料金マスタ2!CT35","v":102530}]
[2132,{"$f":"料金マスタ2!CT36","v":153800}]
[2142,{"$f":"料金マスタ2!CT37","v":198230}]
[2212,{"$f":"料金マスタ2!CT38","v":180456}]
[2222,{"$f":"料金マスタ2!CT39","v":123036}]
[2232,{"$f":"料金マスタ2!CT40","v":184560}]
[2242,{"$f":"料金マスタ2!CT41","v":237876}]
[2113,{"$f":"料金マスタ2!CU34","v":187980}]
[2123,{"$f":"料金マスタ2!CU35","v":126460}]
[2133,{"$f":"料金マスタ2!CU36","v":191400}]
[2143,{"$f":"料金マスタ2!CU37","v":249500}]
[2213,{"$f":"料金マスタ2!CU38","v":225576}]
[2223,{"$f":"料金マスタ2!CU39","v":151752}]
[2233,{"$f":"料金マスタ2!CU40","v":229680}]
[2243,{"$f":"料金マスタ2!CU41","v":299400}]
[2114,{"$f":"料金マスタ2!CV34","v":300770}]
[2124,{"$f":"料金マスタ2!CV35","v":205070}]
[2134,{"$f":"料金マスタ2!CV36","v":307600}]
[2144,{"$f":"料金マスタ2!CV37","v":396470}]
[2214,{"$f":"料金マスタ2!CV38","v":360924}]
[2224,{"$f":"料金マスタ2!CV39","v":246084}]
[2234,{"$f":"料金マスタ2!CV40","v":369120}]
[2244,{"$f":"料金マスタ2!CV41","v":475764}]
[2115,{"$f":"料金マスタ2!CW34","v":338360}]
[2125,{"$f":"料金マスタ2!CW35","v":228990}]
[2135,{"$f":"料金マスタ2!CW36","v":345200}]
[2145,{"$f":"料金マスタ2!CW37","v":447740}]
[2215,{"$f":"料金マスタ2!CW38","v":406032}]
[2225,{"$f":"料金マスタ2!CW39","v":274788}]
[2235,{"$f":"料金マスタ2!CW40","v":414240}]
[2245,{"$f":"料金マスタ2!CW41","v":537288}]
[2116,{"$f":"料金マスタ2!CX34","v":488750}]
[2126,{"$f":"料金マスタ2!CX35","v":331530}]
[2136,{"$f":"料金マスタ2!CX36","v":499000}]
[2146,{"$f":"料金マスタ2!CX37","v":645970}]
[2216,{"$f":"料金マスタ2!CX38","v":586500}]
[2226,{"$f":"料金マスタ2!CX39","v":397836}]
[2236,{"$f":"料金マスタ2!CX40","v":598800}]
[2246,{"$f":"料金マスタ2!CX41","v":775164}]
[3111,{"$f":"料金マスタ2!CS42","v":300770}]
[3121,{"$f":"料金マスタ2!CS43","v":102530}]
[3131,{"$f":"料金マスタ2!CS44","v":153800}]
[3141,{"$f":"料金マスタ2!CS45","v":396470}]
[3211,{"$f":"料金マスタ2!CS46","v":360924}]
[3221,{"$f":"料金マスタ2!CS47","v":123036}]
[3231,{"$f":"料金マスタ2!CS48","v":184560}]
[3241,{"$f":"料金マスタ2!CS49","v":475764}]
[3112,{"$f":"料金マスタ2!CT42","v":300770}]
[3122,{"$f":"料金マスタ2!CT43","v":102530}]
[3132,{"$f":"料金マスタ2!CT44","v":153800}]
[3142,{"$f":"料金マスタ2!CT45","v":396470}]
[3212,{"$f":"料金マスタ2!CT46","v":360924}]
[3222,{"$f":"料金マスタ2!CT47","v":123036}]
[3232,{"$f":"料金マスタ2!CT48","v":184560}]
[3242,{"$f":"料金マスタ2!CT49","v":475764}]
[3113,{"$f":"料金マスタ2!CU42","v":975960}]
[3123,{"$f":"料金マスタ2!CU43","v":126460}]
[3133,{"$f":"料金マスタ2!CU44","v":191400}]
[3143,{"$f":"料金マスタ2!CU45","v":499000}]
[3213,{"$f":"料金マスタ2!CU46","v":1171152}]
[3223,{"$f":"料金マスタ2!CU47","v":151752}]
[3233,{"$f":"料金マスタ2!CU48","v":229680}]
[3243,{"$f":"料金マスタ2!CU49","v":598800}]
[3114,{"$f":"料金マスタ2!CV42","v":601540}]
[3124,{"$f":"料金マスタ2!CV43","v":205070}]
[3134,{"$f":"料金マスタ2!CV44","v":307600}]
[3144,{"$f":"料金マスタ2!CV45","v":792940}]
[3214,{"$f":"料金マスタ2!CV46","v":721848}]
[3224,{"$f":"料金マスタ2!CV47","v":246084}]
[3234,{"$f":"料金マスタ2!CV48","v":369120}]
[3244,{"$f":"料金マスタ2!CV49","v":951528}]
[3115,{"$f":"料金マスタ2!CW42","v":676730}]
[3125,{"$f":"料金マスタ2!CW43","v":228990}]
[3135,{"$f":"料金マスタ2!CW44","v":345200}]
[3145,{"$f":"料金マスタ2!CW45","v":895480}]
[3215,{"$f":"料金マスタ2!CW46","v":812076}]
[3225,{"$f":"料金マスタ2!CW47","v":274788}]
[3235,{"$f":"料金マスタ2!CW48","v":414240}]
[3245,{"$f":"料金マスタ2!CW49","v":1074576}]
[3116,{"$f":"料金マスタ2!CX42","v":977500}]
[3126,{"$f":"料金マスタ2!CX43","v":331530}]
[3136,{"$f":"料金マスタ2!CX44","v":499000}]
[3146,{"$f":"料金マスタ2!CX45","v":1291950}]
[3216,{"$f":"料金マスタ2!CX46","v":1173000}]
[3226,{"$f":"料金マスタ2!CX47","v":397836}]
[3236,{"$f":"料金マスタ2!CX48","v":598800}]
[3246,{"$f":"料金マスタ2!CX49","v":1550340}]

{"sheet":"領収書(原紙)","index":3,"n_rows":53,"n_cols":115,"rows_kept":53,"cut":false,"hidden":true,"merged":[[22,113,22,126],[24,114,24,127],[25,114,25,127],[23,60,23,66],[24,60,25,66],[26,60,27,66],[28,60,29,66],[30,60,31,66],[24,70,25,70],[24,71,25,71],[24,72,25,72],[22,76,23,79],[27,114,27,127],[42,54,42,55],[43,44,43,45],[43,46,43,53],[40,60,41,66],[42,60,43,66],[24,73,25,74],[24,75,27,75],[28,75,31,75],[24,69,25,69],[38,60,39,66],[33,44,33,45],[26,44,26,45],[26,46,26,53],[41,44,41,45],[41,46,41,53],[42,44,42,45],[42,46,42,53],[40,44,40,45],[40,46,40,53],[34,44,34,45],[34,46,34,53],[34,54,34,55],[40,54,40,55],[39,44,39,45],[48,9,49,15],[48,16,49,55],[52,36,52,45],[46,43,46,52],[46,53,46,55],[45,43,45,52],[45,53,45,55],[44,43,44,52],[44,53,44,55],[46,9,46,15],[46,16,46,25],[46,26,46,28],[46,29,46,42],[45,9,45,15],[45,16,45,25],[45,26,45,28],[45,29,45,42],[44,9,44,15],[44,16,44,25],[44,26,44,28],[44,29,44,42],[32,22,32,35],[43,22,43,35],[43,36,43,43],[36,9,36,15],[34,9,34,15],[32,9,32,15],[41,11,41,13],[41,15,41,18],[42,9,42,15],[42,16,42,17],[43,11,43,13],[43,15,43,18],[33,36,33,43],[32,16,32,17],[42,22,42,35],[42,36,42,43],[32,36,32,43],[41,22,41,35],[41,36,41,43],[40,22,40,35],[40,36,40,43],[34,36,34,43],[33,22,33,35],[40,9,40,15],[40,16,40,17],[39,22,39,35],[39,36,39,43],[36,16,36,17],[34,16,34,17],[35,11,35,13],[35,15,35,18],[36,22,36,35],[36,36,36,43],[33,11,33,13],[33,15,33,18],[36,44,36,45],[36,46,36,53],[39,46,39,53],[39,54,39,55],[38,9,38,15],[38,16,38,17],[38,22,38,35],[38,36,38,43],[38,44,38,45],[38,46,38,53],[38,54,38,55],[39,11,39,13],[39,15,39,18],[37,11,37,13],[37,15,37,18],[30,46,30,53],[30,54,30,55],[26,36,26,43],[21,16,21,17],[21,18,21,40],[25,22,25,35],[25,36,25,43],[25,44,25,45],[24,22,24,35],[24,36,24,43],[24,16,24,17],[25,15,25,18],[26,9,26,15],[27,44,27,45],[26,16,26,17],[27,11,27,13],[27,15,27,18],[26,22,26,35],[28,9,28,15],[28,16,28,17],[27,22,27,35],[27,36,27,43],[31,22,31,35],[31,36,31,43],[31,44,31,45],[30,9,30,15],[30,16,30,17],[31,11,31,13],[31,15,31,18],[30,22,30,35],[30,36,30,43],[30,44,30,45],[13,96,13,110],[15,96,15,110],[18,96,18,108],[19,96,19,108],[24,9,24,15],[25,11,25,13],[28,114,28,127],[34,60,35,66],[34,22,34,35],[13,113,13,127],[15,113,15,127],[18,113,18,126],[19,113,19,126],[21,113,21,126],[29,22,29,35],[29,36,29,43],[29,44,29,45],[29,11,29,13],[29,15,29,18],[28,22,28,35],[28,36,28,43],[28,44,28,45],[28,46,28,53],[28,54,28,55],[21,78,21,92],[22,9,22,15],[23,9,23,21],[23,22,23,35],[23,36,23,45],[23,46,23,55],[26,54,26,55],[36,60,37,66],[36,54,36,55],[37,22,37,35],[37,36,37,43],[37,44,37,45],[24,44,24,45],[24,46,24,53],[24,54,24,55],[37,46,37,53],[37,54,37,55],[35,22,35,35],[35,36,35,43],[35,44,35,45],[32,44,32,45],[32,46,32,53],[32,54,32,55],[32,60,33,66],[20,46,20,53],[20,54,20,55],[21,9,21,15],[21,41,21,55],[21,60,21,74],[20,9,20,15],[20,16,20,23],[20,24,20,25],[20,26,20,31],[20,41,20,45],[20,32,20,35],[20,37,20,39],[18,9,18,15],[18,16,18,55],[19,9,19,15],[19,16,19,55],[19,60,19,74],[19,78,19,92],[16,9,16,15],[16,16,16,55],[17,9,17,15],[17,16,17,55],[17,60,17,74],[17,78,17,92],[15,9,15,15],[15,16,15,55],[15,60,15,74],[15,78,15,92],[7,9,14,15],[8,16,8,20],[8,23,8,30],[9,21,9,55],[11,16,11,20],[13,16,13,20],[13,21,13,55],[9,59,9,63],[10,59,11,63],[2,8,2,54],[3,8,3,55],[4,10,4,56],[5,8,5,17],[6,9,6,24],[6,36,6,44],[6,45,6,55],[13,60,13,74],[13,78,13,92],[5,44,5,45],[5,46,5,53]]}
[]
[]
[null,null,null,null,null,null,null,null,"施　　設　　利　　用　　申　　込　　書"]
[null,null,null,null,null,null,null,null,"施　設　利　用　料　減　免　承　認　申　請　書"]
[null,null,null,null,null,null,null,null,null,null,"施　設　利　用　料　等　領　収　書"]
[null,null,null,null,null,null,null,null,null,null,null,null,null,null,null,null,null,null,null,null,null,null,null,null,null,null,null,null,null,null,null,null,null,null,null,null,null,null,null,null,null,null,null,null,null,null,{"$f":"TODAY()","v":"2023-08-20"}]
[null,null,null,null,null,null,null,null,null,"　福岡県立総合プール　　所長　　殿"]
[null,null,null,null,null,null,null,null,null,"利用者"]
[null,null,null,null,null,null,null,null,null,null,null,null,null,null,null,null,"所在地）",null,null,null,null,"〒",null,{"$f":"施設利用申込書!L24&-施設利用申込書!P24","v":"0"},null,null,null,null,null,null,null,null,null,null,null,null,null,null,null,null,null,null,null,null,null,null,null,null,null,null,null,null,null,null,null,null,null,null,null,null,null,null,null,null,null,null,null,null,null,null,null,"福岡県立体育・スポーツ施設使用料条例施行規則"]
[null,null,null,null,null,null,null,null,null,null,null,null,null,null,null,null,null,null,null,null,null,{"$f":"施設利用申込書!L25","v":0},null,null,null,null,null,null,null,null,null,null,null,null,null,null,null,null,null,null,null,null,null,null,null,null,null,null,null,null,null,null,null,null,null,null,null,null,null,"減免番号"]
[null,null,null,null,null,null,null,null,null,null,null,null,null,null,null,null,null,null,null,null,null,null,null,null,null,null,null,null,null,null,null,null,null,null,null,null,null,null,null,null,null,null,null,null,null,null,null,null,null,null,null,null,null,null,null,null,null,null,null,"無",null,null,null,null,null,null,null,null,"有"]
[null,null,null,null,null,null,null,null,null,null,null,null,null,null,null,null,"名　称　）",null,null,null,null,{"$f":"施設利用申込書!I11","v":0},null,null,null,null,null,null,null,null,null,null,null,null,null,null,null,null,null,null,null,null,null,null,null,null,null,null,null,null,null,null,null,null,null,null,null,null,null,null,null,null,null,null,null,null,null,null,"無"]
[]
[null,null,null,null,null,null,null,null,null,null,null,null,null,null,null,null,"電　話　）",null,null,null,null,{"$f":"施設利用申込書!BK18","v":"00"},null,null,null,null,null,null,null,null,null,null,null,null,null,null,null,null,null,null,null,null,null,null,null,null,null,null,null,null,null,null,null,null,null,null,null,null,null,null,"第五条第１項第一号",null,null,null,null,null,null,null,null,null,null,null,null,null,null,null,null,null,"第五条第１項第六号",null,null,null,null,null,null,null,null,null,null,null,null,null,null,null,null,null,"第五条第１項第十一号",null,null,null,null,null,null,null,null,null,null,null,null,null,null,null,null,"第五条第１項第十三号"]
[]
[null,null,null,null,null,null,null,null,null,"主催者名",null,null,null,null,null,null,{"$f":"施設利用申込書!I22","v":0},null,null,null,null,null,null,null,null,null,null,null,null,null,null,null,null,null,null,null,null,null,null,null,null,null,null,null,null,null,null,null,null,null,null,null,null,null,null,null,null,null,null,null,"第五条第１項第二号",null,null,null,null,null,null,null,null,null,null,null,null,null,null,null,null,null,"第五条第１項第七号",null,null,null,null,null,null,null,null,null,null,null,null,null,null,null,null,null,"第五条第１項第十二号",null,null,null,null,null,null,null,null,null,null,null,null,null,null,null,null,"第五条第１項第十四号"]
[null,null,null,null,null,null,null,null,null,"後援者名",null,null,null,null,null,null,{"$f":"施設利用申込書!I23","v":0}]
[null,null,null,null,null,null,null,null,null,"代表職氏名",null,null,null,null,null,null,null,null,null,null,null,null,null,null,null,null,null,null,null,null,null,null,null,null,null,null,null,null,null,null,null,null,null,null,null,null,null,null,null,null,null,null,null,null,null,null,null,null,null,null,"第五条第１項第三号",null,null,null,null,null,null,null,null,null,null,null,null,null,null,null,null,null,"第五条第１項第八号"]
[null,null,null,null,null,null,null,null,null,"責任者名",null,null,null,null,null,null,{"$f":"施設利用申込書!I14","v":0},null,null,null,null,null,null,null,null,null,null,null,null,null,null,null,null,null,null,null,null,null,null,null,null,null,null,null,null,null,null,null,null,null,null,null,null,null,null,null,null,null,null,null,null,null,null,null,null,null,null,null,null,null,null,null,null,null,null,null,null,null,null,null,null,null,null,null,null,null,null,null,null,null,null,null,null,null,null,null,"　　平成　　24年　　４月　　13日（木）",null,null,null,null,null,null,null,null,null,null,null,null,null,null,null,null,"25メートルプール"]
[null,null,null,null,null,null,null,null,null,"利用目的",null,null,null,null,null,null,{"$f":"施設利用申込書!I18","v":0},null,null,null,null,null,null,null,null,null,null,null,null,null,null,null,null,null,null,null,null,null,null,null,null,null,null,null,null,null,null,null,null,null,null,null,null,null,null,null,null,null,null,null,"第五条第１項第四号",null,null,null,null,null,null,null,null,null,null,null,null,null,null,null,null,null,"第五条第１項第九号",null,null,null,null,null,null,null,null,null,null,null,null,null,null,null,null,null,"14：00　～17：00"]
[null,null,null,null,null,null,null,null,null,"利用人員",null,null,null,null,null,null,{"$f":"施設利用申込書!G19+施設利用申込書!U19","v":0},null,null,null,null,null,null,null,"人",null,"区分",null,null,null,null,null,{"$f":"施設利用申込書!BU20","v":{"$error":"#N/A"}},null,null,null,"(",{"$f":"施設利用申込書!I20","v":0},null,null,")","金額",null,null,null,null,{"$f":"施設利用申込書!N20","v":0},null,null,null,null,null,null,null,"円"]
[null,null,null,null,null,null,null,null,null,"減免",null,null,null,null,null,null,"無",null,{"$f":"_xlfn.SWITCH(Q22,\"有\",\"福岡県立体育・スポーツ施設使用料条例施行規則\",\"無\",\"\")","v":""},null,null,null,null,null,null,null,null,null,null,null,null,null,null,null,null,null,null,null,null,null,null,{"$f":"_xlfn.SWITCH(BH11,\"無\",\"\",1,\"第五条第1項第一号\",2,\"第五条第1項第二号\",3,\"第五条第1項第三号\",4,\"第五条第1項第四号\",5,\"第五条第1項第五号\")","v":""},null,null,null,null,null,null,null,null,null,null,null,null,null,null,null,null,null,null,"第五条第１項第五号",null,null,null,null,null,null,null,null,null,null,null,null,null,null,null,null,null,"第五条第１項第十号",null,null,null,null,null,null,null,null,null,null,null,null,null,null,null,null,null,null,null,null,null,null,null,null,null,null,null,null,null,null,null,null,null,null,"50メートルプール"]
[null,null,null,null,null,null,null,null,null,null,null,null,null,null,null,null,null,null,null,null,null,null,null,null,null,null,null,null,null,null,null,null,null,null,null,null,null,null,null,null,null,null,null,null,null,null,null,null,null,null,null,null,null,null,null,null,null,null,null,null,null,null,null,null,null,null,null,null,null,null,null,null,null,null,null,null,null,null,null,null,"A","B","C","D","E","F"]
[null,null,null,null,null,null,null,null,null,"利用日時",null,null,null,null,null,null,null,null,null,null,null,null,"利用施設",null,null,null,null,null,null,null,null,null,null,null,null,null,"使用料減免額",null,null,null,null,null,null,null,null,null,"減免後使用料",null,null,null,null,null,null,null,null,null,null,null,null,null,"減免前金額",null,null,null,null,null,null,null,null,"区分","施設","時間","平祝",null,null,null,null,null,null,null,"9-13","13-17","17-21","9-17","13-21","9-21"]
[null,null,null,null,null,null,null,null,null,{"$f":"施設利用申込書!A29","v":"00:00:00"},null,null,null,null,null,null,{"$f":"施設利用申込書!F29","v":""},null,null,null,null,null,{"$f":"施設利用申込書!I29","v":0},null,null,null,null,null,null,null,null,null,null,null,null,null,null,null,null,null,null,null,null,null,"円",null,null,null,null,null,null,null,null,null,"円",null,null,null,null,null,null,null,null,null,null,null,null,"始",{"$f":"L26","v":"00:00:00"},"アマ","25ｍ冬","A","休日",null,null,"平日",null,null,"50ｍ",1,50120,50120,62650,100250,112780,162910,null,null,null,null,null,null,null,null,null,null,null,null,null,null,null,null,null,null,null,null,null,null,null,null,null,null,null,null,"飛込みプール"]
[null,null,null,null,null,null,null,null,null,null,null,{"$f":"施設利用申込書!R29","v":"00:00:00"},null,null,"～",{"$f":"施設利用申込書!X29","v":"00:00:00"},null,null,null,null,null,null,null,null,null,null,null,null,null,null,null,null,null,null,null,null,null,null,null,null,null,null,null,null,"円",null,null,null,null,null,null,null,null,null,null,null,null,null,null,null,null,null,null,null,null,null,null,"終",{"$f":"P26","v":"00:00:00"},null,null,null,null,null,null,null,null,"夏","25ｍ夏",2,34170,34170,42150,68350,76330,110510]
[null,null,null,null,null,null,null,null,null,{"$f":"施設利用申込書!A30","v":"00:00:00"},null,null,null,null,null,null,{"$f":"施設利用申込書!F31","v":""},null,null,null,null,null,{"$f":"施設利用申込書!I30","v":0},null,null,null,null,null,null,null,null,null,null,null,null,null,null,null,null,null,null,null,null,null,"円",null,null,null,null,null,null,null,null,null,"円",null,null,null,null,null,null,null,null,null,null,null,null,null,null,null,null,null,null,null,null,null,null,"冬","25ｍ冬",3,51260,51260,63790,102530,115060,166330]
[null,null,null,null,null,null,null,null,null,null,null,{"$f":"施設利用申込書!R30","v":"00:00:00"},null,null,"～",{"$f":"施設利用申込書!X30","v":"00:00:00"},null,null,null,null,null,null,null,null,null,null,null,null,null,null,null,null,null,null,null,null,null,null,null,null,null,null,null,null,"円",null,null,null,null,null,null,null,null,null,null,null,null,null,null,null,null,null,null,null,null,null,null,null,null,null,null,null,null,null,null,null,null,null,"スケ",4,66070,66070,83160,132150,149240,215320,null,null,null,null,null,null,null,null,null,null,null,null,null,null,null,null,null,null,null,null,null,null,null,null,null,null,null,null,"スケートリンク"]
[null,null,null,null,null,null,null,null,null,{"$f":"施設利用申込書!A31","v":"00:00:00"},null,null,null,null,null,null,{"$f":"施設利用申込書!F31","v":""},null,null,null,null,null,{"$f":"施設利用申込書!I31","v":0},null,null,null,null,null,null,null,null,null,null,null,null,null,null,null,null,null,null,null,null,null,"円",null,null,null,null,null,null,null,null,null,"円",null,null,null,null,null,null,null,null,null,null,null,null,null,null,null,null,null,null,null,null,"休日",null,null,"50ｍ",5,{"$f":"CC25*1.2","v":60144},{"$f":"CD25*1.2","v":60144},75180,120300,135336,195492]
[null,null,null,null,null,null,null,null,null,null,null,{"$f":"施設利用申込書!R31","v":"00:00:00"},null,null,"～",{"$f":"施設利用申込書!X31","v":"00:00:00"},null,null,null,null,null,null,null,null,null,null,null,null,null,null,null,null,null,null,null,null,null,null,null,null,null,null,null,null,"円",null,null,null,null,null,null,null,null,null,null,null,null,null,null,null,null,null,null,null,null,null,null,null,null,null,null,null,null,null,null,null,null,null,"25ｍ夏",6,{"$f":"CC26*1.2","v":41004},41004,50580,82020,91596,132612]
[null,null,null,null,null,null,null,null,null,{"$f":"施設利用申込書!A32","v":"00:00:00"},null,null,null,null,null,null,{"$f":"施設利用申込書!F32","v":""},null,null,null,null,null,{"$f":"施設利用申込書!I32","v":0},null,null,null,null,null,null,null,null,null,null,null,null,null,null,null,null,null,null,null,null,null,"円",null,null,null,null,null,null,null,null,null,"円",null,null,null,null,null,null,null,null,null,null,null,null,null,null,null,null,null,null,null,null,null,null,null,"25ｍ冬",7,{"$f":"CC27*1.2","v":61512},61512,76548,123036,138072,199596]
[null,null,null,null,null,null,null,null,null,null,null,{"$f":"施設利用申込書!R32","v":"00:00:00"},null,null,"～",{"$f":"施設利用申込書!X32","v":"00:00:00"},null,null,null,null,null,null,null,null,null,null,null,null,null,null,null,null,null,null,null,null,null,null,null,null,null,null,null,null,"円",null,null,null,null,null,null,null,null,null,null,null,null,null,null,null,null,null,null,null,null,null,null,null,null,null,null,null,null,null,null,null,null,null,"スケ",8,{"$f":"CC28*1.2","v":79284},{"$f":"CD28*1.2","v":79284},99792,158580,179088,258384]
[null,null,null,null,null,null,null,null,null,{"$f":"施設利用申込書!A33","v":"00:00:00"},null,null,null,null,null,null,{"$f":"施設利用申込書!F33","v":""},null,null,null,null,null,{"$f":"施設利用申込書!I33","v":0},null,null,null,null,null,null,null,null,null,null,null,null,null,null,null,null,null,null,null,null,null,"円",null,null,null,null,null,null,null,null,null,"円"]
[null,null,null,null,null,null,null,null,null,null,null,{"$f":"施設利用申込書!R33","v":"00:00:00"},null,null,"～",{"$f":"施設利用申込書!X33","v":"00:00:00"},null,null,null,null,null,null,null,null,null,null,null,null,null,null,null,null,null,null,null,null,null,null,null,null,null,null,null,null,"円"]
[null,null,null,null,null,null,null,null,null,{"$f":"施設利用申込書!A34","v":"00:00:00"},null,null,null,null,null,null,{"$f":"施設利用申込書!F34","v":""},null,null,null,null,null,{"$f":"施設利用申込書!I34","v":0},null,null,null,null,null,null,null,null,null,null,null,null,null,null,null,null,null,null,null,null,null,"円",null,null,null,null,null,null,null,null,null,"円"]
[null,null,null,null,null,null,null,null,null,null,null,{"$f":"施設利用申込書!R34","v":"00:00:00"},null,null,"～",{"$f":"施設利用申込書!X34","v":"00:00:00"},null,null,null,null,null,null,null,null,null,null,null,null,null,null,null,null,null,null,null,null,null,null,null,null,null,null,null,null,"円"]
[null,null,null,null,null,null,null,null,null,{"$f":"施設利用申込書!A35","v":"00:00:00"},null,null,null,null,null,null,{"$f":"施設利用申込書!F35","v":""},null,null,null,null,null,{"$f":"施設利用申込書!I35","v":0},null,null,null,null,null,null,null,null,null,null,null,null,null,null,null,null,null,null,null,null,null,"円",null,null,null,null,null,null,null,null,null,"円"]
[null,null,null,null,null,null,null,null,null,null,null,{"$f":"施設利用申込書!R35","v":"00:00:00"},null,null,"～",{"$f":"施設利用申込書!X35","v":"00:00:00"},null,null,null,null,null,null,null,null,null,null,null,null,null,null,null,null,null,null,null,null,null,null,null,null,null,null,null,null,"円"]
[null,null,null,null,null,null,null,null,null,{"$f":"施設利用申込書!A36","v":"00:00:00"},null,null,null,null,null,null,{"$f":"施設利用申込書!F36","v":""},null,null,null,null,null,{"$f":"施設利用申込書!I36","v":0},null,null,null,null,null,null,null,null,null,null,null,null,null,null,null,null,null,null,null,null,null,"円",null,null,null,null,null,null,null,null,null,"円"]
[null,null,null,null,null,null,null,null,null,null,null,{"$f":"施設利用申込書!R36","v":"00:00:00"},null,null,"～",{"$f":"施設利用申込書!X36","v":"00:00:00"},null,null,null,null,null,null,null,null,null,null,null,null,null,null,null,null,null,null,null,null,null,null,null,null,null,null,null,null,"円"]
[null,null,null,null,null,null,null,null,null,{"$f":"施設利用申込書!A37","v":"00:00:00"},null,null,null,null,null,null,{"$f":"施設利用申込書!F37","v":""},null,null,null,null,null,{"$f":"施設利用申込書!I37","v":0},null,null,null,null,null,null,null,null,null,null,null,null,null,null,null,null,null,null,null,null,null,"円",null,null,null,null,null,null,null,null,null,"円"]
[null,null,null,null,null,null,null,null,null,null,null,{"$f":"施設利用申込書!R37","v":"00:00:00"},null,null,"～",{"$f":"施設利用申込書!X37","v":"00:00:00"},null,null,null,null,null,null,null,null,null,null,null,null,null,null,null,null,null,null,null,null,null,null,null,null,null,null,null,null,"円"]
[null,null,null,null,null,null,null,null,null,{"$f":"施設利用申込書!A38","v":"00:00:00"},null,null,null,null,null,null,{"$f":"施設利用申込書!F38","v":""},null,null,null,null,null,{"$f":"施設利用申込書!I38","v":0},null,null,null,null,null,null,null,null,null,null,null,null,null,null,null,null,null,null,null,null,null,"円",null,null,null,null,null,null,null,null,null,"円"]
[null,null,null,null,null,null,null,null,null,null,null,{"$f":"施設利用申込書!R38","v":"00:00:00"},null,null,"～",{"$f":"施設利用申込書!X38","v":"00:00:00"},null,null,null,null,null,null,null,null,null,null,null,null,null,null,null,null,null,null,null,null,null,null,null,null,null,null,null,null,"円"]
[null,null,null,null,null,null,null,null,null,"施　設　使　用　料　計",null,null,null,null,null,null,0,null,null,null,null,null,null,null,null,null,"円",null,null,"付属設備料使用料",null,null,null,null,null,null,null,null,null,null,null,null,null,0,null,null,null,null,null,null,null,null,null,"円"]
[null,null,null,null,null,null,null,null,null,"早　朝　時　間　外",null,null,null,null,null,null,0,null,null,null,null,null,null,null,null,null,"円",null,null,"　冷　暖　房　料　",null,null,null,null,null,null,null,null,null,null,null,null,null,0,null,null,null,null,null,null,null,null,null,"円"]
[null,null,null,null,null,null,null,null,null,"使用料減免額計",null,null,null,null,null,null,0,null,null,null,null,null,null,null,null,null,"円",null,null,"合　　　　　　計",null,null,null,null,null,null,null,null,null,null,null,null,null,{"$f":"SUM(Q45+Q46+AR45-Q47)","v":0},null,null,null,null,null,null,null,null,null,"円"]
[]
[null,null,null,null,null,null,null,null,null,"備　　　　　　　考"]
[]
[]
[]
[null,null,null,null,null,null,null,null,null,null,null,null,null,null,null,null,null,null,null,null,null,null,null,null,null,null,null,null,null,null,null,null,null,null,null,null,"使用料受領印"]

{"sheet":"料金マスタ2","index":4,"n_rows":53,"n_cols":110,"rows_kept":53,"cut":false,"hidden":true,"merged":[[45,103,48,103],[23,102,24,103],[42,83,43,84],[23,91,24,95],[25,102,32,102],[25,103,28,103],[29,103,32,103],[33,102,40,102],[33,103,36,103],[37,103,40,103],[41,102,48,102],[41,103,44,103],[45,92,48,92],[41,91,48,91],[41,92,44,92],[37,92,40,92],[33,91,40,91],[33,92,36,92],[29,92,32,92],[25,92,28,92],[52,36,52,45],[24,83,25,84],[26,83,27,84],[28,83,29,84],[30,83,31,84],[32,83,33,84],[34,83,35,84],[36,83,37,84],[38,83,39,84],[40,83,41,84],[43,46,43,53],[42,79,43,80],[42,81,43,82],[42,44,42,45],[42,46,42,53],[42,54,42,55],[42,60,43,66],[40,78,41,78],[40,79,41,80],[40,81,41,82],[39,54,39,55],[38,77,39,77],[42,75,43,75],[40,75,41,75],[44,9,44,15],[44,16,44,25],[44,26,44,28],[44,29,44,42],[44,43,44,52],[44,53,44,55],[42,76,43,76],[42,77,43,77],[25,91,32,91],[35,22,35,25],[37,22,37,25],[39,22,39,25],[41,22,41,25],[43,22,43,25],[42,78,43,78],[43,11,43,13],[43,15,43,18],[43,36,43,43],[43,44,43,45],[42,69,43,69],[42,70,43,70],[42,71,43,71],[42,72,43,72],[42,73,43,74],[46,9,46,15],[46,16,46,25],[46,26,46,28],[46,29,46,42],[46,43,46,52],[46,53,46,55],[48,9,49,15],[48,16,49,55],[45,9,45,15],[45,16,45,25],[45,26,45,28],[45,29,45,42],[45,43,45,52],[45,53,45,55],[42,9,42,15],[42,16,42,17],[42,22,42,35],[42,36,42,43],[41,11,41,13],[41,15,41,18],[41,36,41,43],[41,44,41,45],[41,46,41,53],[40,76,41,76],[40,77,41,77],[40,60,41,66],[40,69,41,69],[40,70,41,70],[40,71,41,71],[40,72,41,72],[40,73,41,74],[40,9,40,15],[40,16,40,17],[40,22,40,35],[40,36,40,43],[40,44,40,45],[40,46,40,53],[40,54,40,55],[38,81,39,82],[39,11,39,13],[39,15,39,18],[39,36,39,43],[39,44,39,45],[39,46,39,53],[38,70,39,70],[38,71,39,71],[38,72,39,72],[38,73,39,74],[38,75,39,75],[38,76,39,76],[38,9,38,15],[38,16,38,17],[38,22,38,35],[38,36,38,43],[38,44,38,45],[38,46,38,53],[38,54,38,55],[38,60,39,66],[38,69,39,69],[38,78,39,78],[38,79,39,80],[36,81,37,82],[37,11,37,13],[37,15,37,18],[37,36,37,43],[37,44,37,45],[37,46,37,53],[37,54,37,55],[36,73,37,74],[36,75,37,75],[36,76,37,76],[36,77,37,77],[36,78,37,78],[36,79,37,80],[36,54,36,55],[36,60,37,66],[36,69,37,69],[36,70,37,70],[36,71,37,71],[36,72,37,72],[36,9,36,15],[36,16,36,17],[36,22,36,35],[36,36,36,43],[36,44,36,45],[36,46,36,53],[34,76,35,76],[34,77,35,77],[34,78,35,78],[34,79,35,80],[34,81,35,82],[35,11,35,13],[35,15,35,18],[35,36,35,43],[35,44,35,45],[34,69,35,69],[34,70,35,70],[34,71,35,71],[34,72,35,72],[34,73,35,74],[34,75,35,75],[34,9,34,15],[34,16,34,17],[34,22,34,35],[34,36,34,43],[34,44,34,45],[34,46,34,53],[34,54,34,55],[34,60,35,66],[32,81,33,82],[33,11,33,13],[33,15,33,18],[33,36,33,43],[33,44,33,45],[32,73,33,74],[32,75,33,75],[32,76,33,76],[32,77,33,77],[32,78,33,78],[32,79,33,80],[32,54,32,55],[32,60,33,66],[32,69,33,69],[32,70,33,70],[32,71,33,71],[32,72,33,72],[32,9,32,15],[32,16,32,17],[32,22,32,35],[32,36,32,43],[32,44,32,45],[32,46,32,53],[33,22,33,25],[30,77,31,77],[30,78,31,78],[30,79,31,80],[30,81,31,82],[31,11,31,13],[31,15,31,18],[31,36,31,43],[31,44,31,45],[30,70,31,70],[30,71,31,71],[30,72,31,72],[30,73,31,74],[30,75,31,75],[30,76,31,76],[30,9,30,15],[30,16,30,17],[30,22,30,35],[30,36,30,43],[30,44,30,45],[30,46,30,53],[30,54,30,55],[30,60,31,66],[30,69,31,69],[31,22,31,25],[28,81,29,82],[29,11,29,13],[29,15,29,18],[29,36,29,43],[29,44,29,45],[28,73,29,74],[28,75,29,75],[28,76,29,76],[28,77,29,77],[28,78,29,78],[28,79,29,80],[28,54,28,55],[28,60,29,66],[28,69,29,69],[28,70,29,70],[28,71,29,71],[28,72,29,72],[28,9,28,15],[28,16,28,17],[28,22,28,35],[28,36,28,43],[28,44,28,45],[28,46,28,53],[29,22,29,25],[26,77,27,77],[26,78,27,78],[26,79,27,80],[26,81,27,82],[27,11,27,13],[27,15,27,18],[27,36,27,43],[27,44,27,45],[26,69,27,69],[26,70,27,70],[26,71,27,71],[26,72,27,72],[26,73,27,74],[26,75,27,75],[26,9,26,15],[26,16,26,17],[26,22,26,35],[26,36,26,43],[26,44,26,45],[26,46,26,53],[26,54,26,55],[26,60,27,66],[27,22,27,25],[24,16,24,17],[24,22,24,35],[24,36,24,43],[24,44,24,45],[24,46,24,53],[24,54,24,55],[24,60,25,66],[24,69,25,69],[26,76,27,76],[22,9,22,15],[23,9,23,21],[23,22,23,35],[23,36,23,45],[23,46,23,55],[23,60,23,66],[23,79,23,80],[25,22,25,25],[23,81,23,82],[24,77,25,77],[24,78,25,78],[24,79,25,80],[24,81,25,82],[25,11,25,13],[25,15,25,18],[25,36,25,43],[25,44,25,45],[24,70,25,70],[24,71,25,71],[24,72,25,72],[24,73,25,74],[24,75,25,75],[24,76,25,76],[24,9,24,15],[20,41,20,45],[20,46,20,53],[20,54,20,55],[21,9,21,15],[21,16,21,17],[21,18,21,40],[21,41,21,55],[20,9,20,15],[20,16,20,23],[20,24,20,25],[20,26,20,31],[20,32,20,35],[20,37,20,39],[18,9,18,15],[18,16,18,55],[19,9,19,15],[19,16,19,55],[16,9,16,15],[16,16,16,55],[17,9,17,15],[17,16,17,55],[15,9,15,15],[15,16,15,55],[13,16,13,20],[13,21,13,55],[6,9,6,24],[6,36,6,44],[6,45,6,55],[7,9,14,15],[8,16,8,20],[8,23,8,30],[9,21,9,55],[2,8,2,54],[3,8,3,55],[4,10,4,56],[5,8,5,17],[5,44,5,45],[5,46,5,53],[9,59,9,63],[10,59,11,63],[11,16,11,20]]}
[]
[]
[null,null,null,null,null,null,null,null,"施　　設　　利　　用　　申　　込　　書"]
[null,null,null,null,null,null,null,null,"施　設　利　用　料　減　免　承　認　申　請　書"]
[null,null,null,null,null,null,null,null,null,null,"施　設　利　用　料　等　領　収　書"]
[null,null,null,null,null,null,null,null,null,null,null,null,null,null,null,null,null,null,null,null,null,null,null,null,null,null,null,null,null,null,null,null,null,null,null,null,null,null,null,null,null,null,null,null,null,null,{"$f":"TODAY()","v":"2023-08-20"}]
[null,null,null,null,null,null,null,null,null,"　福岡県立総合プール　　所長　　殿"]
[null,null,null,null,null,null,null,null,null,"利用者"]
[null,null,null,null,null,null,null,null,null,null,null,null,null,null,null,null,"所在地）",null,null,null,null,"〒",null,{"$f":"施設利用申込書!L24&-施設利用申込書!P24","v":"0"}]
[null,null,null,null,null,null,null,null,null,null,null,null,null,null,null,null,null,null,null,null,null,{"$f":"施設利用申込書!L25","v":0},null,null,null,null,null,null,null,null,null,null,null,null,null,null,null,null,null,null,null,null,null,null,null,null,null,null,null,null,null,null,null,null,null,null,null,null,null,"減免番号"]
[null,null,null,null,null,null,null,null,null,null,null,null,null,null,null,null,null,null,null,null,null,null,null,null,null,null,null,null,null,null,null,null,null,null,null,null,null,null,null,null,null,null,null,null,null,null,null,null,null,null,null,null,null,null,null,null,null,null,null,1,null,null,null,null,null,null,null,null,"有"]
[null,null,null,null,null,null,null,null,null,null,null,null,null,null,null,null,"名　称　）",null,null,null,null,{"$f":"施設利用申込書!I11","v":0},null,null,null,null,null,null,null,null,null,null,null,null,null,null,null,null,null,null,null,null,null,null,null,null,null,null,null,null,null,null,null,null,null,null,null,null,null,null,null,null,null,null,null,null,null,null,"無"]
[]
[null,null,null,null,null,null,null,null,null,null,null,null,null,null,null,null,"電　話　）",null,null,null,null,{"$f":"施設利用申込書!BK18","v":"00"}]
[]
[null,null,null,null,null,null,null,null,null,"主催者名",null,null,null,null,null,null,{"$f":"施設利用申込書!I22","v":0}]
[null,null,null,null,null,null,null,null,null,"後援者名",null,null,null,null,null,null,{"$f":"施設利用申込書!I23","v":0}]
[null,null,null,null,null,null,null,null,null,"代表職氏名"]
[null,null,null,null,null,null,null,null,null,"責任者名",null,null,null,null,null,null,{"$f":"施設利用申込書!I14","v":0}]
[null,null,null,null,null,null,null,null,null,"利用目的",null,null,null,null,null,null,{"$f":"施設利用申込書!I18","v":0}]
[null,null,null,null,null,null,null,null,null,"利用人員",null,null,null,null,null,null,{"$f":"施設利用申込書!G19+施設利用申込書!U19","v":0},null,null,null,null,null,null,null,"人",null,"区分",null,null,null,null,null,{"$f":"施設利用申込書!BU20","v":{"$error":"#N/A"}},null,null,null,"(",{"$f":"施設利用申込書!I20","v":0},null,null,")","金額",null,null,null,null,{"$f":"施設利用申込書!N20","v":0},null,null,null,null,null,null,null,"円"]
[null,null,null,null,null,null,null,null,null,"減免",null,null,null,null,null,null,"有",null,{"$f":"_xlfn.SWITCH(Q22,\"有\",\"福岡県立体育・スポーツ施設使用料条例施行規則\",\"無\",\"\")","v":"福岡県立体育・スポーツ施設使用料条例施行規則"},null,null,null,null,null,null,null,null,null,null,null,null,null,null,null,null,null,null,null,null,null,null,{"$f":"_xlfn.SWITCH(BH11,\"無\",\"\",1,\"第五条第1項第一号\",2,\"第五条第1項第二号\",3,\"第五条第1項第三号\",4,\"第五条第1項第四号\",5,\"第五条第1項第五号\")","v":"第五条第1項第一号"}]
[]
[null,null,null,null,null,null,null,null,null,"利用日時",null,null,null,null,null,null,null,null,null,null,null,null,"利用施設",null,null,null,null,null,null,null,null,null,null,null,null,null,"使用料減免額",null,null,null,null,null,null,null,null,null,"減免後使用料",null,null,null,null,null,null,null,null,null,null,null,null,null,"減免前金額",null,null,null,null,null,null,null,null,"区分","平祝","施設","時間",null,null,"区分","平祝","施設","時間","コード",null,"折り返し値",null,null,null,null,null,null,null,null,null,"料金表",null,null,null,null,"A","B","C","D","E","F","コード表",null,"A","B","C","D","E","F"]
[null,null,null,null,null,null,null,null,null,{"$f":"施設利用申込書!A29","v":"00:00:00"},null,null,null,null,null,null,{"$f":"施設利用申込書!F29","v":""},null,null,null,null,null,{"$f":"施設利用申込書!I29","v":0},null,null,null,null,null,null,null,null,null,null,null,null,null,null,null,null,null,null,null,null,null,"円",null,null,null,null,null,null,null,null,null,"円",null,null,null,null,null,{"$f":"VLOOKUP(CF25,料金マスタ!$A$2:$B$145,2,FALSE)","v":166330},null,null,null,null,null,null,"始",{"$f":"L26","v":"00:00:00"},"アマ","平日","25ｍ冬","F",null,null,{"$f":"_xlfn.SWITCH(BR25,\"アマ\",1,\"入徴\",2,\"プロ\",3,\"\")","v":1},{"$f":"_xlfn.SWITCH(BS25,\"平日\",1,\"休日\",2,\"\")","v":1},{"$f":"_xlfn.SWITCH(BT25,\"50ｍ\",1,\"25ｍ夏\",2,\"25ｍ冬\",3,\"スケ\",4,\"\")","v":3},{"$f":"_xlfn.SWITCH(BU25,\"A\",1,\"B\",2,\"C\",3,\"D\",4,\"E\",5,\"F\",6,\"\")","v":6},{"$f":"BX25&BY25&BZ25&CA25","v":"1136"},null,"1111",null,1136,null,null,null,null,null,null,null,null,null,null,null,null,"9-13","13-17","17-21","9-17","13-21","9-21",null,null,"9-13","13-17","17-21","9-17","13-21","9-21"]
[null,null,null,null,null,null,null,null,null,null,null,{"$f":"施設利用申込書!R29","v":"00:00:00"},null,null,"～",{"$f":"施設利用申込書!X29","v":"00:00:00"},null,null,null,null,null,null,{"$f":"IF($Q$22=\"有\",\"減免あり\",IF($Q$22=\"無\",\"減免なし\",IF($Q$22=\"\",\"\")))","v":"減免あり"},null,null,null,null,{"$f":"IF(Q25=\"(土)\",\"土日祝料金 1.2割増\",IF(Q25=\"(日)\",\"土日祝料金 1.2割増\",IF(Q25=\"(月)\",\"平日料金\",IF(Q25=\"(火)\",\"平日料金\",IF(Q25=\"(水)\",\"平日料金\",IF(Q25=\"(木)\",\"平日料金\",IF(Q25=\"(金)\",\"平日料金\",IF(Q25=\"\",\"\"))))))))","v":""},null,null,null,null,null,null,null,null,null,null,null,null,null,null,null,null,"円",null,null,null,null,null,null,null,null,null,null,null,null,null,null,null,null,null,null,null,null,null,null,"終",{"$f":"P26","v":"00:00:00"},null,null,null,null,null,null,null,null,null,null,null,null,null,null,null,null,null,null,null,null,null,null,"アマ","平日",null,"50ｍ",1,50120,50120,62650,100250,112780,162910,"アマ","平日",1111,1112,1113,1114,1115,1116]
[null,null,null,null,null,null,null,null,null,{"$f":"施設利用申込書!A30","v":"00:00:00"},null,null,null,null,null,null,{"$f":"施設利用申込書!F31","v":""},null,null,null,null,null,{"$f":"施設利用申込書!I30","v":0},null,null,null,null,null,null,null,null,null,null,null,null,null,null,null,null,null,null,null,null,null,"円",null,null,null,null,null,null,null,null,null,"円",null,null,null,null,null,{"$f":"VLOOKUP(CF27,料金マスタ!$A$2:$B$145,2,FALSE)","v":205070},null,null,null,null,null,null,null,null,"入徴","平日","25ｍ夏","D",null,null,{"$f":"_xlfn.SWITCH(BR27,\"アマ\",1,\"入徴\",2,\"プロ\",3,\"\")","v":2},{"$f":"_xlfn.SWITCH(BS27,\"平日\",1,\"休日\",2,\"\")","v":1},{"$f":"_xlfn.SWITCH(BT27,\"50ｍ\",1,\"25ｍ夏\",2,\"25ｍ冬\",3,\"スケ\",4,\"\")","v":2},{"$f":"_xlfn.SWITCH(BU27,\"A\",1,\"B\",2,\"C\",3,\"D\",4,\"E\",5,\"F\",6,\"\")","v":4},{"$f":"BX27&BY27&BZ27&CA27","v":"2124"},null,"1121",null,2124,null,null,null,null,null,null,null,null,null,"夏","25ｍ夏",2,34170,34170,42150,68350,76330,110510,null,null,1121,1122,1123,1124,1125,1126]
[null,null,null,null,null,null,null,null,null,null,null,{"$f":"施設利用申込書!R30","v":"00:00:00"},null,null,"～",{"$f":"施設利用申込書!X30","v":"00:00:00"},null,null,null,null,null,null,{"$f":"IF($Q$22=\"有\",\"減免あり\",IF($Q$22=\"無\",\"減免なし\",IF($Q$22=\"\",\"\",IF(J27=\"\",\"\"))))","v":"減免あり"},null,null,null,null,{"$f":"IF(Q27=\"(土)\",\"土日祝料金 1.2割増\",IF(Q27=\"(日)\",\"土日祝料金 1.2割増\",IF(Q27=\"(月)\",\"平日料金\",IF(Q27=\"(火)\",\"平日料金\",IF(Q27=\"(水)\",\"平日料金\",IF(Q27=\"(木)\",\"平日料金\",IF(Q27=\"(金)\",\"平日料金\",IF(Q27=\"\",\"\"))))))))","v":""},null,null,null,null,null,null,null,null,null,null,null,null,null,null,null,null,"円",null,null,null,null,null,null,null,null,null,null,null,null,null,null,null,null,null,null,null,null,null,null,null,null,null,null,null,null,null,null,null,null,null,null,null,null,null,null,null,null,null,null,null,null,null,null,null,null,"冬","25ｍ冬",3,51260,51260,63790,102530,115060,166330,null,null,1131,1132,1133,1134,1135,1136]
[null,null,null,null,null,null,null,null,null,{"$f":"施設利用申込書!A31","v":"00:00:00"},null,null,null,null,null,null,{"$f":"施設利用申込書!F31","v":""},null,null,null,null,null,{"$f":"施設利用申込書!I31","v":0},null,null,null,null,null,null,null,null,null,null,null,null,null,null,null,null,null,null,null,null,null,"円",null,null,null,null,null,null,null,null,null,"円",null,null,null,null,null,{"$f":"VLOOKUP(CF29,料金マスタ!$A$2:$B$145,2,FALSE)","v":61512},null,null,null,null,null,null,null,null,"アマ","休日","25ｍ冬","A",null,null,{"$f":"_xlfn.SWITCH(BR29,\"アマ\",1,\"入徴\",2,\"プロ\",3,\"\")","v":1},{"$f":"_xlfn.SWITCH(BS29,\"平日\",1,\"休日\",2,\"\")","v":2},{"$f":"_xlfn.SWITCH(BT29,\"50ｍ\",1,\"25ｍ夏\",2,\"25ｍ冬\",3,\"スケ\",4,\"\")","v":3},{"$f":"_xlfn.SWITCH(BU29,\"A\",1,\"B\",2,\"C\",3,\"D\",4,\"E\",5,\"F\",6,\"\")","v":1},{"$f":"BX29&BY29&BZ29&CA29","v":"1231"},null,"1211",null,1231,null,null,null,null,null,null,null,null,null,null,"スケ",4,66070,66070,83160,132150,149240,215320,null,null,1141,1142,1143,1144,1145,1146]
[null,null,null,null,null,null,null,null,null,null,null,{"$f":"施設利用申込書!R31","v":"00:00:00"},null,null,"～",{"$f":"施設利用申込書!X31","v":"00:00:00"},null,null,null,null,null,null,{"$f":"IF($Q$22=\"有\",\"減免あり\",IF($Q$22=\"無\",\"減免なし\",IF($Q$22=\"\",\"\")))","v":"減免あり"},null,null,null,null,{"$f":"IF(Q29=\"(土)\",\"土日祝料金 1.2割増\",IF(Q29=\"(日)\",\"土日祝料金 1.2割増\",IF(Q29=\"(月)\",\"平日料金\",IF(Q29=\"(火)\",\"平日料金\",IF(Q29=\"(水)\",\"平日料金\",IF(Q29=\"(木)\",\"平日料金\",IF(Q29=\"(金)\",\"平日料金\",IF(Q29=\"\",\"\"))))))))","v":""},null,null,null,null,null,null,null,null,null,null,null,null,null,null,null,null,"円",null,null,null,null,null,null,null,null,null,null,null,null,null,null,null,null,null,null,null,null,null,null,null,null,null,null,null,null,null,null,null,null,null,null,null,null,null,null,null,null,null,null,null,null,null,null,null,"休日",null,"50ｍ",5,{"$f":"CS26*1.2","v":60144},{"$f":"CT26*1.2","v":60144},75180,120300,135336,195492,null,"休日",1211,1212,1213,1214,1215,1216]
[null,null,null,null,null,null,null,null,null,{"$f":"施設利用申込書!A32","v":"00:00:00"},null,null,null,null,null,null,{"$f":"施設利用申込書!F32","v":""},null,null,null,null,null,{"$f":"施設利用申込書!I32","v":0},null,null,null,null,null,null,null,null,null,null,null,null,null,null,null,null,null,null,null,null,null,"円",null,null,null,null,null,null,null,null,null,"円",null,null,null,null,null,{"$f":"VLOOKUP(CF31,料金マスタ!$A$2:$B$145,2,FALSE)","v":1171152},null,null,null,null,null,null,null,null,"プロ","休日","50ｍ","C",null,null,{"$f":"_xlfn.SWITCH(BR31,\"アマ\",1,\"入徴\",2,\"プロ\",3,\"\")","v":3},{"$f":"_xlfn.SWITCH(BS31,\"平日\",1,\"休日\",2,\"\")","v":2},{"$f":"_xlfn.SWITCH(BT31,\"50ｍ\",1,\"25ｍ夏\",2,\"25ｍ冬\",3,\"スケ\",4,\"\")","v":1},{"$f":"_xlfn.SWITCH(BU31,\"A\",1,\"B\",2,\"C\",3,\"D\",4,\"E\",5,\"F\",6,\"\")","v":3},{"$f":"BX31&BY31&BZ31&CA31","v":"3213"},null,"1141",null,3213,null,null,null,null,null,null,null,null,null,null,"25ｍ夏",6,{"$f":"CS27*1.2","v":41004},41004,50580,82020,91596,132612,null,null,1221,1222,1223,1224,1225,1226]
[null,null,null,null,null,null,null,null,null,null,null,{"$f":"施設利用申込書!R32","v":"00:00:00"},null,null,"～",{"$f":"施設利用申込書!X32","v":"00:00:00"},null,null,null,null,null,null,{"$f":"IF($Q$22=\"有\",\"減免あり\",IF($Q$22=\"無\",\"減免なし\",IF($Q$22=\"\",\"\")))","v":"減免あり"},null,null,null,null,{"$f":"IF(Q31=\"(土)\",\"土日祝料金 1.2割増\",IF(Q31=\"(日)\",\"土日祝料金 1.2割増\",IF(Q31=\"(月)\",\"平日料金\",IF(Q31=\"(火)\",\"平日料金\",IF(Q31=\"(水)\",\"平日料金\",IF(Q31=\"(木)\",\"平日料金\",IF(Q31=\"(金)\",\"平日料金\",IF(Q31=\"\",\"\"))))))))","v":""},null,null,null,null,null,null,null,null,null,null,null,null,null,null,null,null,"円",null,null,null,null,null,null,null,null,null,null,null,null,null,null,null,null,null,null,null,null,null,null,null,null,null,null,null,null,null,null,null,null,null,null,null,null,null,null,null,null,null,null,null,null,null,null,null,null,null,"25ｍ冬",7,61512,61512,76548,123036,138072,199596,null,null,1231,1232,1233,1234,1235,1236]
[null,null,null,null,null,null,null,null,null,{"$f":"施設利用申込書!A33","v":"00:00:00"},null,null,null,null,null,null,{"$f":"施設利用申込書!F33","v":""},null,null,null,null,null,{"$f":"施設利用申込書!I33","v":0},null,null,null,null,null,null,null,null,null,null,null,null,null,null,null,null,null,null,null,null,null,"円",null,null,null,null,null,null,null,null,null,"円",null,null,null,null,null,{"$f":"VLOOKUP(CF33,料金マスタ!$A$2:$B$145,2,FALSE)","v":120300},null,null,null,null,null,null,null,null,"アマ","休日","50ｍ","D",null,null,{"$f":"_xlfn.SWITCH(BR33,\"アマ\",1,\"入徴\",2,\"プロ\",3,\"\")","v":1},{"$f":"_xlfn.SWITCH(BS33,\"平日\",1,\"休日\",2,\"\")","v":2},{"$f":"_xlfn.SWITCH(BT33,\"50ｍ\",1,\"25ｍ夏\",2,\"25ｍ冬\",3,\"スケ\",4,\"\")","v":1},{"$f":"_xlfn.SWITCH(BU33,\"A\",1,\"B\",2,\"C\",3,\"D\",4,\"E\",5,\"F\",6,\"\")","v":4},{"$f":"BX33&BY33&BZ33&CA33","v":"1214"},null,"1114",null,1214,null,null,null,null,null,null,null,null,null,null,"スケ",8,{"$f":"CS29*1.2","v":79284},79284,99792,158580,179088,258384,null,null,1241,1242,1243,1244,1245,1246]
[null,null,null,null,null,null,null,null,null,null,null,{"$f":"施設利用申込書!R33","v":"00:00:00"},null,null,"～",{"$f":"施設利用申込書!X33","v":"00:00:00"},null,null,null,null,null,null,{"$f":"IF($Q$22=\"有\",\"減免あり\",IF($Q$22=\"無\",\"減免なし\",IF($Q$22=\"\",\"\")))","v":"減免あり"},null,null,null,null,{"$f":"IF(Q33=\"(土)\",\"土日祝料金 1.2割増\",IF(Q33=\"(日)\",\"土日祝料金 1.2割増\",IF(Q33=\"(月)\",\"平日料金\",IF(Q33=\"(火)\",\"平日料金\",IF(Q33=\"(水)\",\"平日料金\",IF(Q33=\"(木)\",\"平日料金\",IF(Q33=\"(金)\",\"平日料金\",IF(Q33=\"\",\"\"))))))))","v":""},null,null,null,null,null,null,null,null,null,null,null,null,null,null,null,null,"円",null,null,null,null,null,null,null,null,null,null,null,null,null,null,null,null,null,null,null,null,null,null,null,null,null,null,null,null,null,null,null,null,null,null,null,null,null,null,null,null,null,null,null,null,null,null,"入徴","平日",null,"50ｍ",1,150380,150380,187980,300770,338360,488750,"入徴","平日",2111,2112,2113,2114,2115,2116]
[null,null,null,null,null,null,null,null,null,{"$f":"施設利用申込書!A34","v":"00:00:00"},null,null,null,null,null,null,{"$f":"施設利用申込書!F34","v":""},null,null,null,null,null,{"$f":"施設利用申込書!I34","v":0},null,null,null,null,null,null,null,null,null,null,null,null,null,null,null,null,null,null,null,null,null,"円",null,null,null,null,null,null,null,null,null,"円",null,null,null,null,null,{"$f":"VLOOKUP(CF35,料金マスタ!$A$2:$B$145,2,FALSE)","v":102530},null,null,null,null,null,null,null,null,"プロ","平日","25ｍ夏","A",null,null,{"$f":"_xlfn.SWITCH(BR35,\"アマ\",1,\"入徴\",2,\"プロ\",3,\"\")","v":3},{"$f":"_xlfn.SWITCH(BS35,\"平日\",1,\"休日\",2,\"\")","v":1},{"$f":"_xlfn.SWITCH(BT35,\"50ｍ\",1,\"25ｍ夏\",2,\"25ｍ冬\",3,\"スケ\",4,\"\")","v":2},{"$f":"_xlfn.SWITCH(BU35,\"A\",1,\"B\",2,\"C\",3,\"D\",4,\"E\",5,\"F\",6,\"\")","v":1},{"$f":"BX35&BY35&BZ35&CA35","v":"3121"},null,"1121",null,3121,null,null,null,null,null,null,null,null,null,"夏","25ｍ夏",2,102530,102530,126460,205070,228990,331530,null,null,2121,2122,2123,2124,2125,2126]
[null,null,null,null,null,null,null,null,null,null,null,{"$f":"施設利用申込書!R34","v":"00:00:00"},null,null,"～",{"$f":"施設利用申込書!X34","v":"00:00:00"},null,null,null,null,null,null,{"$f":"IF($Q$22=\"有\",\"減免あり\",IF($Q$22=\"無\",\"減免なし\",IF($Q$22=\"\",\"\")))","v":"減免あり"},null,null,null,null,{"$f":"IF(Q35=\"(土)\",\"土日祝料金 1.2割増\",IF(Q35=\"(日)\",\"土日祝料金 1.2割増\",IF(Q35=\"(月)\",\"平日料金\",IF(Q35=\"(火)\",\"平日料金\",IF(Q35=\"(水)\",\"平日料金\",IF(Q35=\"(木)\",\"平日料金\",IF(Q35=\"(金)\",\"平日料金\",IF(Q35=\"\",\"\"))))))))","v":""},null,null,null,null,null,null,null,null,null,null,null,null,null,null,null,null,"円",null,null,null,null,null,null,null,null,null,null,null,null,null,null,null,null,null,null,null,null,null,null,null,null,null,null,null,null,null,null,null,null,null,null,null,null,null,null,null,null,null,null,null,null,null,null,null,null,"冬","25ｍ冬",3,153800,153800,191400,307600,345200,499000,null,null,2131,2132,2133,2134,2135,2136]
[null,null,null,null,null,null,null,null,null,{"$f":"施設利用申込書!A35","v":"00:00:00"},null,null,null,null,null,null,{"$f":"施設利用申込書!F35","v":""},null,null,null,null,null,{"$f":"施設利用申込書!I35","v":0},null,null,null,null,null,null,null,null,null,null,null,null,null,null,null,null,null,null,null,null,null,"円",null,null,null,null,null,null,null,null,null,"円",null,null,null,null,null,{"$f":"VLOOKUP(CF37,料金マスタ!$A$2:$B$145,2,FALSE)","v":51260},null,null,null,null,null,null,null,null,"アマ","平日","25ｍ冬","A",null,null,{"$f":"_xlfn.SWITCH(BR37,\"アマ\",1,\"入徴\",2,\"プロ\",3,\"\")","v":1},{"$f":"_xlfn.SWITCH(BS37,\"平日\",1,\"休日\",2,\"\")","v":1},{"$f":"_xlfn.SWITCH(BT37,\"50ｍ\",1,\"25ｍ夏\",2,\"25ｍ冬\",3,\"スケ\",4,\"\")","v":3},{"$f":"_xlfn.SWITCH(BU37,\"A\",1,\"B\",2,\"C\",3,\"D\",4,\"E\",5,\"F\",6,\"\")","v":1},{"$f":"BX37&BY37&BZ37&CA37","v":"1131"},null,"1131",null,1131,null,null,null,null,null,null,null,null,null,null,"スケ",4,198230,198230,249500,396470,447740,645970,null,null,2141,2142,2143,2144,2145,2146]
[null,null,null,null,null,null,null,null,null,null,null,{"$f":"施設利用申込書!R35","v":"00:00:00"},null,null,"～",{"$f":"施設利用申込書!X35","v":"00:00:00"},null,null,null,null,null,null,{"$f":"IF($Q$22=\"有\",\"減免あり\",IF($Q$22=\"無\",\"減免なし\",IF($Q$22=\"\",\"\")))","v":"減免あり"},null,null,null,null,{"$f":"IF(Q37=\"(土)\",\"土日祝料金 1.2割増\",IF(Q37=\"(日)\",\"土日祝料金 1.2割増\",IF(Q37=\"(月)\",\"平日料金\",IF(Q37=\"(火)\",\"平日料金\",IF(Q37=\"(水)\",\"平日料金\",IF(Q37=\"(木)\",\"平日料金\",IF(Q37=\"(金)\",\"平日料金\",IF(Q37=\"\",\"\"))))))))","v":""},null,null,null,null,null,null,null,null,null,null,null,null,null,null,null,null,"円",null,null,null,null,null,null,null,null,null,null,null,null,null,null,null,null,null,null,null,null,null,null,null,null,null,null,null,null,null,null,null,null,null,null,null,null,null,null,null,null,null,null,null,null,null,null,null,"休日",null,"50ｍ",5,{"$f":"CS34*1.2","v":180456},{"$f":"CT34*1.2","v":180456},225576,360924,406032,586500,null,"休日",2211,2212,2213,2214,2215,2216]
[null,null,null,null,null,null,null,null,null,{"$f":"施設利用申込書!A36","v":"00:00:00"},null,null,null,null,null,null,{"$f":"施設利用申込書!F36","v":""},null,null,null,null,null,{"$f":"施設利用申込書!I36","v":0},null,null,null,null,null,null,null,null,null,null,null,null,null,null,null,null,null,null,null,null,null,"円",null,null,null,null,null,null,null,null,null,"円",null,null,null,null,null,{"$f":"VLOOKUP(CF39,料金マスタ!$A$2:$B$145,2,FALSE)","v":1550340},null,null,null,null,null,null,null,null,"プロ","休日","スケ","F",null,null,{"$f":"_xlfn.SWITCH(BR39,\"アマ\",1,\"入徴\",2,\"プロ\",3,\"\")","v":3},{"$f":"_xlfn.SWITCH(BS39,\"平日\",1,\"休日\",2,\"\")","v":2},{"$f":"_xlfn.SWITCH(BT39,\"50ｍ\",1,\"25ｍ夏\",2,\"25ｍ冬\",3,\"スケ\",4,\"\")","v":4},{"$f":"_xlfn.SWITCH(BU39,\"A\",1,\"B\",2,\"C\",3,\"D\",4,\"E\",5,\"F\",6,\"\")","v":6},{"$f":"BX39&BY39&BZ39&CA39","v":"3246"},null,"1226",null,3246,null,null,null,null,null,null,null,null,null,null,"25ｍ夏",6,{"$f":"CS35*1.2","v":123036},123036,151752,246084,274788,397836,null,null,2221,2222,2223,2224,2225,2226]
[null,null,null,null,null,null,null,null,null,null,null,{"$f":"施設利用申込書!R36","v":"00:00:00"},null,null,"～",{"$f":"施設利用申込書!X36","v":"00:00:00"},null,null,null,null,null,null,{"$f":"IF($Q$22=\"有\",\"減免あり\",IF($Q$22=\"無\",\"減免なし\",IF($Q$22=\"\",\"\")))","v":"減免あり"},null,null,null,null,{"$f":"IF(Q39=\"(土)\",\"土日祝料金 1.2割増\",IF(Q39=\"(日)\",\"土日祝料金 1.2割増\",IF(Q39=\"(月)\",\"平日料金\",IF(Q39=\"(火)\",\"平日料金\",IF(Q39=\"(水)\",\"平日料金\",IF(Q39=\"(木)\",\"平日料金\",IF(Q39=\"(金)\",\"平日料金\",IF(Q39=\"\",\"\"))))))))","v":""},null,null,null,null,null,null,null,null,null,null,null,null,null,null,null,null,"円",null,null,null,null,null,null,null,null,null,null,null,null,null,null,null,null,null,null,null,null,null,null,null,null,null,null,null,null,null,null,null,null,null,null,null,null,null,null,null,null,null,null,null,null,null,null,null,null,null,"25ｍ冬",7,184560,184560,229680,369120,414240,598800,null,null,2231,2232,2233,2234,2235,2236]
[null,null,null,null,null,null,null,null,null,{"$f":"施設利用申込書!A37","v":"00:00:00"},null,null,null,null,null,null,{"$f":"施設利用申込書!F37","v":""},null,null,null,null,null,{"$f":"施設利用申込書!I37","v":0},null,null,null,null,null,null,null,null,null,null,null,null,null,null,null,null,null,null,null,null,null,"円",null,null,null,null,null,null,null,null,null,"円",null,null,null,null,null,{"$f":"VLOOKUP(CF41,料金マスタ!$A$2:$B$145,2,FALSE)","v":120300},null,null,null,null,null,null,null,null,"アマ","休日","50ｍ","D",null,null,{"$f":"_xlfn.SWITCH(BR41,\"アマ\",1,\"入徴\",2,\"プロ\",3,\"\")","v":1},{"$f":"_xlfn.SWITCH(BS41,\"平日\",1,\"休日\",2,\"\")","v":2},{"$f":"_xlfn.SWITCH(BT41,\"50ｍ\",1,\"25ｍ夏\",2,\"25ｍ冬\",3,\"スケ\",4,\"\")","v":1},{"$f":"_xlfn.SWITCH(BU41,\"A\",1,\"B\",2,\"C\",3,\"D\",4,\"E\",5,\"F\",6,\"\")","v":4},{"$f":"BX41&BY41&BZ41&CA41","v":"1214"},null,"1214",null,1214,null,null,null,null,null,null,null,null,null,null,"スケ",8,{"$f":"CS37*1.2","v":237876},237876,299400,475764,537288,775164,null,null,2241,2242,2243,2244,2245,2246]
[null,null,null,null,null,null,null,null,null,null,null,{"$f":"施設利用申込書!R37","v":"00:00:00"},null,null,"～",{"$f":"施設利用申込書!X37","v":"00:00:00"},null,null,null,null,null,null,{"$f":"IF($Q$22=\"有\",\"減免あり\",IF($Q$22=\"無\",\"減免なし\",IF($Q$22=\"\",\"\")))","v":"減免あり"},null,null,null,null,{"$f":"IF(Q41=\"(土)\",\"土日祝料金 1.2割増\",IF(Q41=\"(日)\",\"土日祝料金 1.2割増\",IF(Q41=\"(月)\",\"平日料金\",IF(Q41=\"(火)\",\"平日料金\",IF(Q41=\"(水)\",\"平日料金\",IF(Q41=\"(木)\",\"平日料金\",IF(Q41=\"(金)\",\"平日料金\",IF(Q41=\"\",\"\"))))))))","v":""},null,null,null,null,null,null,null,null,null,null,null,null,null,null,null,null,"円",null,null,null,null,null,null,null,null,null,null,null,null,null,null,null,null,null,null,null,null,null,null,null,null,null,null,null,null,null,null,null,null,null,null,null,null,null,null,null,null,null,null,null,null,null,null,"プロ","平日",null,"50ｍ",1,300770,300770,975960,601540,676730,977500,"プロ","平日",3111,3112,3113,3114,3115,3116]
[null,null,null,null,null,null,null,null,null,{"$f":"施設利用申込書!A38","v":"00:00:00"},null,null,null,null,null,null,{"$f":"施設利用申込書!F38","v":""},null,null,null,null,null,{"$f":"施設利用申込書!I38","v":0},null,null,null,null,null,null,null,null,null,null,null,null,null,null,null,null,null,null,null,null,null,"円",null,null,null,null,null,null,null,null,null,"円",null,null,null,null,null,{"$f":"VLOOKUP(CF43,料金マスタ!$A$2:$B$145,2,FALSE)","v":1173000},null,null,null,null,null,null,null,null,"プロ","休日","50ｍ","F",null,null,{"$f":"_xlfn.SWITCH(BR43,\"アマ\",1,\"入徴\",2,\"プロ\",3,\"\")","v":3},{"$f":"_xlfn.SWITCH(BS43,\"平日\",1,\"休日\",2,\"\")","v":2},{"$f":"_xlfn.SWITCH(BT43,\"50ｍ\",1,\"25ｍ夏\",2,\"25ｍ冬\",3,\"スケ\",4,\"\")","v":1},{"$f":"_xlfn.SWITCH(BU43,\"A\",1,\"B\",2,\"C\",3,\"D\",4,\"E\",5,\"F\",6,\"\")","v":6},{"$f":"BX43&BY43&BZ43&CA43","v":"3216"},null,"1111",null,3216,null,null,null,null,null,null,null,null,null,"夏","25ｍ夏",2,102530,102530,126460,205070,228990,331530,null,null,3121,3122,3123,3124,3125,3126]
[null,null,null,null,null,null,null,null,null,null,null,{"$f":"施設利用申込書!R38","v":"00:00:00"},null,null,"～",{"$f":"施設利用申込書!X38","v":"00:00:00"},null,null,null,null,null,null,{"$f":"IF($Q$22=\"有\",\"減免あり\",IF($Q$22=\"無\",\"減免なし\",IF($Q$22=\"\",\"\")))","v":"減免あり"},null,null,null,null,{"$f":"IF(Q43=\"(土)\",\"土日祝料金 1.2割増\",IF(Q43=\"(日)\",\"土日祝料金 1.2割増\",IF(Q43=\"(月)\",\"平日料金\",IF(Q43=\"(火)\",\"平日料金\",IF(Q43=\"(水)\",\"平日料金\",IF(Q43=\"(木)\",\"平日料金\",IF(Q43=\"(金)\",\"平日料金\",IF(Q43=\"\",\"\"))))))))","v":""},null,null,null,null,null,null,null,null,null,null,null,null,null,null,null,null,"円",null,null,null,null,null,null,null,null,null,null,null,null,null,null,null,null,null,null,null,null,null,null,null,null,null,null,null,null,null,null,null,null,null,null,null,null,null,null,null,null,null,null,null,null,null,null,null,null,"冬","25ｍ冬",3,153800,153800,191400,307600,345200,499000,null,null,3131,3132,3133,3134,3135,3136]
[null,null,null,null,null,null,null,null,null,"施　設　使　用　料　計",null,null,null,null,null,null,0,null,null,null,null,null,null,null,null,null,"円",null,null,"付属設備料使用料",null,null,null,null,null,null,null,null,null,null,null,null,null,0,null,null,null,null,null,null,null,null,null,"円",null,null,null,null,null,null,null,null,null,null,null,null,null,null,null,null,null,null,null,null,null,null,null,null,null,null,null,null,null,null,null,null,null,null,null,null,null,null,null,null,"スケ",4,396470,396470,499000,792940,895480,1291950,null,null,3141,3142,3143,3144,3145,3146]
[null,null,null,null,null,null,null,null,null,"早　朝　時　間　外",null,null,null,null,null,null,0,null,null,null,null,null,null,null,null,null,"円",null,null,"　冷　暖　房　料　",null,null,null,null,null,null,null,null,null,null,null,null,null,0,null,null,null,null,null,null,null,null,null,"円",null,null,null,null,null,null,null,null,null,null,null,null,null,null,null,null,null,null,null,null,null,null,null,null,null,null,null,null,null,null,null,null,null,null,null,null,null,null,"休日",null,"50ｍ",5,{"$f":"CS42*1.2","v":360924},{"$f":"CT42*1.2","v":360924},1171152,721848,812076,1173000,null,"休日",3211,3212,3213,3214,3215,3216]
[null,null,null,null,null,null,null,null,null,"使用料減免額計",null,null,null,null,null,null,0,null,null,null,null,null,null,null,null,null,"円",null,null,"合　　　　　　計",null,null,null,null,null,null,null,null,null,null,null,null,null,{"$f":"SUM(Q45+Q46+AR45-Q47)","v":0},null,null,null,null,null,null,null,null,null,"円",null,null,null,null,null,null,null,null,null,null,null,null,null,null,null,null,null,null,null,null,null,null,null,null,null,null,null,null,null,null,null,null,null,null,null,null,null,null,null,null,"25ｍ夏",6,{"$f":"CS43*1.2","v":123036},123036,151752,246084,274788,397836,null,null,3221,3222,3223,3224,3225,3226]
[null,null,null,null,null,null,null,null,null,null,null,null,null,null,null,null,null,null,null,null,null,null,null,null,null,null,null,null,null,null,null,null,null,null,null,null,null,null,null,null,null,null,null,null,null,null,null,null,null,null,null,null,null,null,null,null,null,null,null,null,null,null,null,null,null,null,null,null,null,null,null,null,null,null,null,null,null,null,null,null,null,null,null,null,null,null,null,null,null,null,null,null,null,null,"25ｍ冬",7,184560,184560,229680,369120,414240,598800,null,null,3231,3232,3233,3234,3235,3236]
[null,null,null,null,null,null,null,null,null,"備　　　　　　　考",null,null,null,null,null,null,null,null,null,null,null,null,null,null,null,null,null,null,null,null,null,null,null,null,null,null,null,null,null,null,null,null,null,null,null,null,null,null,null,null,null,null,null,null,null,null,null,null,null,null,null,null,null,null,null,null,null,null,null,"アマ","平日",null,null,null,null,null,null,null,null,null,null,null,null,null,null,null,null,null,null,null,null,null,null,null,"スケ",8,{"$f":"CS45*1.2","v":475764},475764,598800,951528,1074576,1550340,null,null,3241,3242,3243,3244,3245,3246]
[null,null,null,null,null,null,null,null,null,null,null,null,null,null,null,null,null,null,null,null,null,null,null,null,null,null,null,null,null,null,null,null,null,null,null,null,null,null,null,null,null,null,null,null,null,null,null,null,null,null,null,null,null,null,null,null,null,null,null,null,null,null,null,null,null,null,null,null,null,"入徴","休日"]
[null,null,null,null,null,null,null,null,null,null,null,null,null,null,null,null,null,null,null,null,null,null,null,null,null,null,null,null,null,null,null,null,null,null,null,null,null,null,null,null,null,null,null,null,null,null,null,null,null,null,null,null,null,null,null,null,null,null,null,null,null,null,null,null,null,null,null,null,null,"プロ"]
[]
[null,null,null,null,null,null,null,null,null,null,null,null,null,null,null,null,null,null,null,null,null,null,null,null,null,null,null,null,null,null,null,null,null,null,null,null,"使用料受領印"]

{"sheet":"団体","index":5,"n_rows":104,"n_cols":48,"rows_kept":104,"cut":false,"hidden":true,"merged":[[11,9,12,9],[11,10,12,14],[20,14,20,15],[21,14,21,15],[22,14,22,15],[19,1,19,16],[22,1,22,4],[21,5,21,7],[22,5,22,7],[16,5,16,10],[16,11,16,15],[18,5,18,6],[18,8,18,9],[18,11,18,12],[23,1,24,4],[25,1,25,4],[28,14,28,16],[28,1,31,4],[23,5,23,7],[24,5,24,7],[25,5,27,7],[23,14,23,15],[24,14,24,15],[26,12,26,15],[28,5,28,13],[29,5,29,10],[3,1,3,16],[9,9,9,16],[11,1,12,4],[20,5,20,7],[13,1,14,4],[16,1,17,4],[17,8,17,10],[17,11,17,13],[17,14,17,16],[18,14,18,15],[13,5,14,16],[17,5,17,7],[9,1,9,2],[10,1,10,8],[10,9,10,16],[11,5,12,8]]}
[]
[]
[]
[null,"総合プール団体利用申込書"]
[]
[null,null,null,null,null,null,null,null,null,null,null,"令和",null,"年",null,"月",null,"日",null,null,null,null,null,null,null,null,null,null,null,null,null,null,null,null,null,null,null,null,null,null,"令和",null,"1月",null,null,"1日",null,"1年"]
[null,null,null,null,null,null,null,null,null,null,null,null,null,null,null,null,null,null,null,null,null,null,null,null,null,null,null,null,null,null,null,null,null,null,null,null,null,null,null,null,null,null,"2月",null,null,"2日",null,"2年"]
[null,"福岡県立総合プール　　　施設長　殿",null,null,null,null,null,null,null,null,null,null,null,null,null,null,null,null,null,null,null,null,null,null,null,null,null,null,null,null,null,null,null,null,null,null,null,null,null,null,null,null,"3月",null,null,"3日",null,"3年"]
[null,null,null,null,null,null,null,null,null,null,null,null,null,"※欄のみご記入ください",null,null,null,null,null,null,null,null,null,null,null,null,null,null,null,null,null,null,null,null,null,null,null,null,null,null,null,null,"4月",null,null,"4日",null,"4年"]
[null,"団体名称",null,"（TEL",{"$f":"施設利用申込書!BK18","v":"00"},null,null,")",null,"　※代表者職氏名",null,null,null,null,null,null,null,null,null,null,null,null,null,null,null,null,null,null,null,null,null,null,null,null,null,null,null,null,null,null,null,null,"5月",null,null,"5日",null,"5年"]
[null,{"$f":"施設利用申込書!I11","v":0},null,null,null,null,null,null,null,{"$f":"施設利用申込書!I14","v":0},null,null,null,null,null,null,null,null,null,null,null,null,null,null,null,null,null,null,null,null,null,null,null,null,null,null,null,null,null,null,null,null,"6月",null,null,"6日",null,"6年"]
[null,"※　利　用　期　間",null,null,null,{"$f":"施設利用申込書!A29","v":"00:00:00"},null,null,null,"～",null,null,null,null,null,null,null,null,null,null,null,null,null,null,null,null,null,null,null,null,null,null,null,null,null,null,null,null,null,null,null,null,"7月",null,null,"7日",null,"7年"]
[null,null,null,null,null,null,null,null,null,null,null,null,null,null,null,null,null,null,null,null,null,null,null,null,null,null,null,null,null,null,null,null,null,null,null,null,null,null,null,null,null,null,"8月",null,null,"8日",null,"8年"]
[null,"※　利　用　施　設",null,null,null,null,null,null,null,null,null,null,null,null,null,null,null,null,null,null,null,null,null,null,null,null,null,null,null,null,null,null,null,null,null,null,null,null,null,null,null,null,"9月",null,null,"9日",null,"9年"]
[null,null,null,null,null,null,null,null,null,null,null,null,null,null,null,null,null,null,null,null,null,null,null,null,null,null,null,null,null,null,null,null,null,null,null,null,null,null,null,null,null,null,"10月",null,null,"10日",null,"10年"]
[null,null,null,null,null,"　指導責任者氏名",null,null,null,null,null,"　利用合計人員",null,null,null,null,null,null,null,null,null,null,null,null,null,null,null,null,null,null,null,null,null,null,null,null,null,null,null,null,null,null,"11月",null,null,"11日",null,"11年"]
[null,"※　利　用　人　員　\n及　び　　\n内　　　訳",null,null,null,{"$f":"施設利用申込書!I14","v":0},null,null,null,null,null,{"$f":"SUM(F19,I19,L19)","v":0},null,null,null,null,"名",null,null,null,null,null,null,null,null,null,null,null,null,null,null,null,null,null,null,null,null,null,null,null,null,null,"12月",null,null,"12日",null,"12年"]
[null,null,null,null,null,"小学生以下",null,null,"中学高校生",null,null,"大　人",null,null,"貸　靴",null,null,null,null,null,null,null,null,null,null,null,null,null,null,null,null,null,null,null,null,null,null,null,null,null,null,null,null,null,null,"13日",null,"13年"]
[null,null,null,null,null,null,null,"名",null,null,"名",null,null,"名",null,null,"名",null,null,null,null,null,null,null,null,null,null,null,null,null,null,null,null,null,null,null,null,null,null,null,null,null,null,null,null,"14日",null,"14年"]
[null,"以下スタッフ入力"]
[null,null,null,null,null,"小学生以下",null,null,null,"円×",{"$f":"F19","v":0},"名×　　　％＝",0,"% =",{"$f":"I21*K21*M21/100","v":0},null,"円",null,null,null,null,null,null,null,null,null,null,null,null,null,null,null,null,null,null,null,null,null,null,null,null,null,null,null,null,"15日",null,"15年"]
[null,null,null,null,null,"中学高校生",null,null,null,"円×",{"$f":"I19","v":0},"名×　　　％＝",null,"% =",null,null,"円",null,null,null,null,null,null,null,null,null,null,null,null,null,null,null,null,null,null,null,null,null,null,null,null,null,null,null,null,"16日",null,"16年"]
[null,"利　用　料",null,null,null,"大　　　人",null,null,null,"円×",{"$f":"L19","v":0},"名×　　　％＝",null,"% =",null,null,"円",null,null,null,null,null,null,null,null,null,null,null,null,null,null,null,null,null,null,null,null,null,null,null,null,null,null,null,null,"17日",null,"17年"]
[null,"及　び",null,null,null,"貸靴使用料",null,null,390,"円×",null,"名　　　　　＝",null,null,{"$f":"I24*K24","v":0},null,"円",null,null,null,null,null,null,null,null,null,null,null,null,null,null,null,null,null,null,null,null,null,null,null,null,null,null,null,null,"18日",null,"18年"]
[null,null,null,null,null,"施設維持費",null,null,50,"円×",null,"名　　　　　＝",null,null,{"$f":"I25*K25","v":0},null,"円",null,null,null,null,null,null,null,null,null,null,null,null,null,null,null,null,null,null,null,null,null,null,null,null,null,null,null,null,"19日",null,"19年"]
[null,"内　　　　訳",null,null,null,"合　　計",null,null,null,null,null,null,null,null,null,null,null,null,null,null,null,null,null,null,null,null,null,null,null,null,null,null,null,null,null,null,null,null,null,null,null,null,null,null,null,"20日",null,"20年"]
[null,null,null,null,null,null,null,null,null,null,null,null,{"$f":"SUM(O21:P25)","v":0},null,null,null,"円",null,null,null,null,null,null,null,null,null,null,null,null,null,null,null,null,null,null,null,null,null,null,null,null,null,null,null,null,"21日",null,"21年"]
[null,null,null,null,null,null,null,null,null,null,null,null,null,null,null,null,null,null,null,null,null,null,null,null,null,null,null,null,null,null,null,null,null,null,null,null,null,null,null,null,null,null,null,null,null,"22日",null,"22年"]
[null,"備　　　　考",null,null,null,null,null,null,null,null,null,null,null,null,"受領印",null,null,null,null,null,null,null,null,null,null,null,null,null,null,null,null,null,null,null,null,null,null,null,null,null,null,null,null,null,null,"23日",null,"23年"]
[null,null,null,null,null,null,null,null,null,null,null,null,null,null,null,null,null,null,null,null,null,null,null,null,null,null,null,null,null,null,null,null,null,null,null,null,null,null,null,null,null,null,null,null,null,"24日",null,"24年"]
[null,null,null,null,null,null,null,null,null,null,null,null,null,null,null,null,null,null,null,null,null,null,null,null,null,null,null,null,null,null,null,null,null,null,null,null,null,null,null,null,null,null,null,null,null,"25日",null,"25年"]
[null,null,null,null,null,null,null,null,null,null,null,null,null,null,null,null,null,null,null,null,null,null,null,null,null,null,null,null,null,null,null,null,null,null,null,null,null,null,null,null,null,null,null,null,null,"26日",null,"26年"]
[null,null,null,null,null,null,null,null,"指定管理者：アクシオン福岡プロジェクトチーム",null,null,null,null,null,null,null,null,null,null,null,null,null,null,null,null,null,null,null,null,null,null,null,null,null,null,null,null,null,null,null,null,null,null,null,null,"27日",null,"27年"]
[null,null,null,null,null,null,null,null,null,null,null,null,null,null,null,null,null,null,null,null,null,null,null,null,null,null,null,null,null,null,null,null,null,null,null,null,null,null,null,null,null,null,null,null,null,"28日",null,"28年"]
[null,null,null,null,null,null,null,null,null,null,null,null,null,null,null,null,null,null,null,null,null,null,null,null,null,null,null,null,null,null,null,null,null,null,null,null,null,null,null,null,null,null,null,null,null,"29日",null,"29年"]
[null,null,null,null,null,null,null,null,null,null,null,null,null,null,null,null,null,null,null,null,null,null,null,null,null,null,null,null,null,null,null,null,null,null,null,null,null,null,null,null,null,null,null,null,null,"30日",null,"30年"]
[null,null,null,null,null,null,null,null,null,null,null,null,null,null,null,null,null,null,null,null,null,null,null,null,null,null,null,null,null,null,null,null,null,null,null,null,null,null,null,null,null,null,null,null,null,"31日",null,"31年"]
[null,null,null,null,null,null,null,null,null,null,null,null,null,null,null,null,null,null,null,null,null,null,null,null,null,null,null,null,null,null,null,null,null,null,null,null,null,null,null,null,null,null,null,null,null,null,null,"32年"]
[null,null,null,null,null,null,null,null,null,null,null,null,null,null,null,null,null,null,null,null,null,null,null,null,null,null,null,null,null,null,null,null,null,null,null,null,null,null,null,null,null,null,null,null,null,null,null,"33年"]
[null,null,null,null,null,null,null,null,null,null,null,null,null,null,null,null,null,null,null,null,null,null,null,null,null,null,null,null,null,null,null,null,null,null,null,null,null,null,null,null,null,null,null,null,null,null,null,"34年"]
[null,null,null,null,null,null,null,null,null,null,null,null,null,null,null,null,null,null,null,null,null,null,null,null,null,null,null,null,null,null,null,null,null,null,null,null,null,null,null,null,null,null,null,null,null,null,null,"35年"]
[null,null,null,null,null,null,null,null,null,null,null,null,null,null,null,null,null,null,null,null,null,null,null,null,null,null,null,null,null,null,null,null,null,null,null,null,null,null,null,null,null,null,null,null,null,null,null,"36年"]
[null,null,null,null,null,null,null,null,null,null,null,null,null,null,null,null,null,null,null,null,null,null,null,null,null,null,null,null,null,null,null,null,null,null,null,null,null,null,null,null,null,null,null,null,null,null,null,"37年"]
[null,null,null,null,null,null,null,null,null,null,null,null,null,null,null,null,null,null,null,null,null,null,null,null,null,null,null,null,null,null,null,null,null,null,null,null,null,null,null,null,null,null,null,null,null,null,null,"38年"]
[null,null,null,null,null,null,null,null,null,null,null,null,null,null,null,null,null,null,null,null,null,null,null,null,null,null,null,null,null,null,null,null,null,null,null,null,null,null,null,null,null,null,null,null,null,null,null,"39年"]
[null,null,null,null,null,null,null,null,null,null,null,null,null,null,null,null,null,null,null,null,null,null,null,null,null,null,null,null,null,null,null,null,null,null,null,null,null,null,null,null,null,null,null,null,null,null,null,"40年"]
[null,null,null,null,null,null,null,null,null,null,null,null,null,null,null,null,null,null,null,null,null,null,null,null,null,null,null,null,null,null,null,null,null,null,null,null,null,null,null,null,null,null,null,null,null,null,null,"41年"]
[null,null,null,null,null,null,null,null,null,null,null,null,null,null,null,null,null,null,null,null,null,null,null,null,null,null,null,null,null,null,null,null,null,null,null,null,null,null,null,null,null,null,null,null,null,null,null,"42年"]
[null,null,null,null,null,null,null,null,null,null,null,null,null,null,null,null,null,null,null,null,null,null,null,null,null,null,null,null,null,null,null,null,null,null,null,null,null,null,null,null,null,null,null,null,null,null,null,"43年"]
[null,null,null,null,null,null,null,null,null,null,null,null,null,null,null,null,null,null,null,null,null,null,null,null,null,null,null,null,null,null,null,null,null,null,null,null,null,null,null,null,null,null,null,null,null,null,null,"44年"]
[null,null,null,null,null,null,null,null,null,null,null,null,null,null,null,null,null,null,null,null,null,null,null,null,null,null,null,null,null,null,null,null,null,null,null,null,null,null,null,null,null,null,null,null,null,null,null,"45年"]
[null,null,null,null,null,null,null,null,null,null,null,null,null,null,null,null,null,null,null,null,null,null,null,null,null,null,null,null,null,null,null,null,null,null,null,null,null,null,null,null,null,null,null,null,null,null,null,"46年"]
[null,null,null,null,null,null,null,null,null,null,null,null,null,null,null,null,null,null,null,null,null,null,null,null,null,null,null,null,null,null,null,null,null,null,null,null,null,null,null,null,null,null,null,null,null,null,null,"47年"]
[null,null,null,null,null,null,null,null,null,null,null,null,null,null,null,null,null,null,null,null,null,null,null,null,null,null,null,null,null,null,null,null,null,null,null,null,null,null,null,null,null,null,null,null,null,null,null,"48年"]
[null,null,null,null,null,null,null,null,null,null,null,null,null,null,null,null,null,null,null,null,null,null,null,null,null,null,null,null,null,null,null,null,null,null,null,null,null,null,null,null,null,null,null,null,null,null,null,"49年"]
[null,null,null,null,null,null,null,null,null,null,null,null,null,null,null,null,null,null,null,null,null,null,null,null,null,null,null,null,null,null,null,null,null,null,null,null,null,null,null,null,null,null,null,null,null,null,null,"50年"]
[null,null,null,null,null,null,null,null,null,null,null,null,null,null,null,null,null,null,null,null,null,null,null,null,null,null,null,null,null,null,null,null,null,null,null,null,null,null,null,null,null,null,null,null,null,null,null,"51年"]
[null,null,null,null,null,null,null,null,null,null,null,null,null,null,null,null,null,null,null,null,null,null,null,null,null,null,null,null,null,null,null,null,null,null,null,null,null,null,null,null,null,null,null,null,null,null,null,"52年"]
[null,null,null,null,null,null,null,null,null,null,null,null,null,null,null,null,null,null,null,null,null,null,null,null,null,null,null,null,null,null,null,null,null,null,null,null,null,null,null,null,null,null,null,null,null,null,null,"53年"]
[null,null,null,null,null,null,null,null,null,null,null,null,null,null,null,null,null,null,null,null,null,null,null,null,null,null,null,null,null,null,null,null,null,null,null,null,null,null,null,null,null,null,null,null,null,null,null,"54年"]
[null,null,null,null,null,null,null,null,null,null,null,null,null,null,null,null,null,null,null,null,null,null,null,null,null,null,null,null,null,null,null,null,null,null,null,null,null,null,null,null,null,null,null,null,null,null,null,"55年"]
[null,null,null,null,null,null,null,null,null,null,null,null,null,null,null,null,null,null,null,null,null,null,null,null,null,null,null,null,null,null,null,null,null,null,null,null,null,null,null,null,null,null,null,null,null,null,null,"56年"]
[null,null,null,null,null,null,null,null,null,null,null,null,null,null,null,null,null,null,null,null,null,null,null,null,null,null,null,null,null,null,null,null,null,null,null,null,null,null,null,null,null,null,null,null,null,null,null,"57年"]
[null,null,null,null,null,null,null,null,null,null,null,null,null,null,null,null,null,null,null,null,null,null,null,null,null,null,null,null,null,null,null,null,null,null,null,null,null,null,null,null,null,null,null,null,null,null,null,"58年"]
[null,null,null,null,null,null,null,null,null,null,null,null,null,null,null,null,null,null,null,null,null,null,null,null,null,null,null,null,null,null,null,null,null,null,null,null,null,null,null,null,null,null,null,null,null,null,null,"59年"]
[null,null,null,null,null,null,null,null,null,null,null,null,null,null,null,null,null,null,null,null,null,null,null,null,null,null,null,null,null,null,null,null,null,null,null,null,null,null,null,null,null,null,null,null,null,null,null,"60年"]
[null,null,null,null,null,null,null,null,null,null,null,null,null,null,null,null,null,null,null,null,null,null,null,null,null,null,null,null,null,null,null,null,null,null,null,null,null,null,null,null,null,null,null,null,null,null,null,"61年"]
[null,null,null,null,null,null,null,null,null,null,null,null,null,null,null,null,null,null,null,null,null,null,null,null,null,null,null,null,null,null,null,null,null,null,null,null,null,null,null,null,null,null,null,null,null,null,null,"62年"]
[null,null,null,null,null,null,null,null,null,null,null,null,null,null,null,null,null,null,null,null,null,null,null,null,null,null,null,null,null,null,null,null,null,null,null,null,null,null,null,null,null,null,null,null,null,null,null,"63年"]
[null,null,null,null,null,null,null,null,null,null,null,null,null,null,null,null,null,null,null,null,null,null,null,null,null,null,null,null,null,null,null,null,null,null,null,null,null,null,null,null,null,null,null,null,null,null,null,"64年"]
[null,null,null,null,null,null,null,null,null,null,null,null,null,null,null,null,null,null,null,null,null,null,null,null,null,null,null,null,null,null,null,null,null,null,null,null,null,null,null,null,null,null,null,null,null,null,null,"65年"]
[null,null,null,null,null,null,null,null,null,null,null,null,null,null,null,null,null,null,null,null,null,null,null,null,null,null,null,null,null,null,null,null,null,null,null,null,null,null,null,null,null,null,null,null,null,null,null,"66年"]
[null,null,null,null,null,null,null,null,null,null,null,null,null,null,null,null,null,null,null,null,null,null,null,null,null,null,null,null,null,null,null,null,null,null,null,null,null,null,null,null,null,null,null,null,null,null,null,"67年"]
[null,null,null,null,null,null,null,null,null,null,null,null,null,null,null,null,null,null,null,null,null,null,null,null,null,null,null,null,null,null,null,null,null,null,null,null,null,null,null,null,null,null,null,null,null,null,null,"68年"]
[null,null,null,null,null,null,null,null,null,null,null,null,null,null,null,null,null,null,null,null,null,null,null,null,null,null,null,null,null,null,null,null,null,null,null,null,null,null,null,null,null,null,null,null,null,null,null,"69年"]
[null,null,null,null,null,null,null,null,null,null,null,null,null,null,null,null,null,null,null,null,null,null,null,null,null,null,null,null,null,null,null,null,null,null,null,null,null,null,null,null,null,null,null,null,null,null,null,"70年"]
[null,null,null,null,null,null,null,null,null,null,null,null,null,null,null,null,null,null,null,null,null,null,null,null,null,null,null,null,null,null,null,null,null,null,null,null,null,null,null,null,null,null,null,null,null,null,null,"71年"]
[null,null,null,null,null,null,null,null,null,null,null,null,null,null,null,null,null,null,null,null,null,null,null,null,null,null,null,null,null,null,null,null,null,null,null,null,null,null,null,null,null,null,null,null,null,null,null,"72年"]
[null,null,null,null,null,null,null,null,null,null,null,null,null,null,null,null,null,null,null,null,null,null,null,null,null,null,null,null,null,null,null,null,null,null,null,null,null,null,null,null,null,null,null,null,null,null,null,"73年"]
[null,null,null,null,null,null,null,null,null,null,null,null,null,null,null,null,null,null,null,null,null,null,null,null,null,null,null,null,null,null,null,null,null,null,null,null,null,null,null,null,null,null,null,null,null,null,null,"74年"]
[null,null,null,null,null,null,null,null,null,null,null,null,null,null,null,null,null,null,null,null,null,null,null,null,null,null,null,null,null,null,null,null,null,null,null,null,null,null,null,null,null,null,null,null,null,null,null,"75年"]
[null,null,null,null,null,null,null,null,null,null,null,null,null,null,null,null,null,null,null,null,null,null,null,null,null,null,null,null,null,null,null,null,null,null,null,null,null,null,null,null,null,null,null,null,null,null,null,"76年"]
[null,null,null,null,null,null,null,null,null,null,null,null,null,null,null,null,null,null,null,null,null,null,null,null,null,null,null,null,null,null,null,null,null,null,null,null,null,null,null,null,null,null,null,null,null,null,null,"77年"]
[null,null,null,null,null,null,null,null,null,null,null,null,null,null,null,null,null,null,null,null,null,null,null,null,null,null,null,null,null,null,null,null,null,null,null,null,null,null,null,null,null,null,null,null,null,null,null,"78年"]
[null,null,null,null,null,null,null,null,null,null,null,null,null,null,null,null,null,null,null,null,null,null,null,null,null,null,null,null,null,null,null,null,null,null,null,null,null,null,null,null,null,null,null,null,null,null,null,"79年"]
[null,null,null,null,null,null,null,null,null,null,null,null,null,null,null,null,null,null,null,null,null,null,null,null,null,null,null,null,null,null,null,null,null,null,null,null,null,null,null,null,null,null,null,null,null,null,null,"80年"]
[null,null,null,null,null,null,null,null,null,null,null,null,null,null,null,null,null,null,null,null,null,null,null,null,null,null,null,null,null,null,null,null,null,null,null,null,null,null,null,null,null,null,null,null,null,null,null,"81年"]
[null,null,null,null,null,null,null,null,null,null,null,null,null,null,null,null,null,null,null,null,null,null,null,null,null,null,null,null,null,null,null,null,null,null,null,null,null,null,null,null,null,null,null,null,null,null,null,"82年"]
[null,null,null,null,null,null,null,null,null,null,null,null,null,null,null,null,null,null,null,null,null,null,null,null,null,null,null,null,null,null,null,null,null,null,null,null,null,null,null,null,null,null,null,null,null,null,null,"83年"]
[null,null,null,null,null,null,null,null,null,null,null,null,null,null,null,null,null,null,null,null,null,null,null,null,null,null,null,null,null,null,null,null,null,null,null,null,null,null,null,null,null,null,null,null,null,null,null,"84年"]
[null,null,null,null,null,null,null,null,null,null,null,null,null,null,null,null,null,null,null,null,null,null,null,null,null,null,null,null,null,null,null,null,null,null,null,null,null,null,null,null,null,null,null,null,null,null,null,"85年"]
[null,null,null,null,null,null,null,null,null,null,null,null,null,null,null,null,null,null,null,null,null,null,null,null,null,null,null,null,null,null,null,null,null,null,null,null,null,null,null,null,null,null,null,null,null,null,null,"86年"]
[null,null,null,null,null,null,null,null,null,null,null,null,null,null,null,null,null,null,null,null,null,null,null,null,null,null,null,null,null,null,null,null,null,null,null,null,null,null,null,null,null,null,null,null,null,null,null,"87年"]
[null,null,null,null,null,null,null,null,null,null,null,null,null,null,null,null,null,null,null,null,null,null,null,null,null,null,null,null,null,null,null,null,null,null,null,null,null,null,null,null,null,null,null,null,null,null,null,"88年"]
[null,null,null,null,null,null,null,null,null,null,null,null,null,null,null,null,null,null,null,null,null,null,null,null,null,null,null,null,null,null,null,null,null,null,null,null,null,null,null,null,null,null,null,null,null,null,null,"89年"]
[null,null,null,null,null,null,null,null,null,null,null,null,null,null,null,null,null,null,null,null,null,null,null,null,null,null,null,null,null,null,null,null,null,null,null,null,null,null,null,null,null,null,null,null,null,null,null,"90年"]
[null,null,null,null,null,null,null,null,null,null,null,null,null,null,null,null,null,null,null,null,null,null,null,null,null,null,null,null,null,null,null,null,null,null,null,null,null,null,null,null,null,null,null,null,null,null,null,"91年"]
[null,null,null,null,null,null,null,null,null,null,null,null,null,null,null,null,null,null,null,null,null,null,null,null,null,null,null,null,null,null,null,null,null,null,null,null,null,null,null,null,null,null,null,null,null,null,null,"92年"]
[null,null,null,null,null,null,null,null,null,null,null,null,null,null,null,null,null,null,null,null,null,null,null,null,null,null,null,null,null,null,null,null,null,null,null,null,null,null,null,null,null,null,null,null,null,null,null,"93年"]
[null,null,null,null,null,null,null,null,null,null,null,null,null,null,null,null,null,null,null,null,null,null,null,null,null,null,null,null,null,null,null,null,null,null,null,null,null,null,null,null,null,null,null,null,null,null,null,"94年"]
[null,null,null,null,null,null,null,null,null,null,null,null,null,null,null,null,null,null,null,null,null,null,null,null,null,null,null,null,null,null,null,null,null,null,null,null,null,null,null,null,null,null,null,null,null,null,null,"95年"]
[null,null,null,null,null,null,null,null,null,null,null,null,null,null,null,null,null,null,null,null,null,null,null,null,null,null,null,null,null,null,null,null,null,null,null,null,null,null,null,null,null,null,null,null,null,null,null,"96年"]
[null,null,null,null,null,null,null,null,null,null,null,null,null,null,null,null,null,null,null,null,null,null,null,null,null,null,null,null,null,null,null,null,null,null,null,null,null,null,null,null,null,null,null,null,null,null,null,"97年"]
[null,null,null,null,null,null,null,null,null,null,null,null,null,null,null,null,null,null,null,null,null,null,null,null,null,null,null,null,null,null,null,null,null,null,null,null,null,null,null,null,null,null,null,null,null,null,null,"98年"]

{"sheet":"学校(改)","index":6,"n_rows":37,"n_cols":17,"rows_kept":37,"cut":false,"hidden":true,"merged":[[14,1,14,6],[13,9,13,10],[14,9,14,10],[13,11,13,16],[14,11,14,16],[31,5,31,13],[32,5,32,13],[33,5,33,13],[21,1,21,16],[19,5,19,6],[27,14,27,15],[20,14,20,15],[22,8,22,10],[22,14,22,15],[23,14,23,15],[24,14,24,15],[19,7,19,8],[19,9,19,10],[31,1,35,4],[31,14,31,16],[19,11,19,13],[3,1,3,16],[9,16,10,16],[15,1,16,4],[17,1,18,4],[17,5,18,16],[9,15,10,15],[15,5,16,8],[15,9,16,9],[13,7,14,8],[15,10,16,14],[9,1,9,2],[10,1,10,8],[11,1,11,5],[11,9,11,10],[12,1,12,16],[10,10,10,14],[19,14,19,16],[22,5,22,7],[25,5,25,7],[22,1,30,4],[28,5,30,7],[25,14,25,15],[26,14,26,15],[23,6,23,7],[24,6,24,7],[26,5,26,7],[27,5,27,7],[19,1,20,4]]}
[]
[]
[]
[null,"総合プール学校利用申込書"]
[]
[null,null,null,null,null,null,null,null,null,null,"令和",null,"年",null,"月",null,"日"]
[]
[null,"福岡県立総合プール　　　施設長　殿"]
[null,null,null,null,null,null,null,null,null,null,null,null,"※印の欄のみご記入ください"]
[null,"団体名称",null,"(TEL",{"$f":"施設利用申込書!BK18","v":"00"},null,null,")",null,"　※学校長氏名",null,null,null,null,null,"印"]
[null,{"$f":"施設利用申込書!I11","v":0}]
[null,"　※所在地(請求先住所)",null,null,null,null,"〒",{"$f":"施設利用申込書!L24","v":0},"-",{"$f":"施設利用申込書!P24","v":0}]
[null,{"$f":"施設利用申込書!L25","v":0}]
[null,"　※申込者",null,null,null,null,null,"※連絡先",null,"TEL：",null,{"$f":"施設利用申込書!K16&施設利用申込書!L16&施設利用申込書!P16&施設利用申込書!Q16&施設利用申込書!V16&施設利用申込書!W16","v":"()-"}]
[null,{"$f":"施設利用申込書!I14","v":0},null,null,null,null,null,null,null,"FAX：",null,{"$f":"施設利用申込書!AE16&施設利用申込書!AF16&施設利用申込書!AJ16&施設利用申込書!AK16&施設利用申込書!AP16&施設利用申込書!AQ16","v":"()-"}]
[null,"※　利　用　期　間",null,null,null,{"$f":"施設利用申込書!A29","v":"00:00:00"},null,null,null,"～"]
[]
[null,"※　利　用　施　設"]
[]
[null,"※　利　用　人　員",null,null,null,"児童以下",null,"生　徒",null,"教　員",null,"合　計",null,null,"貸　靴"]
[null,null,null,null,null,null,"名",null,"名",null,"名",null,null,"名",null,null,"名"]
[null,"以下スタッフ入力"]
[null,"利用料及び内訳",null,null,null,"施設利用料",null,null,null,null,null,"円×",0.5,"＝",{"$f":"I23*0.5","v":0},null,"円"]
[null,null,null,null,null,"個","児　童",null,null,"円×",{"$f":"F21","v":0},"名×",0.5,"＝",{"$f":"I24*K24*0.5","v":0},null,"円"]
[null,null,null,null,null,"人","生　徒",null,null,"円×",null,"名×",0.5,"＝",{"$f":"I25*K25*0.5","v":0},null,"円"]
[null,null,null,null,null,"会議室利用料",null,null,560,"円×",null,"時間×５０％＝",0.5,"＝",{"$f":"I26*K26*0.5","v":0},null,"円"]
[null,null,null,null,null,"貸靴使用料",null,null,390,"円×",{"$f":"O21","v":0},"名　　　　　＝",null,"＝",{"$f":"I27*K27","v":0},null,"円"]
[null,null,null,null,null,"施設維持費",null,null,50,"円×",null,"名　　　　　＝",null,null,{"$f":"I28*K28","v":0},null,"円"]
[null,null,null,null,null,"合　　計"]
[null,null,null,null,null,null,null,null,null,null,null,null,null,null,null,null,"円"]
[]
[null,"備　　　　考",null,null,null,"　福岡県立体育・スポーツ施設の使用料及び利用料金に　",null,null,null,null,null,null,null,null,"受領印"]
[null,null,null,null,null,"　関する規則　第五条第１項六号に該当し、施設占用又は"]
[null,null,null,null,null,"　個人使用料の５０％減免"]
[]
[]
[null,null,null,null,null,null,null,null,null,"指定管理者：アクシオン福岡プロジェクトチーム"]

{"sheet":"消防","index":7,"n_rows":31,"n_cols":17,"rows_kept":31,"cut":false,"hidden":true,"merged":[[3,1,3,16],[10,1,10,8],[10,16,12,16],[11,1,11,8],[12,1,12,8],[25,1,29,4],[25,14,25,16],[20,1,20,4],[21,1,21,4],[22,1,22,4],[19,9,20,9],[19,8,20,8],[19,11,20,12],[19,16,20,16],[19,5,20,7],[21,5,23,7],[17,11,17,16],[18,11,18,16],[17,5,17,7],[13,1,14,4],[15,1,16,4],[15,5,16,16],[17,1,18,4],[17,8,17,10]]}
[]
[]
[]
[null,"総合プール消防利用申込書"]
[]
[]
[null,null,null,null,null,null,null,null,null,null,"　　　　令和　　　　年　　　　　月　　　　日"]
[]
[null,"福岡県立総合プール　　施設長　殿"]
[null,null,null,null,null,null,null,null,null,null,null,null,null,"※欄のみご記入ください"]
[null,"　※団体名称　　　　　　　",null,null,null,null,null,null,null,"　※団体担当者氏名"]
[null,"　　　　　　　　 　                       "]
[null," (TEL                           ) (FAX                        )"]
[null,"※　利　用　日　時",null,null,null,"　　　　令和　　　　　　　年　　　　　　月　　　　　　日　　　（　　　）　　　　　　　"]
[null,null,null,null,null,"　　　　　　　　時　　　　　　分",null,null,null,null,"～","　　　　　　　時　　　　　　分"]
[null,"※　利　用　施　設",null,null,null,"　１. 　 ５０ｍプール  　　　  ２.  　２５ｍプール　　　　 ３.　  飛び込みプール　　"]
[]
[null,"※　利　用　人　員",null,null,null,"入水あり",null,null,"入水なし",null,null,"合　計"]
[null,null,null,null,null,null,null,"名",null,null,"名","　　　　　　　　　　　　　　名"]
[null,null,null,null,null,"施設利用料",null,null,560,"円×",null,"名×５０％＝",null,null,null,null,"円"]
[null,"施　設　料"]
[null,"及　び",null,null,null,"　合　　計"]
[null,"内　　　　訳",null,null,null,null,null,null,null,null,null,null,null,null,null,null,"円"]
[]
[null,"　　　※　車　　　　両",null,null,null,null,null,null,null,null,null,null,null,null,null,null,"　台"]
[null,"備　　　　考",null,null,null,"　福岡県立体育・スポーツ施設使用料条例別表第三備考七、　",null,null,null,null,null,null,null,null,"受領印"]
[null,null,null,null,null,"　または同条例施行規則第五条第１項第十四号に該当し、"]
[null,null,null,null,null,"　個人使用料の５０％減免"]
[]
[]
[null,null,null,null,null,null,null,"指定管理者：アクシオン福岡プロジェクトチーム"]